{"text_format":"1","workbook":"xlsx","n_sheets":4,"sheets":["data","All_Data","Employees","handover.Form"],"not_rendered":{"charts":0,"images":32,"macros":1,"external_links":2,"defined_names":12,"comments":1,"pivot_tables":0},"unopened":[],"bounds":{"document_bytes":16777216,"sheet_cells":100000,"rows_first":2000,"rows_last":500,"rows_between":2000,"halvings":0,"cell_chars":16384,"cell_head_chars":4096},"cells_cut":0,"cells_raw":0,"read":"whole","date_system":"1900"}

{"sheet":"data","index":0,"n_rows":28,"n_cols":51,"rows_kept":28,"cut":false,"hidden":false,"merged":[[28,3,28,7],[27,9,27,10],[27,1,27,7],[22,17,24,22],[25,14,26,22],[1,1,1,9],[3,1,3,9],[15,17,17,22],[17,15,17,16],[13,15,13,16],[11,14,11,16]]}
[]
[null,"قسم الحركة",null,null,null,null,null,null,null,null,null,{"$f":"TODAY()","v":"2022-11-17"}]
[]
[null,"تقــرير بيانات قسم الحركة",null,null,null,null,null,null,null,null,null,{"$f":"TODAY()","v":"2022-11-17"}]
[null,null,null,null,null,null,null,null,null,null,null,null,null,null,null,null,null,null,null,null,null,null,null,null,null,null,null,null,null,null,null,null,null,null,null,null,null,null,null,null,null,null,null,{"$f":"L2-AS5","v":{"$error":"#VALUE!"}},{"$f":"ConvertDate(Q5)","v":{"$error":"#VALUE!"}},null,{"$f":"ConvertDate(S5)","v":{"$error":"#VALUE!"}},null,null,null,{"$f":"ConvertDate(X5)","v":{"$error":"#VALUE!"}}]
[null,null,null,null,null,null,null,null,null,null,null,null,null,null,null,null,null,null,null,null,null,null,null,null,null,null,null,null,null,null,null,null,null,null,null,null,null,null,null,null,null,null,null,{"$f":"L3-AS6","v":{"$error":"#VALUE!"}},{"$f":"ConvertDate(Q6)","v":{"$error":"#VALUE!"}},null,{"$f":"ConvertDate(S6)","v":{"$error":"#VALUE!"}},null,null,null,{"$f":"ConvertDate(X6)","v":{"$error":"#VALUE!"}}]
[null,null,null,"cr10",null,"كتابة الكود",null,null,null,"رقم الإقامة",null,null,null,null,null,null,null,null,null,null,null,null,null,null,null,null,null,null,null,null,null,null,null,null,null,null,null,null,null,null,null,null,null,{"$error":"#VALUE!"},{"$error":"#VALUE!"},null,{"$error":"#VALUE!"},null,null,null,{"$error":"#VALUE!"}]
[null,null,null," ",null,null,null,null,null,null,null,null,null,null,null,null,null,null,null,null,null,null,null,null,null,null,null,null,null,null,null,null,null,null,null,null,null,null,null,null,null,null,null,{"$error":"#VALUE!"},{"$error":"#VALUE!"},null,{"$error":"#VALUE!"},null,null,null,{"$error":"#VALUE!"}]
[null,null,null,null,null,null,null,null,null,null,null,null,null,null,null,null,null,null,null,null,null,null,null,null,null,null,null,null,null,null,null,null,null,null,null,null,null,null,null,null,null,null,null,{"$error":"#VALUE!"},{"$error":"#VALUE!"},null,{"$error":"#VALUE!"},null,null,null,{"$error":"#VALUE!"}]
[null,"اسم الموظف ",":",null,":","رقم الجوال ",":",null,null,"رقم الاقامة",":",null,null,null,null,null,null,null,null,null,null,null,null,null,null,null,null,null,null,null,null,null,null,null,null,null,null,null,null,null,null,null,null,{"$error":"#VALUE!"},{"$error":"#VALUE!"},null,{"$error":"#VALUE!"},null,null,null,{"$error":"#VALUE!"}]
[null,null,null,null,null,null,null,null,null,null,null,null,null,null,null,null,null,null,null,null,null,null,null,null,null,null,null,null,null,null,null,null,null,null,null,null,null,null,null,null,null,null,null,{"$error":"#VALUE!"},{"$error":"#VALUE!"},null,{"$error":"#VALUE!"},null,null,null,{"$error":"#VALUE!"}]
[null,"الكود ",":","cr10",":","وصف الاصل",":","رقم الإقامة",null,"الرقم التسلسلي ",":","كتابة الكود",null,null,"طباعة التقرير من A1:M29",null,null,null,null,null,null,null,null,null,null,null,null,null,null,null,null,null,null,null,null,null,null,null,null,null,null,null,null,{"$error":"#VALUE!"},{"$error":"#VALUE!"},null,{"$error":"#VALUE!"},null,null,null,{"$error":"#VALUE!"}]
[null,null,null,null,null,null,null,null,null,null,null,null,null,null,null,null,null,null,null,null,null,null,null,null,null,null,null,null,null,null,null,null,null,null,null,null,null,null,null,null,null,null,null,{"$error":"#VALUE!"},{"$error":"#VALUE!"},null,{"$error":"#VALUE!"},null,null,null,{"$error":"#VALUE!"}]
[null,"رقم اللوحة",":",null,":","اللون ",":",null,null,"رقم الهيكل ",":",null,null,null,null,"الدخول الى نموذج التسليم",null,null,null,null,null,null,null,null,null,null,null,null,null,null,null,null,null,null,null,null,null,null,null,null,null,null,null,{"$error":"#VALUE!"},{"$error":"#VALUE!"},null,{"$error":"#VALUE!"},null,null,null,{"$error":"#VALUE!"}]
[null,null,null,null,null,null,null,null,null,null,null,null,null,null,null,null,null,null,null,null,null,null,null,null,null,null,null,null,null,null,null,null,null,null,null,null,null,null,null,null,null,null,null,{"$error":"#VALUE!"},{"$error":"#VALUE!"},null,{"$error":"#VALUE!"},null,null,null,{"$error":"#VALUE!"}]
[null,"انتهاء الفحص ",":",null,":","حالة الفحص",null,null,null,"الموديل ",":",null,null,null,null,null,null,"عند كتابة الكود احرف صغيرة لا يظهر نتائج هل هناك حل ان البحث يكون بالأحرف الكبيرة والصغيرة",null,null,null,null,null,null,null,null,null,null,null,null,null,null,null,null,null,null,null,null,null,null,null,null,null,{"$error":"#VALUE!"},{"$error":"#VALUE!"},null,{"$f":"ConvertDate(R16)","v":{"$error":"#VALUE!"}},null,null,null,{"$error":"#VALUE!"}]
[null,null,null,null,null,null,null,null,null,null,null,null,null,null,null,null,null,null,null,null,null,null,null,null,null,null,null,null,null,null,null,null,null,null,null,null,null,null,null,null,null,null,null,{"$error":"#VALUE!"},{"$error":"#VALUE!"},null,{"$error":"#VALUE!"},null,null,null,{"$error":"#VALUE!"}]
[null,"انتهاء الاستمار",":",null,":","حالة الاستمارة ",":",null,null,"المالك",":",null,null,null,null,"الدخول الى الموظفين",null,null,null,null,null,null,null,null,null,null,null,null,null,null,null,null,null,null,null,null,null,null,null,null,null,null,null,{"$error":"#VALUE!"},{"$error":"#VALUE!"},null,{"$error":"#VALUE!"},null,null,null,{"$error":"#VALUE!"}]
[null,null,null,null,null,null,null,null,null,null,null,null,null,null,null,null,null,null,null,null,null,null,null,null,null,null,null,null,null,null,null,null,null,null,null,null,null,null,null,null,null,null,null,{"$error":"#VALUE!"},{"$error":"#VALUE!"},null,{"$error":"#VALUE!"},null,null,null,{"$error":"#VALUE!"}]
[null,"انتهاء التأمين",":",null,":","حالة التأمين ",":",null,null,"انتهاء التفويض",":",null,null,null,null,null,null,null,null,null,null,null,null,null,null,null,null,null,null,null,null,null,null,null,null,null,null,null,null,null,null,null,null,{"$error":"#VALUE!"},{"$error":"#VALUE!"},null,{"$error":"#VALUE!"},null,null,null,{"$error":"#VALUE!"}]
[null,null,null,null,null,null,null,null,null,null,null,null,null,null,null,null,null,null,null,null,null,null,null,null,null,null,null,null,null,null,null,null,null,null,null,null,null,null,null,null,null,null,null,{"$error":"#VALUE!"},{"$error":"#VALUE!"},null,{"$error":"#VALUE!"},null,null,null,{"$error":"#VALUE!"}]
[null,"انتهاء كارت التشغيل",":",null,":","حالة كارت التشغيل",":",null,null,"الموقع",":",null,null,null,null,null,null,null,null,null,null,null,null,null,null,null,null,null,null,null,null,null,null,null,null,null,null,null,null,null,null,null,null,{"$error":"#VALUE!"},{"$error":"#VALUE!"},null,{"$error":"#VALUE!"},null,null,null,{"$error":"#VALUE!"}]
[null,null,null,null,null,null,null,null,null,null,null,null,null,null,null,null,null,"كود تسريع الملف لان الملف اصبح بطئ جدا",null,null,null,null,null,null,null,null,null,null,null,null,null,null,null,null,null,null,null,null,null,null,null,null,null,{"$error":"#VALUE!"},{"$error":"#VALUE!"},null,{"$error":"#VALUE!"},null,null,null,{"$error":"#VALUE!"}]
[null,"الترخيص ",":",null,":","المهنة ",":",null,null,"جهاز التتبع",":",null,null,null,null,null,null,null,null,null,null,null,null,null,null,null,null,null,null,null,null,null,null,null,null,null,null,null,null,null,null,null,null,{"$error":"#VALUE!"},{"$error":"#VALUE!"},null,{"$error":"#VALUE!"},null,null,null,{"$error":"#VALUE!"}]
[null,null,null,null,null,null,null,null,null,null,null,null,null,null,null,null,null,null,null,null,null,null,null,null,null,null,null,null,null,null,null,null,null,null,null,null,null,null,null,null,null,null,null,{"$error":"#VALUE!"},{"$error":"#VALUE!"},null,{"$error":"#VALUE!"},null,null,null,{"$error":"#VALUE!"}]
[null,"ملاحظات ",":",null,":","حالة الموظف",":",null,null,"رخصة القيادة",":",null,null,null,"بالنسبة لليوزر فورم الأول عند الضغط على الملف يظهر بيانات الاكسل ما الحل في إخفاء بيانات الاكسيل واظهارها فقط عند الضغط علىيها من اليوزر فورم",null,null,null,null,null,null,null,null,null,null,null,null,null,null,null,null,null,null,null,null,null,null,null,null,null,null,null,null,{"$error":"#VALUE!"},{"$error":"#VALUE!"},null,{"$error":"#VALUE!"},null,null,null,{"$error":"#VALUE!"}]
[]
[null,"البيانات المدخلة تم تسجيلها بنائا على الملفات بمكتب قسم الحركة واي استلامات خاصة بتسليم السيارات لابد من كتابة من قام بالتوجيه بالتسليم في خانة الملاحظات ونموذج التسليم",null,null,null,null,null,null,null,"اعتماد مسئول الحركة :"]

{"sheet":"All_Data","index":1,"n_rows":154,"n_cols":59,"rows_kept":154,"cut":false,"hidden":false,"merged":[[1,0,1,7]]}
[]
["بيانات السيارات",null,null,null,null,null,null,null,null,null,null,{"$f":"TODAY()","v":"2022-11-17"},null,null,null,null,null,null,{"$f":"TODAY()","v":"2022-11-17"},null,null,null,null,null,null,null,null,null,null,null,null,null,null,null,null,null,null,null,null,null,null,null,null,null,null,null,null,null,null,null,null,null,null,null,null,null,null,"الرقم التسلسلي","Rows"]
[null,null,null,null,"المطلوب احضار البيانات اللي باللون الأصفر فقط في نموذج HANDOVERFORM عند كتابة الكود في الخلية C6",null,null,null,null,null,null,null,null,null,null,null,null,null,null,null,null,null,null,null,null,null,null,null,null,null,null,null,null,null,null,null,null,null,null,null,null,null,null,null,null,null,null,null,null,null,null,null,null,null,null,null,null,2445682111,{"$f":"MATCH(BF3,E:E,0)","v":{"$error":"#N/A"}}]
["م","كود المعدة","اسم الموظف","الرقم التسلسلي","رقم الإقامة","رقم الجوال","الموقع","وصف الاصل","الموديل","اللون","رقم اللوحة","رقم الهيكل","المالك","الترخيص","انتهاء الفحص","حالة الفحص","انتهاء الاستمارة","حالة الاستمارة","انتهاء التأمين","حالة التأمين","انتهاء كارت التشغيل","حالة كارت التشغيل","رخصة القيادة","انتهاء التفويض","المهنة","حالة الموظف","جهاز التتبع","ملاحظات",null,null,null,null,null,null,null,null,null,null,null,null,null,null,"الفحص ميلادي","المتبقي على الفحص","الاستمارة ميلادي","المتبقي على الاستمارة","التأمين ميلادي","المتبقي على التأمين","الرخصة ميلادي","المتبقي على رخصة القيادة","التفويض ميلادي","المتبقي على التفويض"]
[{"$f":"SUBTOTAL(3,$B$5:B5)","v":1},"CR10","أبو سفيان قادر",727400610,2394531970,"0554348931","وقائي 806","نيسان / بكب غمارتين",2015,"ابيض","ب ح ع  7079","JN6DD23X2FK060158",7009429445,"نقل خاص","2022-08-26",{"$f":"IF(Alldata[[#This Row],[انتهاء الفحص]]=\"\",\"لا يوجد\",IF((Alldata[[#This Row],[انتهاء الفحص]]-$S$2)<0,\"منتهي\",IF((Alldata[[#This Row],[انتهاء الفحص]]-$S$2)<25,\"تجديد\",\"ساري\")))","v":"منتهي"},"2023-03-12",{"$f":"IF(Alldata[[#This Row],[انتهاء الاستمارة]]=\"\",\"لا يوجد\",IF((Alldata[[#This Row],[انتهاء الاستمارة]]-$S$2)<0,\"منتهي\",IF((Alldata[[#This Row],[انتهاء الاستمارة]]-$S$2)<25,\"تجديد\",\"ساري\")))","v":"ساري"},"2023-08-02",{"$f":"IF(Alldata[[#This Row],[انتهاء التأمين]]=\"\",\"لا يوجد\",IF((Alldata[[#This Row],[انتهاء التأمين]]-$S$2)<0,\"منتهي\",IF((Alldata[[#This Row],[انتهاء التأمين]]-$S$2)<25,\"تجديد\",\"ساري\")))","v":"ساري"},null,{"$f":"IF(Alldata[[#This Row],[انتهاء كارت التشغيل]]=\"\",\"لا يوجد\",IF((Alldata[[#This Row],[انتهاء كارت التشغيل]]-$S$2)<0,\"منتهي\",IF((Alldata[[#This Row],[انتهاء كارت التشغيل]]-$S$2)<25,\"تجديد\",\"ساري\")))","v":"لا يوجد"},"خاصة","29/06/1444","مساح","على الكفالة","يوجد","الموظف باجازة",null,null,null,null,null,null,null,null,null,null,null,null,null,null,null,{"$f":"L2-AS5","v":7483},{"$f":"ConvertDate(Q5)","v":"23/05/2002"},null,{"$f":"ConvertDate(S5)","v":"08/10/2002"},null,null,null,{"$f":"ConvertDate(X5)","v":"21/01/2023"}]
[{"$f":"SUBTOTAL(3,$B$5:B6)","v":2},"CR11","سيد حيدر",129356610,2377979717,"0536720251","ورشة بيشة","ايسوزو / بكب جوانب",2016,"ابيض","ب ب ي  8389","MPAEL3919GT032231",7009429445,"نقل خاص","2023-06-23","ساري","2024-04-19","ساري","2023-08-02","ساري",null,"لا يوجد","نقل ثقيل","05/04/1444","سائق شاحنة","على الكفالة","يوجد","حادث",null,null,null,null,null,null,null,null,null,null,null,null,null,null,null,{"$f":"L3-AS6","v":-37791},{"$f":"ConvertDate(Q6)","v":"19/06/2003"},null,{"$f":"ConvertDate(S6)","v":"08/10/2002"},null,null,null,{"$f":"ConvertDate(X6)","v":"30/10/2022"}]
[{"$f":"SUBTOTAL(3,$B$5:B7)","v":2},null,null,null,null,null,null,null,null,null,null,null,null,null,null,{"$f":"IF(Alldata[[#This Row],[انتهاء الفحص]]=\"\",\"لا يوجد\",IF((Alldata[[#This Row],[انتهاء الفحص]]-$S$2)<0,\"منتهي\",IF((Alldata[[#This Row],[انتهاء الفحص]]-$S$2)<25,\"تجديد\",\"ساري\")))","v":"لا يوجد"},null,{"$f":"IF(Alldata[[#This Row],[انتهاء الاستمارة]]=\"\",\"لا يوجد\",IF((Alldata[[#This Row],[انتهاء الاستمارة]]-$S$2)<0,\"منتهي\",IF((Alldata[[#This Row],[انتهاء الاستمارة]]-$S$2)<25,\"تجديد\",\"ساري\")))","v":"لا يوجد"},null,{"$f":"IF(Alldata[[#This Row],[انتهاء التأمين]]=\"\",\"لا يوجد\",IF((Alldata[[#This Row],[انتهاء التأمين]]-$S$2)<0,\"منتهي\",IF((Alldata[[#This Row],[انتهاء التأمين]]-$S$2)<25,\"تجديد\",\"ساري\")))","v":"لا يوجد"},null,{"$f":"IF(Alldata[[#This Row],[انتهاء كارت التشغيل]]=\"\",\"لا يوجد\",IF((Alldata[[#This Row],[انتهاء كارت التشغيل]]-$S$2)<0,\"منتهي\",IF((Alldata[[#This Row],[انتهاء كارت التشغيل]]-$S$2)<25,\"تجديد\",\"ساري\")))","v":"لا يوجد"},null,null,null,null,null,null,null,null,null,null,null,null,null,null,null,null,null,null,null,null,null,{"$error":"#VALUE!"},{"$error":"#VALUE!"},null,{"$error":"#VALUE!"},null,null,null,{"$error":"#VALUE!"}]
[{"$f":"SUBTOTAL(3,$B$5:B8)","v":2},null,null,null,null,null,null,null,null,null,null,null,null,null,null,{"$f":"IF(Alldata[[#This Row],[انتهاء الفحص]]=\"\",\"لا يوجد\",IF((Alldata[[#This Row],[انتهاء الفحص]]-$S$2)<0,\"منتهي\",IF((Alldata[[#This Row],[انتهاء الفحص]]-$S$2)<25,\"تجديد\",\"ساري\")))","v":"لا يوجد"},null,{"$f":"IF(Alldata[[#This Row],[انتهاء الاستمارة]]=\"\",\"لا يوجد\",IF((Alldata[[#This Row],[انتهاء الاستمارة]]-$S$2)<0,\"منتهي\",IF((Alldata[[#This Row],[انتهاء الاستمارة]]-$S$2)<25,\"تجديد\",\"ساري\")))","v":"لا يوجد"},null,{"$f":"IF(Alldata[[#This Row],[انتهاء التأمين]]=\"\",\"لا يوجد\",IF((Alldata[[#This Row],[انتهاء التأمين]]-$S$2)<0,\"منتهي\",IF((Alldata[[#This Row],[انتهاء التأمين]]-$S$2)<25,\"تجديد\",\"ساري\")))","v":"لا يوجد"},null,{"$f":"IF(Alldata[[#This Row],[انتهاء كارت التشغيل]]=\"\",\"لا يوجد\",IF((Alldata[[#This Row],[انتهاء كارت التشغيل]]-$S$2)<0,\"منتهي\",IF((Alldata[[#This Row],[انتهاء كارت التشغيل]]-$S$2)<25,\"تجديد\",\"ساري\")))","v":"لا يوجد"},null,null,null,null,null,null,null,null,null,null,null,null,null,null,null,null,null,null,null,null,null,{"$error":"#VALUE!"},{"$error":"#VALUE!"},null,{"$error":"#VALUE!"},null,null,null,{"$error":"#VALUE!"}]
[{"$f":"SUBTOTAL(3,$B$5:B9)","v":2},null,null,null,null,null,null,null,null,null,null,null,null,null,null,{"$f":"IF(Alldata[[#This Row],[انتهاء الفحص]]=\"\",\"لا يوجد\",IF((Alldata[[#This Row],[انتهاء الفحص]]-$S$2)<0,\"منتهي\",IF((Alldata[[#This Row],[انتهاء الفحص]]-$S$2)<25,\"تجديد\",\"ساري\")))","v":"لا يوجد"},null,{"$f":"IF(Alldata[[#This Row],[انتهاء الاستمارة]]=\"\",\"لا يوجد\",IF((Alldata[[#This Row],[انتهاء الاستمارة]]-$S$2)<0,\"منتهي\",IF((Alldata[[#This Row],[انتهاء الاستمارة]]-$S$2)<25,\"تجديد\",\"ساري\")))","v":"لا يوجد"},null,{"$f":"IF(Alldata[[#This Row],[انتهاء التأمين]]=\"\",\"لا يوجد\",IF((Alldata[[#This Row],[انتهاء التأمين]]-$S$2)<0,\"منتهي\",IF((Alldata[[#This Row],[انتهاء التأمين]]-$S$2)<25,\"تجديد\",\"ساري\")))","v":"لا يوجد"},null,{"$f":"IF(Alldata[[#This Row],[انتهاء كارت التشغيل]]=\"\",\"لا يوجد\",IF((Alldata[[#This Row],[انتهاء كارت التشغيل]]-$S$2)<0,\"منتهي\",IF((Alldata[[#This Row],[انتهاء كارت التشغيل]]-$S$2)<25,\"تجديد\",\"ساري\")))","v":"لا يوجد"},null,null,null,null,null,null,null,null,null,null,null,null,null,null,null,null,null,null,null,null,null,{"$error":"#VALUE!"},{"$error":"#VALUE!"},null,{"$error":"#VALUE!"},null,null,null,{"$error":"#VALUE!"}]
[{"$f":"SUBTOTAL(3,$B$5:B10)","v":2},null,null,null,null,null,null,null,null,null,null,null,null,null,null,"ساري",null,{"$f":"IF(Alldata[[#This Row],[انتهاء الاستمارة]]=\"\",\"لا يوجد\",IF((Alldata[[#This Row],[انتهاء الاستمارة]]-$S$2)<0,\"منتهي\",IF((Alldata[[#This Row],[انتهاء الاستمارة]]-$S$2)<25,\"تجديد\",\"ساري\")))","v":"لا يوجد"},null,"ساري",null,"لا يوجد",null,null,null,null,null,null,null,null,null,null,null,null,null,null,null,null,null,null,null,null,null,{"$error":"#VALUE!"},{"$error":"#VALUE!"},null,{"$error":"#VALUE!"},null,null,null,{"$error":"#VALUE!"}]
[{"$f":"SUBTOTAL(3,$B$5:B11)","v":2},null,null,null,null,null,null,null,null,null,null,null,null,null,null,{"$f":"IF(Alldata[[#This Row],[انتهاء الفحص]]=\"\",\"لا يوجد\",IF((Alldata[[#This Row],[انتهاء الفحص]]-$S$2)<0,\"منتهي\",IF((Alldata[[#This Row],[انتهاء الفحص]]-$S$2)<25,\"تجديد\",\"ساري\")))","v":"لا يوجد"},null,{"$f":"IF(Alldata[[#This Row],[انتهاء الاستمارة]]=\"\",\"لا يوجد\",IF((Alldata[[#This Row],[انتهاء الاستمارة]]-$S$2)<0,\"منتهي\",IF((Alldata[[#This Row],[انتهاء الاستمارة]]-$S$2)<25,\"تجديد\",\"ساري\")))","v":"لا يوجد"},null,{"$f":"IF(Alldata[[#This Row],[انتهاء التأمين]]=\"\",\"لا يوجد\",IF((Alldata[[#This Row],[انتهاء التأمين]]-$S$2)<0,\"منتهي\",IF((Alldata[[#This Row],[انتهاء التأمين]]-$S$2)<25,\"تجديد\",\"ساري\")))","v":"لا يوجد"},null,{"$f":"IF(Alldata[[#This Row],[انتهاء كارت التشغيل]]=\"\",\"لا يوجد\",IF((Alldata[[#This Row],[انتهاء كارت التشغيل]]-$S$2)<0,\"منتهي\",IF((Alldata[[#This Row],[انتهاء كارت التشغيل]]-$S$2)<25,\"تجديد\",\"ساري\")))","v":"لا يوجد"},null,null,null,null,null,null,null,null,null,null,null,null,null,null,null,null,null,null,null,null,null,{"$error":"#VALUE!"},{"$error":"#VALUE!"},null,{"$error":"#VALUE!"},null,null,null,{"$error":"#VALUE!"}]
[{"$f":"SUBTOTAL(3,$B$5:B12)","v":2},null,null,null,null,null,null,null,null,null,null,null,null,null,null,{"$f":"IF(Alldata[[#This Row],[انتهاء الفحص]]=\"\",\"لا يوجد\",IF((Alldata[[#This Row],[انتهاء الفحص]]-$S$2)<0,\"منتهي\",IF((Alldata[[#This Row],[انتهاء الفحص]]-$S$2)<25,\"تجديد\",\"ساري\")))","v":"لا يوجد"},null,{"$f":"IF(Alldata[[#This Row],[انتهاء الاستمارة]]=\"\",\"لا يوجد\",IF((Alldata[[#This Row],[انتهاء الاستمارة]]-$S$2)<0,\"منتهي\",IF((Alldata[[#This Row],[انتهاء الاستمارة]]-$S$2)<25,\"تجديد\",\"ساري\")))","v":"لا يوجد"},null,{"$f":"IF(Alldata[[#This Row],[انتهاء التأمين]]=\"\",\"لا يوجد\",IF((Alldata[[#This Row],[انتهاء التأمين]]-$S$2)<0,\"منتهي\",IF((Alldata[[#This Row],[انتهاء التأمين]]-$S$2)<25,\"تجديد\",\"ساري\")))","v":"لا يوجد"},null,{"$f":"IF(Alldata[[#This Row],[انتهاء كارت التشغيل]]=\"\",\"لا يوجد\",IF((Alldata[[#This Row],[انتهاء كارت التشغيل]]-$S$2)<0,\"منتهي\",IF((Alldata[[#This Row],[انتهاء كارت التشغيل]]-$S$2)<25,\"تجديد\",\"ساري\")))","v":"لا يوجد"},null,null,null,null,null,null,null,null,null,null,null,null,null,null,null,null,null,null,null,null,null,{"$error":"#VALUE!"},{"$error":"#VALUE!"},null,{"$error":"#VALUE!"},null,null,null,{"$error":"#VALUE!"}]
[{"$f":"SUBTOTAL(3,$B$5:B13)","v":2},null,null,null,null,null,null,null,null,null,null,null,null,null,null,{"$f":"IF(Alldata[[#This Row],[انتهاء الفحص]]=\"\",\"لا يوجد\",IF((Alldata[[#This Row],[انتهاء الفحص]]-$S$2)<0,\"منتهي\",IF((Alldata[[#This Row],[انتهاء الفحص]]-$S$2)<25,\"تجديد\",\"ساري\")))","v":"لا يوجد"},null,{"$f":"IF(Alldata[[#This Row],[انتهاء الاستمارة]]=\"\",\"لا يوجد\",IF((Alldata[[#This Row],[انتهاء الاستمارة]]-$S$2)<0,\"منتهي\",IF((Alldata[[#This Row],[انتهاء الاستمارة]]-$S$2)<25,\"تجديد\",\"ساري\")))","v":"لا يوجد"},null,{"$f":"IF(Alldata[[#This Row],[انتهاء التأمين]]=\"\",\"لا يوجد\",IF((Alldata[[#This Row],[انتهاء التأمين]]-$S$2)<0,\"منتهي\",IF((Alldata[[#This Row],[انتهاء التأمين]]-$S$2)<25,\"تجديد\",\"ساري\")))","v":"لا يوجد"},null,{"$f":"IF(Alldata[[#This Row],[انتهاء كارت التشغيل]]=\"\",\"لا يوجد\",IF((Alldata[[#This Row],[انتهاء كارت التشغيل]]-$S$2)<0,\"منتهي\",IF((Alldata[[#This Row],[انتهاء كارت التشغيل]]-$S$2)<25,\"تجديد\",\"ساري\")))","v":"لا يوجد"},null,null,null,null,null,null,null,null,null,null,null,null,null,null,null,null,null,null,null,null,null,{"$error":"#VALUE!"},{"$error":"#VALUE!"},null,{"$error":"#VALUE!"},null,null,null,{"$error":"#VALUE!"}]
[{"$f":"SUBTOTAL(3,$B$5:B14)","v":2},null,null,null,null,null,null,null,null,null,null,null,null,null,null,{"$f":"IF(Alldata[[#This Row],[انتهاء الفحص]]=\"\",\"لا يوجد\",IF((Alldata[[#This Row],[انتهاء الفحص]]-$S$2)<0,\"منتهي\",IF((Alldata[[#This Row],[انتهاء الفحص]]-$S$2)<25,\"تجديد\",\"ساري\")))","v":"لا يوجد"},null,{"$f":"IF(Alldata[[#This Row],[انتهاء الاستمارة]]=\"\",\"لا يوجد\",IF((Alldata[[#This Row],[انتهاء الاستمارة]]-$S$2)<0,\"منتهي\",IF((Alldata[[#This Row],[انتهاء الاستمارة]]-$S$2)<25,\"تجديد\",\"ساري\")))","v":"لا يوجد"},null,{"$f":"IF(Alldata[[#This Row],[انتهاء التأمين]]=\"\",\"لا يوجد\",IF((Alldata[[#This Row],[انتهاء التأمين]]-$S$2)<0,\"منتهي\",IF((Alldata[[#This Row],[انتهاء التأمين]]-$S$2)<25,\"تجديد\",\"ساري\")))","v":"لا يوجد"},null,{"$f":"IF(Alldata[[#This Row],[انتهاء كارت التشغيل]]=\"\",\"لا يوجد\",IF((Alldata[[#This Row],[انتهاء كارت التشغيل]]-$S$2)<0,\"منتهي\",IF((Alldata[[#This Row],[انتهاء كارت التشغيل]]-$S$2)<25,\"تجديد\",\"ساري\")))","v":"لا يوجد"},null,null,null,null,null,null,null,null,null,null,null,null,null,null,null,null,null,null,null,null,null,{"$error":"#VALUE!"},{"$error":"#VALUE!"},null,{"$error":"#VALUE!"},null,null,null,{"$error":"#VALUE!"}]
[{"$f":"SUBTOTAL(3,$B$5:B15)","v":2},null,null,null,null,null,null,null,null,null,null,null,null,null,null,{"$f":"IF(Alldata[[#This Row],[انتهاء الفحص]]=\"\",\"لا يوجد\",IF((Alldata[[#This Row],[انتهاء الفحص]]-$S$2)<0,\"منتهي\",IF((Alldata[[#This Row],[انتهاء الفحص]]-$S$2)<25,\"تجديد\",\"ساري\")))","v":"لا يوجد"},null,{"$f":"IF(Alldata[[#This Row],[انتهاء الاستمارة]]=\"\",\"لا يوجد\",IF((Alldata[[#This Row],[انتهاء الاستمارة]]-$S$2)<0,\"منتهي\",IF((Alldata[[#This Row],[انتهاء الاستمارة]]-$S$2)<25,\"تجديد\",\"ساري\")))","v":"لا يوجد"},null,{"$f":"IF(Alldata[[#This Row],[انتهاء التأمين]]=\"\",\"لا يوجد\",IF((Alldata[[#This Row],[انتهاء التأمين]]-$S$2)<0,\"منتهي\",IF((Alldata[[#This Row],[انتهاء التأمين]]-$S$2)<25,\"تجديد\",\"ساري\")))","v":"لا يوجد"},null,{"$f":"IF(Alldata[[#This Row],[انتهاء كارت التشغيل]]=\"\",\"لا يوجد\",IF((Alldata[[#This Row],[انتهاء كارت التشغيل]]-$S$2)<0,\"منتهي\",IF((Alldata[[#This Row],[انتهاء كارت التشغيل]]-$S$2)<25,\"تجديد\",\"ساري\")))","v":"لا يوجد"},null,null,null,null,null,null,null,null,null,null,null,null,null,null,null,null,null,null,null,null,null,{"$error":"#VALUE!"},{"$error":"#VALUE!"},null,{"$error":"#VALUE!"},null,null,null,{"$error":"#VALUE!"}]
[{"$f":"SUBTOTAL(3,$B$5:B16)","v":2},null,null,null,null,null,null,null,null,null,null,null,null,null,null,{"$f":"IF(Alldata[[#This Row],[انتهاء الفحص]]=\"\",\"لا يوجد\",IF((Alldata[[#This Row],[انتهاء الفحص]]-$S$2)<0,\"منتهي\",IF((Alldata[[#This Row],[انتهاء الفحص]]-$S$2)<25,\"تجديد\",\"ساري\")))","v":"لا يوجد"},null,{"$f":"IF(Alldata[[#This Row],[انتهاء الاستمارة]]=\"\",\"لا يوجد\",IF((Alldata[[#This Row],[انتهاء الاستمارة]]-$S$2)<0,\"منتهي\",IF((Alldata[[#This Row],[انتهاء الاستمارة]]-$S$2)<25,\"تجديد\",\"ساري\")))","v":"لا يوجد"},null,{"$f":"IF(Alldata[[#This Row],[انتهاء التأمين]]=\"\",\"لا يوجد\",IF((Alldata[[#This Row],[انتهاء التأمين]]-$S$2)<0,\"منتهي\",IF((Alldata[[#This Row],[انتهاء التأمين]]-$S$2)<25,\"تجديد\",\"ساري\")))","v":"لا يوجد"},null,{"$f":"IF(Alldata[[#This Row],[انتهاء كارت التشغيل]]=\"\",\"لا يوجد\",IF((Alldata[[#This Row],[انتهاء كارت التشغيل]]-$S$2)<0,\"منتهي\",IF((Alldata[[#This Row],[انتهاء كارت التشغيل]]-$S$2)<25,\"تجديد\",\"ساري\")))","v":"لا يوجد"},null,null,null,null,null,null,null,null,null,null,null,null,null,null,null,null,null,null,null,null,null,{"$error":"#VALUE!"},{"$error":"#VALUE!"},null,{"$error":"#VALUE!"},null,null,null,{"$error":"#VALUE!"}]
[{"$f":"SUBTOTAL(3,$B$5:B17)","v":2},null,null,null,null,null,null,null,null,null,null,null,null,null,null,{"$f":"IF(Alldata[[#This Row],[انتهاء الفحص]]=\"\",\"لا يوجد\",IF((Alldata[[#This Row],[انتهاء الفحص]]-$S$2)<0,\"منتهي\",IF((Alldata[[#This Row],[انتهاء الفحص]]-$S$2)<25,\"تجديد\",\"ساري\")))","v":"لا يوجد"},null,{"$f":"IF(Alldata[[#This Row],[انتهاء الاستمارة]]=\"\",\"لا يوجد\",IF((Alldata[[#This Row],[انتهاء الاستمارة]]-$S$2)<0,\"منتهي\",IF((Alldata[[#This Row],[انتهاء الاستمارة]]-$S$2)<25,\"تجديد\",\"ساري\")))","v":"لا يوجد"},null,{"$f":"IF(Alldata[[#This Row],[انتهاء التأمين]]=\"\",\"لا يوجد\",IF((Alldata[[#This Row],[انتهاء التأمين]]-$S$2)<0,\"منتهي\",IF((Alldata[[#This Row],[انتهاء التأمين]]-$S$2)<25,\"تجديد\",\"ساري\")))","v":"لا يوجد"},null,{"$f":"IF(Alldata[[#This Row],[انتهاء كارت التشغيل]]=\"\",\"لا يوجد\",IF((Alldata[[#This Row],[انتهاء كارت التشغيل]]-$S$2)<0,\"منتهي\",IF((Alldata[[#This Row],[انتهاء كارت التشغيل]]-$S$2)<25,\"تجديد\",\"ساري\")))","v":"لا يوجد"},null,null,null,null,null,null,null,null,null,null,null,null,null,null,null,null,null,null,null,null,null,{"$error":"#VALUE!"},{"$error":"#VALUE!"},null,{"$error":"#VALUE!"},null,null,null,{"$error":"#VALUE!"}]
[{"$f":"SUBTOTAL(3,$B$5:B18)","v":2},null,null,null,null,null,null,null,null,null,null,null,null,null,null,{"$f":"IF(Alldata[[#This Row],[انتهاء الفحص]]=\"\",\"لا يوجد\",IF((Alldata[[#This Row],[انتهاء الفحص]]-$S$2)<0,\"منتهي\",IF((Alldata[[#This Row],[انتهاء الفحص]]-$S$2)<25,\"تجديد\",\"ساري\")))","v":"لا يوجد"},null,{"$f":"IF(Alldata[[#This Row],[انتهاء الاستمارة]]=\"\",\"لا يوجد\",IF((Alldata[[#This Row],[انتهاء الاستمارة]]-$S$2)<0,\"منتهي\",IF((Alldata[[#This Row],[انتهاء الاستمارة]]-$S$2)<25,\"تجديد\",\"ساري\")))","v":"لا يوجد"},null,{"$f":"IF(Alldata[[#This Row],[انتهاء التأمين]]=\"\",\"لا يوجد\",IF((Alldata[[#This Row],[انتهاء التأمين]]-$S$2)<0,\"منتهي\",IF((Alldata[[#This Row],[انتهاء التأمين]]-$S$2)<25,\"تجديد\",\"ساري\")))","v":"لا يوجد"},null,{"$f":"IF(Alldata[[#This Row],[انتهاء كارت التشغيل]]=\"\",\"لا يوجد\",IF((Alldata[[#This Row],[انتهاء كارت التشغيل]]-$S$2)<0,\"منتهي\",IF((Alldata[[#This Row],[انتهاء كارت التشغيل]]-$S$2)<25,\"تجديد\",\"ساري\")))","v":"لا يوجد"},null,null,null,null,null,null,null,null,null,null,null,null,null,null,null,null,null,null,null,null,null,{"$error":"#VALUE!"},{"$error":"#VALUE!"},null,{"$error":"#VALUE!"},null,null,null,{"$error":"#VALUE!"}]
[{"$f":"SUBTOTAL(3,$B$5:B19)","v":2},null,null,null,null,null,null,null,null,null,null,null,null,null,null,{"$f":"IF(Alldata[[#This Row],[انتهاء الفحص]]=\"\",\"لا يوجد\",IF((Alldata[[#This Row],[انتهاء الفحص]]-$S$2)<0,\"منتهي\",IF((Alldata[[#This Row],[انتهاء الفحص]]-$S$2)<25,\"تجديد\",\"ساري\")))","v":"لا يوجد"},null,{"$f":"IF(Alldata[[#This Row],[انتهاء الاستمارة]]=\"\",\"لا يوجد\",IF((Alldata[[#This Row],[انتهاء الاستمارة]]-$S$2)<0,\"منتهي\",IF((Alldata[[#This Row],[انتهاء الاستمارة]]-$S$2)<25,\"تجديد\",\"ساري\")))","v":"لا يوجد"},null,{"$f":"IF(Alldata[[#This Row],[انتهاء التأمين]]=\"\",\"لا يوجد\",IF((Alldata[[#This Row],[انتهاء التأمين]]-$S$2)<0,\"منتهي\",IF((Alldata[[#This Row],[انتهاء التأمين]]-$S$2)<25,\"تجديد\",\"ساري\")))","v":"لا يوجد"},null,{"$f":"IF(Alldata[[#This Row],[انتهاء كارت التشغيل]]=\"\",\"لا يوجد\",IF((Alldata[[#This Row],[انتهاء كارت التشغيل]]-$S$2)<0,\"منتهي\",IF((Alldata[[#This Row],[انتهاء كارت التشغيل]]-$S$2)<25,\"تجديد\",\"ساري\")))","v":"لا يوجد"},null,null,null,null,null,null,null,null,null,null,null,null,null,null,null,null,null,null,null,null,null,{"$error":"#VALUE!"},{"$error":"#VALUE!"},null,{"$error":"#VALUE!"},null,null,null,{"$error":"#VALUE!"}]
[{"$f":"SUBTOTAL(3,$B$5:B20)","v":2},null,null,null,null,null,null,null,null,null,null,null,null,null,null,{"$f":"IF(Alldata[[#This Row],[انتهاء الفحص]]=\"\",\"لا يوجد\",IF((Alldata[[#This Row],[انتهاء الفحص]]-$S$2)<0,\"منتهي\",IF((Alldata[[#This Row],[انتهاء الفحص]]-$S$2)<25,\"تجديد\",\"ساري\")))","v":"لا يوجد"},null,{"$f":"IF(Alldata[[#This Row],[انتهاء الاستمارة]]=\"\",\"لا يوجد\",IF((Alldata[[#This Row],[انتهاء الاستمارة]]-$S$2)<0,\"منتهي\",IF((Alldata[[#This Row],[انتهاء الاستمارة]]-$S$2)<25,\"تجديد\",\"ساري\")))","v":"لا يوجد"},null,{"$f":"IF(Alldata[[#This Row],[انتهاء التأمين]]=\"\",\"لا يوجد\",IF((Alldata[[#This Row],[انتهاء التأمين]]-$S$2)<0,\"منتهي\",IF((Alldata[[#This Row],[انتهاء التأمين]]-$S$2)<25,\"تجديد\",\"ساري\")))","v":"لا يوجد"},null,"لا يوجد",null,null,null,null,null,null,null,null,null,null,null,null,null,null,null,null,null,null,null,null,null,{"$error":"#VALUE!"},{"$error":"#VALUE!"},null,{"$error":"#VALUE!"},null,null,null,{"$error":"#VALUE!"}]
[{"$f":"SUBTOTAL(3,$B$5:B21)","v":2},null,null,null,null,null,null,null,null,null,null,null,null,null,null,{"$f":"IF(Alldata[[#This Row],[انتهاء الفحص]]=\"\",\"لا يوجد\",IF((Alldata[[#This Row],[انتهاء الفحص]]-$S$2)<0,\"منتهي\",IF((Alldata[[#This Row],[انتهاء الفحص]]-$S$2)<25,\"تجديد\",\"ساري\")))","v":"لا يوجد"},null,{"$f":"IF(Alldata[[#This Row],[انتهاء الاستمارة]]=\"\",\"لا يوجد\",IF((Alldata[[#This Row],[انتهاء الاستمارة]]-$S$2)<0,\"منتهي\",IF((Alldata[[#This Row],[انتهاء الاستمارة]]-$S$2)<25,\"تجديد\",\"ساري\")))","v":"لا يوجد"},null,{"$f":"IF(Alldata[[#This Row],[انتهاء التأمين]]=\"\",\"لا يوجد\",IF((Alldata[[#This Row],[انتهاء التأمين]]-$S$2)<0,\"منتهي\",IF((Alldata[[#This Row],[انتهاء التأمين]]-$S$2)<25,\"تجديد\",\"ساري\")))","v":"لا يوجد"},null,{"$f":"IF(Alldata[[#This Row],[انتهاء كارت التشغيل]]=\"\",\"لا يوجد\",IF((Alldata[[#This Row],[انتهاء كارت التشغيل]]-$S$2)<0,\"منتهي\",IF((Alldata[[#This Row],[انتهاء كارت التشغيل]]-$S$2)<25,\"تجديد\",\"ساري\")))","v":"لا يوجد"},null,null,null,null,null,null,null,null,null,null,null,null,null,null,null,null,null,null,null,null,null,{"$error":"#VALUE!"},{"$error":"#VALUE!"},null,{"$error":"#VALUE!"},null,null,null,{"$error":"#VALUE!"}]
[{"$f":"SUBTOTAL(3,$B$5:B22)","v":2},null,null,null,null,null,null,null,null,null,null,null,null,null,null,{"$f":"IF(Alldata[[#This Row],[انتهاء الفحص]]=\"\",\"لا يوجد\",IF((Alldata[[#This Row],[انتهاء الفحص]]-$S$2)<0,\"منتهي\",IF((Alldata[[#This Row],[انتهاء الفحص]]-$S$2)<25,\"تجديد\",\"ساري\")))","v":"لا يوجد"},null,{"$f":"IF(Alldata[[#This Row],[انتهاء الاستمارة]]=\"\",\"لا يوجد\",IF((Alldata[[#This Row],[انتهاء الاستمارة]]-$S$2)<0,\"منتهي\",IF((Alldata[[#This Row],[انتهاء الاستمارة]]-$S$2)<25,\"تجديد\",\"ساري\")))","v":"لا يوجد"},null,{"$f":"IF(Alldata[[#This Row],[انتهاء التأمين]]=\"\",\"لا يوجد\",IF((Alldata[[#This Row],[انتهاء التأمين]]-$S$2)<0,\"منتهي\",IF((Alldata[[#This Row],[انتهاء التأمين]]-$S$2)<25,\"تجديد\",\"ساري\")))","v":"لا يوجد"},null,{"$f":"IF(Alldata[[#This Row],[انتهاء كارت التشغيل]]=\"\",\"لا يوجد\",IF((Alldata[[#This Row],[انتهاء كارت التشغيل]]-$S$2)<0,\"منتهي\",IF((Alldata[[#This Row],[انتهاء كارت التشغيل]]-$S$2)<25,\"تجديد\",\"ساري\")))","v":"لا يوجد"},null,null,null,null,null,null,null,null,null,null,null,null,null,null,null,null,null,null,null,null,null,{"$error":"#VALUE!"},{"$error":"#VALUE!"},null,{"$error":"#VALUE!"},null,null,null,{"$error":"#VALUE!"}]
[{"$f":"SUBTOTAL(3,$B$5:B23)","v":2},null,null,null,null,null,null,null,null,null,null,null,null,null,null,{"$f":"IF(Alldata[[#This Row],[انتهاء الفحص]]=\"\",\"لا يوجد\",IF((Alldata[[#This Row],[انتهاء الفحص]]-$S$2)<0,\"منتهي\",IF((Alldata[[#This Row],[انتهاء الفحص]]-$S$2)<25,\"تجديد\",\"ساري\")))","v":"لا يوجد"},null,{"$f":"IF(Alldata[[#This Row],[انتهاء الاستمارة]]=\"\",\"لا يوجد\",IF((Alldata[[#This Row],[انتهاء الاستمارة]]-$S$2)<0,\"منتهي\",IF((Alldata[[#This Row],[انتهاء الاستمارة]]-$S$2)<25,\"تجديد\",\"ساري\")))","v":"لا يوجد"},null,{"$f":"IF(Alldata[[#This Row],[انتهاء التأمين]]=\"\",\"لا يوجد\",IF((Alldata[[#This Row],[انتهاء التأمين]]-$S$2)<0,\"منتهي\",IF((Alldata[[#This Row],[انتهاء التأمين]]-$S$2)<25,\"تجديد\",\"ساري\")))","v":"لا يوجد"},null,{"$f":"IF(Alldata[[#This Row],[انتهاء كارت التشغيل]]=\"\",\"لا يوجد\",IF((Alldata[[#This Row],[انتهاء كارت التشغيل]]-$S$2)<0,\"منتهي\",IF((Alldata[[#This Row],[انتهاء كارت التشغيل]]-$S$2)<25,\"تجديد\",\"ساري\")))","v":"لا يوجد"},null,null,null,null,null,null,null,null,null,null,null,null,null,null,null,null,null,null,null,null,null,{"$error":"#VALUE!"},{"$error":"#VALUE!"},null,{"$error":"#VALUE!"},null,null,null,{"$error":"#VALUE!"}]
[{"$f":"SUBTOTAL(3,$B$5:B24)","v":2},null,null,null,null,null,null,null,null,null,null,null,null,null,null,{"$f":"IF(Alldata[[#This Row],[انتهاء الفحص]]=\"\",\"لا يوجد\",IF((Alldata[[#This Row],[انتهاء الفحص]]-$S$2)<0,\"منتهي\",IF((Alldata[[#This Row],[انتهاء الفحص]]-$S$2)<25,\"تجديد\",\"ساري\")))","v":"لا يوجد"},null,{"$f":"IF(Alldata[[#This Row],[انتهاء الاستمارة]]=\"\",\"لا يوجد\",IF((Alldata[[#This Row],[انتهاء الاستمارة]]-$S$2)<0,\"منتهي\",IF((Alldata[[#This Row],[انتهاء الاستمارة]]-$S$2)<25,\"تجديد\",\"ساري\")))","v":"لا يوجد"},null,{"$f":"IF(Alldata[[#This Row],[انتهاء التأمين]]=\"\",\"لا يوجد\",IF((Alldata[[#This Row],[انتهاء التأمين]]-$S$2)<0,\"منتهي\",IF((Alldata[[#This Row],[انتهاء التأمين]]-$S$2)<25,\"تجديد\",\"ساري\")))","v":"لا يوجد"},null,{"$f":"IF(Alldata[[#This Row],[انتهاء كارت التشغيل]]=\"\",\"لا يوجد\",IF((Alldata[[#This Row],[انتهاء كارت التشغيل]]-$S$2)<0,\"منتهي\",IF((Alldata[[#This Row],[انتهاء كارت التشغيل]]-$S$2)<25,\"تجديد\",\"ساري\")))","v":"لا يوجد"},null,null,null,null,null,null,null,null,null,null,null,null,null,null,null,null,null,null,null,null,null,{"$error":"#VALUE!"},{"$error":"#VALUE!"},null,{"$error":"#VALUE!"},null,null,null,{"$error":"#VALUE!"}]
[{"$f":"SUBTOTAL(3,$B$5:B25)","v":2},null,null,null,null,null,null,null,null,null,null,null,null,null,null,{"$f":"IF(Alldata[[#This Row],[انتهاء الفحص]]=\"\",\"لا يوجد\",IF((Alldata[[#This Row],[انتهاء الفحص]]-$S$2)<0,\"منتهي\",IF((Alldata[[#This Row],[انتهاء الفحص]]-$S$2)<25,\"تجديد\",\"ساري\")))","v":"لا يوجد"},null,{"$f":"IF(Alldata[[#This Row],[انتهاء الاستمارة]]=\"\",\"لا يوجد\",IF((Alldata[[#This Row],[انتهاء الاستمارة]]-$S$2)<0,\"منتهي\",IF((Alldata[[#This Row],[انتهاء الاستمارة]]-$S$2)<25,\"تجديد\",\"ساري\")))","v":"لا يوجد"},null,{"$f":"IF(Alldata[[#This Row],[انتهاء التأمين]]=\"\",\"لا يوجد\",IF((Alldata[[#This Row],[انتهاء التأمين]]-$S$2)<0,\"منتهي\",IF((Alldata[[#This Row],[انتهاء التأمين]]-$S$2)<25,\"تجديد\",\"ساري\")))","v":"لا يوجد"},null,{"$f":"IF(Alldata[[#This Row],[انتهاء كارت التشغيل]]=\"\",\"لا يوجد\",IF((Alldata[[#This Row],[انتهاء كارت التشغيل]]-$S$2)<0,\"منتهي\",IF((Alldata[[#This Row],[انتهاء كارت التشغيل]]-$S$2)<25,\"تجديد\",\"ساري\")))","v":"لا يوجد"},null,null,null,null,null,null,null,null,null,null,null,null,null,null,null,null,null,null,null,null,null,{"$error":"#VALUE!"},{"$error":"#VALUE!"},null,{"$error":"#VALUE!"},null,null,null,{"$error":"#VALUE!"}]
[{"$f":"SUBTOTAL(3,$B$5:B26)","v":2},null,null,null,null,null,null,null,null,null,null,null,null,null,null,{"$f":"IF(Alldata[[#This Row],[انتهاء الفحص]]=\"\",\"لا يوجد\",IF((Alldata[[#This Row],[انتهاء الفحص]]-$S$2)<0,\"منتهي\",IF((Alldata[[#This Row],[انتهاء الفحص]]-$S$2)<25,\"تجديد\",\"ساري\")))","v":"لا يوجد"},null,{"$f":"IF(Alldata[[#This Row],[انتهاء الاستمارة]]=\"\",\"لا يوجد\",IF((Alldata[[#This Row],[انتهاء الاستمارة]]-$S$2)<0,\"منتهي\",IF((Alldata[[#This Row],[انتهاء الاستمارة]]-$S$2)<25,\"تجديد\",\"ساري\")))","v":"لا يوجد"},null,{"$f":"IF(Alldata[[#This Row],[انتهاء التأمين]]=\"\",\"لا يوجد\",IF((Alldata[[#This Row],[انتهاء التأمين]]-$S$2)<0,\"منتهي\",IF((Alldata[[#This Row],[انتهاء التأمين]]-$S$2)<25,\"تجديد\",\"ساري\")))","v":"لا يوجد"},null,{"$f":"IF(Alldata[[#This Row],[انتهاء كارت التشغيل]]=\"\",\"لا يوجد\",IF((Alldata[[#This Row],[انتهاء كارت التشغيل]]-$S$2)<0,\"منتهي\",IF((Alldata[[#This Row],[انتهاء كارت التشغيل]]-$S$2)<25,\"تجديد\",\"ساري\")))","v":"لا يوجد"},null,null,null,null,null,null,null,null,null,null,null,null,null,null,null,null,null,null,null,null,null,{"$error":"#VALUE!"},{"$error":"#VALUE!"},null,{"$error":"#VALUE!"},null,null,null,{"$error":"#VALUE!"}]
[{"$f":"SUBTOTAL(3,$B$5:B27)","v":2},null,null,null,null,null,null,null,null,null,null,null,null,null,null,{"$f":"IF(Alldata[[#This Row],[انتهاء الفحص]]=\"\",\"لا يوجد\",IF((Alldata[[#This Row],[انتهاء الفحص]]-$S$2)<0,\"منتهي\",IF((Alldata[[#This Row],[انتهاء الفحص]]-$S$2)<25,\"تجديد\",\"ساري\")))","v":"لا يوجد"},null,{"$f":"IF(Alldata[[#This Row],[انتهاء الاستمارة]]=\"\",\"لا يوجد\",IF((Alldata[[#This Row],[انتهاء الاستمارة]]-$S$2)<0,\"منتهي\",IF((Alldata[[#This Row],[انتهاء الاستمارة]]-$S$2)<25,\"تجديد\",\"ساري\")))","v":"لا يوجد"},null,{"$f":"IF(Alldata[[#This Row],[انتهاء التأمين]]=\"\",\"لا يوجد\",IF((Alldata[[#This Row],[انتهاء التأمين]]-$S$2)<0,\"منتهي\",IF((Alldata[[#This Row],[انتهاء التأمين]]-$S$2)<25,\"تجديد\",\"ساري\")))","v":"لا يوجد"},null,{"$f":"IF(Alldata[[#This Row],[انتهاء كارت التشغيل]]=\"\",\"لا يوجد\",IF((Alldata[[#This Row],[انتهاء كارت التشغيل]]-$S$2)<0,\"منتهي\",IF((Alldata[[#This Row],[انتهاء كارت التشغيل]]-$S$2)<25,\"تجديد\",\"ساري\")))","v":"لا يوجد"},null,null,null,null,null,null,null,null,null,null,null,null,null,null,null,null,null,null,null,null,null,{"$error":"#VALUE!"},{"$error":"#VALUE!"},null,{"$error":"#VALUE!"},null,null,null,{"$error":"#VALUE!"}]
[{"$f":"SUBTOTAL(3,$B$5:B28)","v":2},null,null,null,null,null,null,null,null,null,null,null,null,null,null,{"$f":"IF(Alldata[[#This Row],[انتهاء الفحص]]=\"\",\"لا يوجد\",IF((Alldata[[#This Row],[انتهاء الفحص]]-$S$2)<0,\"منتهي\",IF((Alldata[[#This Row],[انتهاء الفحص]]-$S$2)<25,\"تجديد\",\"ساري\")))","v":"لا يوجد"},null,{"$f":"IF(Alldata[[#This Row],[انتهاء الاستمارة]]=\"\",\"لا يوجد\",IF((Alldata[[#This Row],[انتهاء الاستمارة]]-$S$2)<0,\"منتهي\",IF((Alldata[[#This Row],[انتهاء الاستمارة]]-$S$2)<25,\"تجديد\",\"ساري\")))","v":"لا يوجد"},null,{"$f":"IF(Alldata[[#This Row],[انتهاء التأمين]]=\"\",\"لا يوجد\",IF((Alldata[[#This Row],[انتهاء التأمين]]-$S$2)<0,\"منتهي\",IF((Alldata[[#This Row],[انتهاء التأمين]]-$S$2)<25,\"تجديد\",\"ساري\")))","v":"لا يوجد"},null,{"$f":"IF(Alldata[[#This Row],[انتهاء كارت التشغيل]]=\"\",\"لا يوجد\",IF((Alldata[[#This Row],[انتهاء كارت التشغيل]]-$S$2)<0,\"منتهي\",IF((Alldata[[#This Row],[انتهاء كارت التشغيل]]-$S$2)<25,\"تجديد\",\"ساري\")))","v":"لا يوجد"},null,null,null,null,null,null,null,null,null,null,null,null,null,null,null,null,null,null,null,null,null,{"$error":"#VALUE!"},{"$error":"#VALUE!"},null,{"$error":"#VALUE!"},null,null,null,{"$error":"#VALUE!"}]
[{"$f":"SUBTOTAL(3,$B$5:B29)","v":2},null,null,null,null,null,null,null,null,null,null,null,null,null,null,{"$f":"IF(Alldata[[#This Row],[انتهاء الفحص]]=\"\",\"لا يوجد\",IF((Alldata[[#This Row],[انتهاء الفحص]]-$S$2)<0,\"منتهي\",IF((Alldata[[#This Row],[انتهاء الفحص]]-$S$2)<25,\"تجديد\",\"ساري\")))","v":"لا يوجد"},null,{"$f":"IF(Alldata[[#This Row],[انتهاء الاستمارة]]=\"\",\"لا يوجد\",IF((Alldata[[#This Row],[انتهاء الاستمارة]]-$S$2)<0,\"منتهي\",IF((Alldata[[#This Row],[انتهاء الاستمارة]]-$S$2)<25,\"تجديد\",\"ساري\")))","v":"لا يوجد"},null,{"$f":"IF(Alldata[[#This Row],[انتهاء التأمين]]=\"\",\"لا يوجد\",IF((Alldata[[#This Row],[انتهاء التأمين]]-$S$2)<0,\"منتهي\",IF((Alldata[[#This Row],[انتهاء التأمين]]-$S$2)<25,\"تجديد\",\"ساري\")))","v":"لا يوجد"},null,{"$f":"IF(Alldata[[#This Row],[انتهاء كارت التشغيل]]=\"\",\"لا يوجد\",IF((Alldata[[#This Row],[انتهاء كارت التشغيل]]-$S$2)<0,\"منتهي\",IF((Alldata[[#This Row],[انتهاء كارت التشغيل]]-$S$2)<25,\"تجديد\",\"ساري\")))","v":"لا يوجد"},null,null,null,null,null,null,null,null,null,null,null,null,null,null,null,null,null,null,null,null,null,{"$error":"#VALUE!"},{"$error":"#VALUE!"},null,{"$error":"#VALUE!"},null,null,null,{"$error":"#VALUE!"}]
[{"$f":"SUBTOTAL(3,$B$5:B30)","v":2},null,null,null,null,null,null,null,null,null,null,null,null,null,null,{"$f":"IF(Alldata[[#This Row],[انتهاء الفحص]]=\"\",\"لا يوجد\",IF((Alldata[[#This Row],[انتهاء الفحص]]-$S$2)<0,\"منتهي\",IF((Alldata[[#This Row],[انتهاء الفحص]]-$S$2)<25,\"تجديد\",\"ساري\")))","v":"لا يوجد"},null,{"$f":"IF(Alldata[[#This Row],[انتهاء الاستمارة]]=\"\",\"لا يوجد\",IF((Alldata[[#This Row],[انتهاء الاستمارة]]-$S$2)<0,\"منتهي\",IF((Alldata[[#This Row],[انتهاء الاستمارة]]-$S$2)<25,\"تجديد\",\"ساري\")))","v":"لا يوجد"},null,{"$f":"IF(Alldata[[#This Row],[انتهاء التأمين]]=\"\",\"لا يوجد\",IF((Alldata[[#This Row],[انتهاء التأمين]]-$S$2)<0,\"منتهي\",IF((Alldata[[#This Row],[انتهاء التأمين]]-$S$2)<25,\"تجديد\",\"ساري\")))","v":"لا يوجد"},null,{"$f":"IF(Alldata[[#This Row],[انتهاء كارت التشغيل]]=\"\",\"لا يوجد\",IF((Alldata[[#This Row],[انتهاء كارت التشغيل]]-$S$2)<0,\"منتهي\",IF((Alldata[[#This Row],[انتهاء كارت التشغيل]]-$S$2)<25,\"تجديد\",\"ساري\")))","v":"لا يوجد"},null,null,null,null,null,null,null,null,null,null,null,null,null,null,null,null,null,null,null,null,null,{"$error":"#VALUE!"},{"$error":"#VALUE!"},null,{"$error":"#VALUE!"},null,null,null,{"$error":"#VALUE!"}]
[{"$f":"SUBTOTAL(3,$B$5:B31)","v":2},null,null,null,null,null,null,null,null,null,null,null,null,null,null,{"$f":"IF(Alldata[[#This Row],[انتهاء الفحص]]=\"\",\"لا يوجد\",IF((Alldata[[#This Row],[انتهاء الفحص]]-$S$2)<0,\"منتهي\",IF((Alldata[[#This Row],[انتهاء الفحص]]-$S$2)<25,\"تجديد\",\"ساري\")))","v":"لا يوجد"},null,{"$f":"IF(Alldata[[#This Row],[انتهاء الاستمارة]]=\"\",\"لا يوجد\",IF((Alldata[[#This Row],[انتهاء الاستمارة]]-$S$2)<0,\"منتهي\",IF((Alldata[[#This Row],[انتهاء الاستمارة]]-$S$2)<25,\"تجديد\",\"ساري\")))","v":"لا يوجد"},null,{"$f":"IF(Alldata[[#This Row],[انتهاء التأمين]]=\"\",\"لا يوجد\",IF((Alldata[[#This Row],[انتهاء التأمين]]-$S$2)<0,\"منتهي\",IF((Alldata[[#This Row],[انتهاء التأمين]]-$S$2)<25,\"تجديد\",\"ساري\")))","v":"لا يوجد"},null,{"$f":"IF(Alldata[[#This Row],[انتهاء كارت التشغيل]]=\"\",\"لا يوجد\",IF((Alldata[[#This Row],[انتهاء كارت التشغيل]]-$S$2)<0,\"منتهي\",IF((Alldata[[#This Row],[انتهاء كارت التشغيل]]-$S$2)<25,\"تجديد\",\"ساري\")))","v":"لا يوجد"},null,null,null,null,null,null,null,null,null,null,null,null,null,null,null,null,null,null,null,null,null,{"$error":"#VALUE!"},{"$error":"#VALUE!"},null,{"$error":"#VALUE!"},null,null,null,{"$error":"#VALUE!"}]
[{"$f":"SUBTOTAL(3,$B$5:B32)","v":2},null,null,null,null,null,null,null,null,null,null,null,null,null,null,{"$f":"IF(Alldata[[#This Row],[انتهاء الفحص]]=\"\",\"لا يوجد\",IF((Alldata[[#This Row],[انتهاء الفحص]]-$S$2)<0,\"منتهي\",IF((Alldata[[#This Row],[انتهاء الفحص]]-$S$2)<25,\"تجديد\",\"ساري\")))","v":"لا يوجد"},null,{"$f":"IF(Alldata[[#This Row],[انتهاء الاستمارة]]=\"\",\"لا يوجد\",IF((Alldata[[#This Row],[انتهاء الاستمارة]]-$S$2)<0,\"منتهي\",IF((Alldata[[#This Row],[انتهاء الاستمارة]]-$S$2)<25,\"تجديد\",\"ساري\")))","v":"لا يوجد"},null,{"$f":"IF(Alldata[[#This Row],[انتهاء التأمين]]=\"\",\"لا يوجد\",IF((Alldata[[#This Row],[انتهاء التأمين]]-$S$2)<0,\"منتهي\",IF((Alldata[[#This Row],[انتهاء التأمين]]-$S$2)<25,\"تجديد\",\"ساري\")))","v":"لا يوجد"},null,{"$f":"IF(Alldata[[#This Row],[انتهاء كارت التشغيل]]=\"\",\"لا يوجد\",IF((Alldata[[#This Row],[انتهاء كارت التشغيل]]-$S$2)<0,\"منتهي\",IF((Alldata[[#This Row],[انتهاء كارت التشغيل]]-$S$2)<25,\"تجديد\",\"ساري\")))","v":"لا يوجد"},null,null,null,null,null,null,null,null,null,null,null,null,null,null,null,null,null,null,null,null,null,{"$error":"#VALUE!"},{"$error":"#VALUE!"},null,{"$error":"#VALUE!"},null,null,null,{"$error":"#VALUE!"}]
[{"$f":"SUBTOTAL(3,$B$5:B33)","v":2},null,null,null,null,null,null,null,null,null,null,null,null,null,null,{"$f":"IF(Alldata[[#This Row],[انتهاء الفحص]]=\"\",\"لا يوجد\",IF((Alldata[[#This Row],[انتهاء الفحص]]-$S$2)<0,\"منتهي\",IF((Alldata[[#This Row],[انتهاء الفحص]]-$S$2)<25,\"تجديد\",\"ساري\")))","v":"لا يوجد"},null,{"$f":"IF(Alldata[[#This Row],[انتهاء الاستمارة]]=\"\",\"لا يوجد\",IF((Alldata[[#This Row],[انتهاء الاستمارة]]-$S$2)<0,\"منتهي\",IF((Alldata[[#This Row],[انتهاء الاستمارة]]-$S$2)<25,\"تجديد\",\"ساري\")))","v":"لا يوجد"},null,{"$f":"IF(Alldata[[#This Row],[انتهاء التأمين]]=\"\",\"لا يوجد\",IF((Alldata[[#This Row],[انتهاء التأمين]]-$S$2)<0,\"منتهي\",IF((Alldata[[#This Row],[انتهاء التأمين]]-$S$2)<25,\"تجديد\",\"ساري\")))","v":"لا يوجد"},null,{"$f":"IF(Alldata[[#This Row],[انتهاء كارت التشغيل]]=\"\",\"لا يوجد\",IF((Alldata[[#This Row],[انتهاء كارت التشغيل]]-$S$2)<0,\"منتهي\",IF((Alldata[[#This Row],[انتهاء كارت التشغيل]]-$S$2)<25,\"تجديد\",\"ساري\")))","v":"لا يوجد"},null,null,null,null,null,null,null,null,null,null,null,null,null,null,null,null,null,null,null,null,null,{"$error":"#VALUE!"},{"$error":"#VALUE!"},null,{"$error":"#VALUE!"},null,null,null,{"$error":"#VALUE!"}]
[{"$f":"SUBTOTAL(3,$B$5:B34)","v":2},null,null,null,null,null,null,null,null,null,null,null,null,null,null,{"$f":"IF(Alldata[[#This Row],[انتهاء الفحص]]=\"\",\"لا يوجد\",IF((Alldata[[#This Row],[انتهاء الفحص]]-$S$2)<0,\"منتهي\",IF((Alldata[[#This Row],[انتهاء الفحص]]-$S$2)<25,\"تجديد\",\"ساري\")))","v":"لا يوجد"},null,{"$f":"IF(Alldata[[#This Row],[انتهاء الاستمارة]]=\"\",\"لا يوجد\",IF((Alldata[[#This Row],[انتهاء الاستمارة]]-$S$2)<0,\"منتهي\",IF((Alldata[[#This Row],[انتهاء الاستمارة]]-$S$2)<25,\"تجديد\",\"ساري\")))","v":"لا يوجد"},null,{"$f":"IF(Alldata[[#This Row],[انتهاء التأمين]]=\"\",\"لا يوجد\",IF((Alldata[[#This Row],[انتهاء التأمين]]-$S$2)<0,\"منتهي\",IF((Alldata[[#This Row],[انتهاء التأمين]]-$S$2)<25,\"تجديد\",\"ساري\")))","v":"لا يوجد"},null,{"$f":"IF(Alldata[[#This Row],[انتهاء كارت التشغيل]]=\"\",\"لا يوجد\",IF((Alldata[[#This Row],[انتهاء كارت التشغيل]]-$S$2)<0,\"منتهي\",IF((Alldata[[#This Row],[انتهاء كارت التشغيل]]-$S$2)<25,\"تجديد\",\"ساري\")))","v":"لا يوجد"},null,null,null,null,null,null,null,null,null,null,null,null,null,null,null,null,null,null,null,null,null,{"$error":"#VALUE!"},{"$error":"#VALUE!"},null,{"$error":"#VALUE!"},null,null,null,{"$error":"#VALUE!"}]
[{"$f":"SUBTOTAL(3,$B$5:B35)","v":2},null,null,null,null,null,null,null,null,null,null,null,null,null,null,{"$f":"IF(Alldata[[#This Row],[انتهاء الفحص]]=\"\",\"لا يوجد\",IF((Alldata[[#This Row],[انتهاء الفحص]]-$S$2)<0,\"منتهي\",IF((Alldata[[#This Row],[انتهاء الفحص]]-$S$2)<25,\"تجديد\",\"ساري\")))","v":"لا يوجد"},null,{"$f":"IF(Alldata[[#This Row],[انتهاء الاستمارة]]=\"\",\"لا يوجد\",IF((Alldata[[#This Row],[انتهاء الاستمارة]]-$S$2)<0,\"منتهي\",IF((Alldata[[#This Row],[انتهاء الاستمارة]]-$S$2)<25,\"تجديد\",\"ساري\")))","v":"لا يوجد"},null,{"$f":"IF(Alldata[[#This Row],[انتهاء التأمين]]=\"\",\"لا يوجد\",IF((Alldata[[#This Row],[انتهاء التأمين]]-$S$2)<0,\"منتهي\",IF((Alldata[[#This Row],[انتهاء التأمين]]-$S$2)<25,\"تجديد\",\"ساري\")))","v":"لا يوجد"},null,{"$f":"IF(Alldata[[#This Row],[انتهاء كارت التشغيل]]=\"\",\"لا يوجد\",IF((Alldata[[#This Row],[انتهاء كارت التشغيل]]-$S$2)<0,\"منتهي\",IF((Alldata[[#This Row],[انتهاء كارت التشغيل]]-$S$2)<25,\"تجديد\",\"ساري\")))","v":"لا يوجد"},null,null,null,null,null,null,null,null,null,null,null,null,null,null,null,null,null,null,null,null,null,{"$error":"#VALUE!"},{"$error":"#VALUE!"},null,{"$error":"#VALUE!"},null,null,null,{"$error":"#VALUE!"}]
[{"$f":"SUBTOTAL(3,$B$5:B36)","v":2},null,null,null,null,null,null,null,null,null,null,null,null,null,null,{"$f":"IF(Alldata[[#This Row],[انتهاء الفحص]]=\"\",\"لا يوجد\",IF((Alldata[[#This Row],[انتهاء الفحص]]-$S$2)<0,\"منتهي\",IF((Alldata[[#This Row],[انتهاء الفحص]]-$S$2)<25,\"تجديد\",\"ساري\")))","v":"لا يوجد"},null,{"$f":"IF(Alldata[[#This Row],[انتهاء الاستمارة]]=\"\",\"لا يوجد\",IF((Alldata[[#This Row],[انتهاء الاستمارة]]-$S$2)<0,\"منتهي\",IF((Alldata[[#This Row],[انتهاء الاستمارة]]-$S$2)<25,\"تجديد\",\"ساري\")))","v":"لا يوجد"},null,{"$f":"IF(Alldata[[#This Row],[انتهاء التأمين]]=\"\",\"لا يوجد\",IF((Alldata[[#This Row],[انتهاء التأمين]]-$S$2)<0,\"منتهي\",IF((Alldata[[#This Row],[انتهاء التأمين]]-$S$2)<25,\"تجديد\",\"ساري\")))","v":"لا يوجد"},null,{"$f":"IF(Alldata[[#This Row],[انتهاء كارت التشغيل]]=\"\",\"لا يوجد\",IF((Alldata[[#This Row],[انتهاء كارت التشغيل]]-$S$2)<0,\"منتهي\",IF((Alldata[[#This Row],[انتهاء كارت التشغيل]]-$S$2)<25,\"تجديد\",\"ساري\")))","v":"لا يوجد"},null,null,null,null,null,null,null,null,null,null,null,null,null,null,null,null,null,null,null,null,null,{"$error":"#VALUE!"},{"$error":"#VALUE!"},null,{"$error":"#VALUE!"},null,null,null,{"$error":"#VALUE!"}]
[{"$f":"SUBTOTAL(3,$B$5:B37)","v":2},null,null,null,null,null,null,null,null,null,null,null,null,null,null,{"$f":"IF(Alldata[[#This Row],[انتهاء الفحص]]=\"\",\"لا يوجد\",IF((Alldata[[#This Row],[انتهاء الفحص]]-$S$2)<0,\"منتهي\",IF((Alldata[[#This Row],[انتهاء الفحص]]-$S$2)<25,\"تجديد\",\"ساري\")))","v":"لا يوجد"},null,{"$f":"IF(Alldata[[#This Row],[انتهاء الاستمارة]]=\"\",\"لا يوجد\",IF((Alldata[[#This Row],[انتهاء الاستمارة]]-$S$2)<0,\"منتهي\",IF((Alldata[[#This Row],[انتهاء الاستمارة]]-$S$2)<25,\"تجديد\",\"ساري\")))","v":"لا يوجد"},null,{"$f":"IF(Alldata[[#This Row],[انتهاء التأمين]]=\"\",\"لا يوجد\",IF((Alldata[[#This Row],[انتهاء التأمين]]-$S$2)<0,\"منتهي\",IF((Alldata[[#This Row],[انتهاء التأمين]]-$S$2)<25,\"تجديد\",\"ساري\")))","v":"لا يوجد"},null,{"$f":"IF(Alldata[[#This Row],[انتهاء كارت التشغيل]]=\"\",\"لا يوجد\",IF((Alldata[[#This Row],[انتهاء كارت التشغيل]]-$S$2)<0,\"منتهي\",IF((Alldata[[#This Row],[انتهاء كارت التشغيل]]-$S$2)<25,\"تجديد\",\"ساري\")))","v":"لا يوجد"},null,null,null,null,null,null,null,null,null,null,null,null,null,null,null,null,null,null,null,null,null,{"$error":"#VALUE!"},{"$error":"#VALUE!"},null,{"$error":"#VALUE!"},null,null,null,{"$error":"#VALUE!"}]
[{"$f":"SUBTOTAL(3,$B$5:B38)","v":2},null,null,null,null,null,null,null,null,null,null,null,null,null,null,{"$f":"IF(Alldata[[#This Row],[انتهاء الفحص]]=\"\",\"لا يوجد\",IF((Alldata[[#This Row],[انتهاء الفحص]]-$S$2)<0,\"منتهي\",IF((Alldata[[#This Row],[انتهاء الفحص]]-$S$2)<25,\"تجديد\",\"ساري\")))","v":"لا يوجد"},null,{"$f":"IF(Alldata[[#This Row],[انتهاء الاستمارة]]=\"\",\"لا يوجد\",IF((Alldata[[#This Row],[انتهاء الاستمارة]]-$S$2)<0,\"منتهي\",IF((Alldata[[#This Row],[انتهاء الاستمارة]]-$S$2)<25,\"تجديد\",\"ساري\")))","v":"لا يوجد"},null,{"$f":"IF(Alldata[[#This Row],[انتهاء التأمين]]=\"\",\"لا يوجد\",IF((Alldata[[#This Row],[انتهاء التأمين]]-$S$2)<0,\"منتهي\",IF((Alldata[[#This Row],[انتهاء التأمين]]-$S$2)<25,\"تجديد\",\"ساري\")))","v":"لا يوجد"},null,{"$f":"IF(Alldata[[#This Row],[انتهاء كارت التشغيل]]=\"\",\"لا يوجد\",IF((Alldata[[#This Row],[انتهاء كارت التشغيل]]-$S$2)<0,\"منتهي\",IF((Alldata[[#This Row],[انتهاء كارت التشغيل]]-$S$2)<25,\"تجديد\",\"ساري\")))","v":"لا يوجد"},null,null,null,null,null,null,null,null,null,null,null,null,null,null,null,null,null,null,null,null,null,{"$error":"#VALUE!"},{"$error":"#VALUE!"},null,{"$error":"#VALUE!"},null,null,null,{"$error":"#VALUE!"}]
[{"$f":"SUBTOTAL(3,$B$5:B39)","v":2},null,null,null,null,null,null,null,null,null,null,null,null,null,null,{"$f":"IF(Alldata[[#This Row],[انتهاء الفحص]]=\"\",\"لا يوجد\",IF((Alldata[[#This Row],[انتهاء الفحص]]-$S$2)<0,\"منتهي\",IF((Alldata[[#This Row],[انتهاء الفحص]]-$S$2)<25,\"تجديد\",\"ساري\")))","v":"لا يوجد"},null,{"$f":"IF(Alldata[[#This Row],[انتهاء الاستمارة]]=\"\",\"لا يوجد\",IF((Alldata[[#This Row],[انتهاء الاستمارة]]-$S$2)<0,\"منتهي\",IF((Alldata[[#This Row],[انتهاء الاستمارة]]-$S$2)<25,\"تجديد\",\"ساري\")))","v":"لا يوجد"},null,{"$f":"IF(Alldata[[#This Row],[انتهاء التأمين]]=\"\",\"لا يوجد\",IF((Alldata[[#This Row],[انتهاء التأمين]]-$S$2)<0,\"منتهي\",IF((Alldata[[#This Row],[انتهاء التأمين]]-$S$2)<25,\"تجديد\",\"ساري\")))","v":"لا يوجد"},null,{"$f":"IF(Alldata[[#This Row],[انتهاء كارت التشغيل]]=\"\",\"لا يوجد\",IF((Alldata[[#This Row],[انتهاء كارت التشغيل]]-$S$2)<0,\"منتهي\",IF((Alldata[[#This Row],[انتهاء كارت التشغيل]]-$S$2)<25,\"تجديد\",\"ساري\")))","v":"لا يوجد"},null,null,null,null,null,null,null,null,null,null,null,null,null,null,null,null,null,null,null,null,null,{"$error":"#VALUE!"},{"$error":"#VALUE!"},null,{"$error":"#VALUE!"},null,null,null,{"$error":"#VALUE!"}]
[{"$f":"SUBTOTAL(3,$B$5:B40)","v":2},null,null,null,null,null,null,null,null,null,null,null,null,null,null,{"$f":"IF(Alldata[[#This Row],[انتهاء الفحص]]=\"\",\"لا يوجد\",IF((Alldata[[#This Row],[انتهاء الفحص]]-$S$2)<0,\"منتهي\",IF((Alldata[[#This Row],[انتهاء الفحص]]-$S$2)<25,\"تجديد\",\"ساري\")))","v":"لا يوجد"},null,{"$f":"IF(Alldata[[#This Row],[انتهاء الاستمارة]]=\"\",\"لا يوجد\",IF((Alldata[[#This Row],[انتهاء الاستمارة]]-$S$2)<0,\"منتهي\",IF((Alldata[[#This Row],[انتهاء الاستمارة]]-$S$2)<25,\"تجديد\",\"ساري\")))","v":"لا يوجد"},null,{"$f":"IF(Alldata[[#This Row],[انتهاء التأمين]]=\"\",\"لا يوجد\",IF((Alldata[[#This Row],[انتهاء التأمين]]-$S$2)<0,\"منتهي\",IF((Alldata[[#This Row],[انتهاء التأمين]]-$S$2)<25,\"تجديد\",\"ساري\")))","v":"لا يوجد"},null,{"$f":"IF(Alldata[[#This Row],[انتهاء كارت التشغيل]]=\"\",\"لا يوجد\",IF((Alldata[[#This Row],[انتهاء كارت التشغيل]]-$S$2)<0,\"منتهي\",IF((Alldata[[#This Row],[انتهاء كارت التشغيل]]-$S$2)<25,\"تجديد\",\"ساري\")))","v":"لا يوجد"},null,null,null,null,null,null,null,null,null,null,null,null,null,null,null,null,null,null,null,null,null,{"$error":"#VALUE!"},{"$error":"#VALUE!"},null,{"$error":"#VALUE!"},null,null,null,{"$error":"#VALUE!"}]
[{"$f":"SUBTOTAL(3,$B$5:B41)","v":2},null,null,null,null,null,null,null,null,null,null,null,null,null,null,{"$f":"IF(Alldata[[#This Row],[انتهاء الفحص]]=\"\",\"لا يوجد\",IF((Alldata[[#This Row],[انتهاء الفحص]]-$S$2)<0,\"منتهي\",IF((Alldata[[#This Row],[انتهاء الفحص]]-$S$2)<25,\"تجديد\",\"ساري\")))","v":"لا يوجد"},null,{"$f":"IF(Alldata[[#This Row],[انتهاء الاستمارة]]=\"\",\"لا يوجد\",IF((Alldata[[#This Row],[انتهاء الاستمارة]]-$S$2)<0,\"منتهي\",IF((Alldata[[#This Row],[انتهاء الاستمارة]]-$S$2)<25,\"تجديد\",\"ساري\")))","v":"لا يوجد"},null,{"$f":"IF(Alldata[[#This Row],[انتهاء التأمين]]=\"\",\"لا يوجد\",IF((Alldata[[#This Row],[انتهاء التأمين]]-$S$2)<0,\"منتهي\",IF((Alldata[[#This Row],[انتهاء التأمين]]-$S$2)<25,\"تجديد\",\"ساري\")))","v":"لا يوجد"},null,{"$f":"IF(Alldata[[#This Row],[انتهاء كارت التشغيل]]=\"\",\"لا يوجد\",IF((Alldata[[#This Row],[انتهاء كارت التشغيل]]-$S$2)<0,\"منتهي\",IF((Alldata[[#This Row],[انتهاء كارت التشغيل]]-$S$2)<25,\"تجديد\",\"ساري\")))","v":"لا يوجد"},null,null,null,null,null,null,null,null,null,null,null,null,null,null,null,null,null,null,null,null,null,{"$error":"#VALUE!"},{"$error":"#VALUE!"},null,{"$error":"#VALUE!"},null,null,null,{"$error":"#VALUE!"}]
[{"$f":"SUBTOTAL(3,$B$5:B42)","v":2},null,null,null,null,null,null,null,null,null,null,null,null,null,null,{"$f":"IF(Alldata[[#This Row],[انتهاء الفحص]]=\"\",\"لا يوجد\",IF((Alldata[[#This Row],[انتهاء الفحص]]-$S$2)<0,\"منتهي\",IF((Alldata[[#This Row],[انتهاء الفحص]]-$S$2)<25,\"تجديد\",\"ساري\")))","v":"لا يوجد"},null,{"$f":"IF(Alldata[[#This Row],[انتهاء الاستمارة]]=\"\",\"لا يوجد\",IF((Alldata[[#This Row],[انتهاء الاستمارة]]-$S$2)<0,\"منتهي\",IF((Alldata[[#This Row],[انتهاء الاستمارة]]-$S$2)<25,\"تجديد\",\"ساري\")))","v":"لا يوجد"},null,{"$f":"IF(Alldata[[#This Row],[انتهاء التأمين]]=\"\",\"لا يوجد\",IF((Alldata[[#This Row],[انتهاء التأمين]]-$S$2)<0,\"منتهي\",IF((Alldata[[#This Row],[انتهاء التأمين]]-$S$2)<25,\"تجديد\",\"ساري\")))","v":"لا يوجد"},null,{"$f":"IF(Alldata[[#This Row],[انتهاء كارت التشغيل]]=\"\",\"لا يوجد\",IF((Alldata[[#This Row],[انتهاء كارت التشغيل]]-$S$2)<0,\"منتهي\",IF((Alldata[[#This Row],[انتهاء كارت التشغيل]]-$S$2)<25,\"تجديد\",\"ساري\")))","v":"لا يوجد"},null,null,null,null,null,null,null,null,null,null,null,null,null,null,null,null,null,null,null,null,null,{"$error":"#VALUE!"},{"$error":"#VALUE!"},null,{"$error":"#VALUE!"},null,null,null,{"$error":"#VALUE!"}]
[{"$f":"SUBTOTAL(3,$B$5:B43)","v":2},null,null,null,null,null,null,null,null,null,null,null,null,null,null,{"$f":"IF(Alldata[[#This Row],[انتهاء الفحص]]=\"\",\"لا يوجد\",IF((Alldata[[#This Row],[انتهاء الفحص]]-$S$2)<0,\"منتهي\",IF((Alldata[[#This Row],[انتهاء الفحص]]-$S$2)<25,\"تجديد\",\"ساري\")))","v":"لا يوجد"},null,{"$f":"IF(Alldata[[#This Row],[انتهاء الاستمارة]]=\"\",\"لا يوجد\",IF((Alldata[[#This Row],[انتهاء الاستمارة]]-$S$2)<0,\"منتهي\",IF((Alldata[[#This Row],[انتهاء الاستمارة]]-$S$2)<25,\"تجديد\",\"ساري\")))","v":"لا يوجد"},null,{"$f":"IF(Alldata[[#This Row],[انتهاء التأمين]]=\"\",\"لا يوجد\",IF((Alldata[[#This Row],[انتهاء التأمين]]-$S$2)<0,\"منتهي\",IF((Alldata[[#This Row],[انتهاء التأمين]]-$S$2)<25,\"تجديد\",\"ساري\")))","v":"لا يوجد"},null,{"$f":"IF(Alldata[[#This Row],[انتهاء كارت التشغيل]]=\"\",\"لا يوجد\",IF((Alldata[[#This Row],[انتهاء كارت التشغيل]]-$S$2)<0,\"منتهي\",IF((Alldata[[#This Row],[انتهاء كارت التشغيل]]-$S$2)<25,\"تجديد\",\"ساري\")))","v":"لا يوجد"},null,null,null,null,null,null,null,null,null,null,null,null,null,null,null,null,null,null,null,null,null,{"$error":"#VALUE!"},{"$error":"#VALUE!"},null,{"$error":"#VALUE!"},null,null,null,{"$error":"#VALUE!"}]
[{"$f":"SUBTOTAL(3,$B$5:B44)","v":2},null,null,null,null,null,null,null,null,null,null,null,null,null,null,{"$f":"IF(Alldata[[#This Row],[انتهاء الفحص]]=\"\",\"لا يوجد\",IF((Alldata[[#This Row],[انتهاء الفحص]]-$S$2)<0,\"منتهي\",IF((Alldata[[#This Row],[انتهاء الفحص]]-$S$2)<25,\"تجديد\",\"ساري\")))","v":"لا يوجد"},null,{"$f":"IF(Alldata[[#This Row],[انتهاء الاستمارة]]=\"\",\"لا يوجد\",IF((Alldata[[#This Row],[انتهاء الاستمارة]]-$S$2)<0,\"منتهي\",IF((Alldata[[#This Row],[انتهاء الاستمارة]]-$S$2)<25,\"تجديد\",\"ساري\")))","v":"لا يوجد"},null,{"$f":"IF(Alldata[[#This Row],[انتهاء التأمين]]=\"\",\"لا يوجد\",IF((Alldata[[#This Row],[انتهاء التأمين]]-$S$2)<0,\"منتهي\",IF((Alldata[[#This Row],[انتهاء التأمين]]-$S$2)<25,\"تجديد\",\"ساري\")))","v":"لا يوجد"},null,{"$f":"IF(Alldata[[#This Row],[انتهاء كارت التشغيل]]=\"\",\"لا يوجد\",IF((Alldata[[#This Row],[انتهاء كارت التشغيل]]-$S$2)<0,\"منتهي\",IF((Alldata[[#This Row],[انتهاء كارت التشغيل]]-$S$2)<25,\"تجديد\",\"ساري\")))","v":"لا يوجد"},null,null,null,null,null,null,null,null,null,null,null,null,null,null,null,null,null,null,null,null,null,{"$error":"#VALUE!"},{"$error":"#VALUE!"},null,{"$error":"#VALUE!"},null,null,null,{"$error":"#VALUE!"}]
[{"$f":"SUBTOTAL(3,$B$5:B45)","v":2},null,null,null,null,null,null,null,null,null,null,null,null,null,null,{"$f":"IF(Alldata[[#This Row],[انتهاء الفحص]]=\"\",\"لا يوجد\",IF((Alldata[[#This Row],[انتهاء الفحص]]-$S$2)<0,\"منتهي\",IF((Alldata[[#This Row],[انتهاء الفحص]]-$S$2)<25,\"تجديد\",\"ساري\")))","v":"لا يوجد"},null,{"$f":"IF(Alldata[[#This Row],[انتهاء الاستمارة]]=\"\",\"لا يوجد\",IF((Alldata[[#This Row],[انتهاء الاستمارة]]-$S$2)<0,\"منتهي\",IF((Alldata[[#This Row],[انتهاء الاستمارة]]-$S$2)<25,\"تجديد\",\"ساري\")))","v":"لا يوجد"},null,{"$f":"IF(Alldata[[#This Row],[انتهاء التأمين]]=\"\",\"لا يوجد\",IF((Alldata[[#This Row],[انتهاء التأمين]]-$S$2)<0,\"منتهي\",IF((Alldata[[#This Row],[انتهاء التأمين]]-$S$2)<25,\"تجديد\",\"ساري\")))","v":"لا يوجد"},null,{"$f":"IF(Alldata[[#This Row],[انتهاء كارت التشغيل]]=\"\",\"لا يوجد\",IF((Alldata[[#This Row],[انتهاء كارت التشغيل]]-$S$2)<0,\"منتهي\",IF((Alldata[[#This Row],[انتهاء كارت التشغيل]]-$S$2)<25,\"تجديد\",\"ساري\")))","v":"لا يوجد"},null,null,null,null,null,null,null,null,null,null,null,null,null,null,null,null,null,null,null,null,null,{"$error":"#VALUE!"},{"$error":"#VALUE!"},null,{"$error":"#VALUE!"},null,null,null,{"$error":"#VALUE!"}]
[{"$f":"SUBTOTAL(3,$B$5:B46)","v":2},null,null,null,null,null,null,null,null,null,null,null,null,null,null,{"$f":"IF(Alldata[[#This Row],[انتهاء الفحص]]=\"\",\"لا يوجد\",IF((Alldata[[#This Row],[انتهاء الفحص]]-$S$2)<0,\"منتهي\",IF((Alldata[[#This Row],[انتهاء الفحص]]-$S$2)<25,\"تجديد\",\"ساري\")))","v":"لا يوجد"},null,{"$f":"IF(Alldata[[#This Row],[انتهاء الاستمارة]]=\"\",\"لا يوجد\",IF((Alldata[[#This Row],[انتهاء الاستمارة]]-$S$2)<0,\"منتهي\",IF((Alldata[[#This Row],[انتهاء الاستمارة]]-$S$2)<25,\"تجديد\",\"ساري\")))","v":"لا يوجد"},null,{"$f":"IF(Alldata[[#This Row],[انتهاء التأمين]]=\"\",\"لا يوجد\",IF((Alldata[[#This Row],[انتهاء التأمين]]-$S$2)<0,\"منتهي\",IF((Alldata[[#This Row],[انتهاء التأمين]]-$S$2)<25,\"تجديد\",\"ساري\")))","v":"لا يوجد"},null,"لا يوجد",null,null,null,null,null,null,null,null,null,null,null,null,null,null,null,null,null,null,null,null,null,{"$error":"#VALUE!"},{"$error":"#VALUE!"},null,{"$error":"#VALUE!"},null,null,null,{"$error":"#VALUE!"}]
[{"$f":"SUBTOTAL(3,$B$5:B46)","v":2},null,null,null,null,null,null,null,null,null,null,null,null,null,null,{"$f":"IF(Alldata[[#This Row],[انتهاء الفحص]]=\"\",\"لا يوجد\",IF((Alldata[[#This Row],[انتهاء الفحص]]-$S$2)<0,\"منتهي\",IF((Alldata[[#This Row],[انتهاء الفحص]]-$S$2)<25,\"تجديد\",\"ساري\")))","v":"لا يوجد"},null,{"$f":"IF(Alldata[[#This Row],[انتهاء الاستمارة]]=\"\",\"لا يوجد\",IF((Alldata[[#This Row],[انتهاء الاستمارة]]-$S$2)<0,\"منتهي\",IF((Alldata[[#This Row],[انتهاء الاستمارة]]-$S$2)<25,\"تجديد\",\"ساري\")))","v":"لا يوجد"},null,{"$f":"IF(Alldata[[#This Row],[انتهاء التأمين]]=\"\",\"لا يوجد\",IF((Alldata[[#This Row],[انتهاء التأمين]]-$S$2)<0,\"منتهي\",IF((Alldata[[#This Row],[انتهاء التأمين]]-$S$2)<25,\"تجديد\",\"ساري\")))","v":"لا يوجد"},null,{"$f":"IF(Alldata[[#This Row],[انتهاء كارت التشغيل]]=\"\",\"لا يوجد\",IF((Alldata[[#This Row],[انتهاء كارت التشغيل]]-$S$2)<0,\"منتهي\",IF((Alldata[[#This Row],[انتهاء كارت التشغيل]]-$S$2)<25,\"تجديد\",\"ساري\")))","v":"لا يوجد"},null,null,null,null,null,null,null,null,null,null,null,null,null,null,null,null,null,null,null,null,null,{"$error":"#VALUE!"},{"$error":"#VALUE!"},null,{"$error":"#VALUE!"},null,null,null,{"$error":"#VALUE!"}]
[{"$f":"SUBTOTAL(3,$B$5:B47)","v":2},null,null,null,null,null,null,null,null,null,null,null,null,null,null,{"$f":"IF(Alldata[[#This Row],[انتهاء الفحص]]=\"\",\"لا يوجد\",IF((Alldata[[#This Row],[انتهاء الفحص]]-$S$2)<0,\"منتهي\",IF((Alldata[[#This Row],[انتهاء الفحص]]-$S$2)<25,\"تجديد\",\"ساري\")))","v":"لا يوجد"},null,{"$f":"IF(Alldata[[#This Row],[انتهاء الاستمارة]]=\"\",\"لا يوجد\",IF((Alldata[[#This Row],[انتهاء الاستمارة]]-$S$2)<0,\"منتهي\",IF((Alldata[[#This Row],[انتهاء الاستمارة]]-$S$2)<25,\"تجديد\",\"ساري\")))","v":"لا يوجد"},null,{"$f":"IF(Alldata[[#This Row],[انتهاء التأمين]]=\"\",\"لا يوجد\",IF((Alldata[[#This Row],[انتهاء التأمين]]-$S$2)<0,\"منتهي\",IF((Alldata[[#This Row],[انتهاء التأمين]]-$S$2)<25,\"تجديد\",\"ساري\")))","v":"لا يوجد"},null,{"$f":"IF(Alldata[[#This Row],[انتهاء كارت التشغيل]]=\"\",\"لا يوجد\",IF((Alldata[[#This Row],[انتهاء كارت التشغيل]]-$S$2)<0,\"منتهي\",IF((Alldata[[#This Row],[انتهاء كارت التشغيل]]-$S$2)<25,\"تجديد\",\"ساري\")))","v":"لا يوجد"},null,null,null,null,null,null,null,null,null,null,null,null,null,null,null,null,null,null,null,null,null,{"$error":"#VALUE!"},{"$error":"#VALUE!"},null,{"$error":"#VALUE!"},null,null,null,{"$error":"#VALUE!"}]
[{"$f":"SUBTOTAL(3,$B$5:B48)","v":2},null,null,null,null,null,null,null,null,null,null,null,null,null,null,{"$f":"IF(Alldata[[#This Row],[انتهاء الفحص]]=\"\",\"لا يوجد\",IF((Alldata[[#This Row],[انتهاء الفحص]]-$S$2)<0,\"منتهي\",IF((Alldata[[#This Row],[انتهاء الفحص]]-$S$2)<25,\"تجديد\",\"ساري\")))","v":"لا يوجد"},null,{"$f":"IF(Alldata[[#This Row],[انتهاء الاستمارة]]=\"\",\"لا يوجد\",IF((Alldata[[#This Row],[انتهاء الاستمارة]]-$S$2)<0,\"منتهي\",IF((Alldata[[#This Row],[انتهاء الاستمارة]]-$S$2)<25,\"تجديد\",\"ساري\")))","v":"لا يوجد"},null,{"$f":"IF(Alldata[[#This Row],[انتهاء التأمين]]=\"\",\"لا يوجد\",IF((Alldata[[#This Row],[انتهاء التأمين]]-$S$2)<0,\"منتهي\",IF((Alldata[[#This Row],[انتهاء التأمين]]-$S$2)<25,\"تجديد\",\"ساري\")))","v":"لا يوجد"},null,"لا يوجد",null,null,null,null,null,null,null,null,null,null,null,null,null,null,null,null,null,null,null,null,null,{"$error":"#VALUE!"},{"$error":"#VALUE!"},null,{"$error":"#VALUE!"},null,null,null,{"$error":"#VALUE!"}]
[{"$f":"SUBTOTAL(3,$B$5:B49)","v":2},null,null,null,null,null,null,null,null,null,null,null,null,null,null,{"$f":"IF(Alldata[[#This Row],[انتهاء الفحص]]=\"\",\"لا يوجد\",IF((Alldata[[#This Row],[انتهاء الفحص]]-$S$2)<0,\"منتهي\",IF((Alldata[[#This Row],[انتهاء الفحص]]-$S$2)<25,\"تجديد\",\"ساري\")))","v":"لا يوجد"},null,{"$f":"IF(Alldata[[#This Row],[انتهاء الاستمارة]]=\"\",\"لا يوجد\",IF((Alldata[[#This Row],[انتهاء الاستمارة]]-$S$2)<0,\"منتهي\",IF((Alldata[[#This Row],[انتهاء الاستمارة]]-$S$2)<25,\"تجديد\",\"ساري\")))","v":"لا يوجد"},null,{"$f":"IF(Alldata[[#This Row],[انتهاء التأمين]]=\"\",\"لا يوجد\",IF((Alldata[[#This Row],[انتهاء التأمين]]-$S$2)<0,\"منتهي\",IF((Alldata[[#This Row],[انتهاء التأمين]]-$S$2)<25,\"تجديد\",\"ساري\")))","v":"لا يوجد"},null,{"$f":"IF(Alldata[[#This Row],[انتهاء كارت التشغيل]]=\"\",\"لا يوجد\",IF((Alldata[[#This Row],[انتهاء كارت التشغيل]]-$S$2)<0,\"منتهي\",IF((Alldata[[#This Row],[انتهاء كارت التشغيل]]-$S$2)<25,\"تجديد\",\"ساري\")))","v":"لا يوجد"},null,null,null,null,null,null,null,null,null,null,null,null,null,null,null,null,null,null,null,null,null,{"$error":"#VALUE!"},{"$error":"#VALUE!"},null,{"$error":"#VALUE!"},null,null,null,{"$error":"#VALUE!"}]
[{"$f":"SUBTOTAL(3,$B$5:B50)","v":2},null,null,null,null,null,null,null,null,null,null,null,null,null,null,{"$f":"IF(Alldata[[#This Row],[انتهاء الفحص]]=\"\",\"لا يوجد\",IF((Alldata[[#This Row],[انتهاء الفحص]]-$S$2)<0,\"منتهي\",IF((Alldata[[#This Row],[انتهاء الفحص]]-$S$2)<25,\"تجديد\",\"ساري\")))","v":"لا يوجد"},null,{"$f":"IF(Alldata[[#This Row],[انتهاء الاستمارة]]=\"\",\"لا يوجد\",IF((Alldata[[#This Row],[انتهاء الاستمارة]]-$S$2)<0,\"منتهي\",IF((Alldata[[#This Row],[انتهاء الاستمارة]]-$S$2)<25,\"تجديد\",\"ساري\")))","v":"لا يوجد"},null,{"$f":"IF(Alldata[[#This Row],[انتهاء التأمين]]=\"\",\"لا يوجد\",IF((Alldata[[#This Row],[انتهاء التأمين]]-$S$2)<0,\"منتهي\",IF((Alldata[[#This Row],[انتهاء التأمين]]-$S$2)<25,\"تجديد\",\"ساري\")))","v":"لا يوجد"},null,{"$f":"IF(Alldata[[#This Row],[انتهاء كارت التشغيل]]=\"\",\"لا يوجد\",IF((Alldata[[#This Row],[انتهاء كارت التشغيل]]-$S$2)<0,\"منتهي\",IF((Alldata[[#This Row],[انتهاء كارت التشغيل]]-$S$2)<25,\"تجديد\",\"ساري\")))","v":"لا يوجد"},null,null,null,null,null,null,null,null,null,null,null,null,null,null,null,null,null,null,null,null,null,{"$error":"#VALUE!"},{"$error":"#VALUE!"},null,{"$error":"#VALUE!"},null,null,null,{"$error":"#VALUE!"}]
[{"$f":"SUBTOTAL(3,$B$5:B51)","v":2},null,null,null,null,null,null,null,null,null,null,null,null,null,null,{"$f":"IF(Alldata[[#This Row],[انتهاء الفحص]]=\"\",\"لا يوجد\",IF((Alldata[[#This Row],[انتهاء الفحص]]-$S$2)<0,\"منتهي\",IF((Alldata[[#This Row],[انتهاء الفحص]]-$S$2)<25,\"تجديد\",\"ساري\")))","v":"لا يوجد"},null,{"$f":"IF(Alldata[[#This Row],[انتهاء الاستمارة]]=\"\",\"لا يوجد\",IF((Alldata[[#This Row],[انتهاء الاستمارة]]-$S$2)<0,\"منتهي\",IF((Alldata[[#This Row],[انتهاء الاستمارة]]-$S$2)<25,\"تجديد\",\"ساري\")))","v":"لا يوجد"},null,{"$f":"IF(Alldata[[#This Row],[انتهاء التأمين]]=\"\",\"لا يوجد\",IF((Alldata[[#This Row],[انتهاء التأمين]]-$S$2)<0,\"منتهي\",IF((Alldata[[#This Row],[انتهاء التأمين]]-$S$2)<25,\"تجديد\",\"ساري\")))","v":"لا يوجد"},null,{"$f":"IF(Alldata[[#This Row],[انتهاء كارت التشغيل]]=\"\",\"لا يوجد\",IF((Alldata[[#This Row],[انتهاء كارت التشغيل]]-$S$2)<0,\"منتهي\",IF((Alldata[[#This Row],[انتهاء كارت التشغيل]]-$S$2)<25,\"تجديد\",\"ساري\")))","v":"لا يوجد"},null,null,null,null,null,null,null,null,null,null,null,null,null,null,null,null,null,null,null,null,null,{"$error":"#VALUE!"},{"$error":"#VALUE!"},null,{"$error":"#VALUE!"},null,null,null,{"$error":"#VALUE!"}]
[{"$f":"SUBTOTAL(3,$B$5:B52)","v":2},null,null,null,null,null,null,null,null,null,null,null,null,null,null,{"$f":"IF(Alldata[[#This Row],[انتهاء الفحص]]=\"\",\"لا يوجد\",IF((Alldata[[#This Row],[انتهاء الفحص]]-$S$2)<0,\"منتهي\",IF((Alldata[[#This Row],[انتهاء الفحص]]-$S$2)<25,\"تجديد\",\"ساري\")))","v":"لا يوجد"},null,{"$f":"IF(Alldata[[#This Row],[انتهاء الاستمارة]]=\"\",\"لا يوجد\",IF((Alldata[[#This Row],[انتهاء الاستمارة]]-$S$2)<0,\"منتهي\",IF((Alldata[[#This Row],[انتهاء الاستمارة]]-$S$2)<25,\"تجديد\",\"ساري\")))","v":"لا يوجد"},null,{"$f":"IF(Alldata[[#This Row],[انتهاء التأمين]]=\"\",\"لا يوجد\",IF((Alldata[[#This Row],[انتهاء التأمين]]-$S$2)<0,\"منتهي\",IF((Alldata[[#This Row],[انتهاء التأمين]]-$S$2)<25,\"تجديد\",\"ساري\")))","v":"لا يوجد"},null,{"$f":"IF(Alldata[[#This Row],[انتهاء كارت التشغيل]]=\"\",\"لا يوجد\",IF((Alldata[[#This Row],[انتهاء كارت التشغيل]]-$S$2)<0,\"منتهي\",IF((Alldata[[#This Row],[انتهاء كارت التشغيل]]-$S$2)<25,\"تجديد\",\"ساري\")))","v":"لا يوجد"},null,null,null,null,null,null,null,null,null,null,null,null,null,null,null,null,null,null,null,null,null,{"$error":"#VALUE!"},{"$error":"#VALUE!"},null,{"$error":"#VALUE!"},null,null,null,{"$error":"#VALUE!"}]
[{"$f":"SUBTOTAL(3,$B$5:B53)","v":2},null,null,null,null,null,null,null,null,null,null,null,null,null,null,{"$f":"IF(Alldata[[#This Row],[انتهاء الفحص]]=\"\",\"لا يوجد\",IF((Alldata[[#This Row],[انتهاء الفحص]]-$S$2)<0,\"منتهي\",IF((Alldata[[#This Row],[انتهاء الفحص]]-$S$2)<25,\"تجديد\",\"ساري\")))","v":"لا يوجد"},null,{"$f":"IF(Alldata[[#This Row],[انتهاء الاستمارة]]=\"\",\"لا يوجد\",IF((Alldata[[#This Row],[انتهاء الاستمارة]]-$S$2)<0,\"منتهي\",IF((Alldata[[#This Row],[انتهاء الاستمارة]]-$S$2)<25,\"تجديد\",\"ساري\")))","v":"لا يوجد"},null,{"$f":"IF(Alldata[[#This Row],[انتهاء التأمين]]=\"\",\"لا يوجد\",IF((Alldata[[#This Row],[انتهاء التأمين]]-$S$2)<0,\"منتهي\",IF((Alldata[[#This Row],[انتهاء التأمين]]-$S$2)<25,\"تجديد\",\"ساري\")))","v":"لا يوجد"},null,{"$f":"IF(Alldata[[#This Row],[انتهاء كارت التشغيل]]=\"\",\"لا يوجد\",IF((Alldata[[#This Row],[انتهاء كارت التشغيل]]-$S$2)<0,\"منتهي\",IF((Alldata[[#This Row],[انتهاء كارت التشغيل]]-$S$2)<25,\"تجديد\",\"ساري\")))","v":"لا يوجد"},null,null,null,null,null,null,null,null,null,null,null,null,null,null,null,null,null,null,null,null,null,{"$error":"#VALUE!"},{"$error":"#VALUE!"},null,{"$error":"#VALUE!"},null,null,null,{"$error":"#VALUE!"}]
[{"$f":"SUBTOTAL(3,$B$5:B54)","v":2},null,null,null,null,null,null,null,null,null,null,null,null,null,null,{"$f":"IF(Alldata[[#This Row],[انتهاء الفحص]]=\"\",\"لا يوجد\",IF((Alldata[[#This Row],[انتهاء الفحص]]-$S$2)<0,\"منتهي\",IF((Alldata[[#This Row],[انتهاء الفحص]]-$S$2)<25,\"تجديد\",\"ساري\")))","v":"لا يوجد"},null,{"$f":"IF(Alldata[[#This Row],[انتهاء الاستمارة]]=\"\",\"لا يوجد\",IF((Alldata[[#This Row],[انتهاء الاستمارة]]-$S$2)<0,\"منتهي\",IF((Alldata[[#This Row],[انتهاء الاستمارة]]-$S$2)<25,\"تجديد\",\"ساري\")))","v":"لا يوجد"},null,{"$f":"IF(Alldata[[#This Row],[انتهاء التأمين]]=\"\",\"لا يوجد\",IF((Alldata[[#This Row],[انتهاء التأمين]]-$S$2)<0,\"منتهي\",IF((Alldata[[#This Row],[انتهاء التأمين]]-$S$2)<25,\"تجديد\",\"ساري\")))","v":"لا يوجد"},null,{"$f":"IF(Alldata[[#This Row],[انتهاء كارت التشغيل]]=\"\",\"لا يوجد\",IF((Alldata[[#This Row],[انتهاء كارت التشغيل]]-$S$2)<0,\"منتهي\",IF((Alldata[[#This Row],[انتهاء كارت التشغيل]]-$S$2)<25,\"تجديد\",\"ساري\")))","v":"لا يوجد"},null,null,null,null,null,null,null,null,null,null,null,null,null,null,null,null,null,null,null,null,null,{"$error":"#VALUE!"},{"$error":"#VALUE!"},null,{"$error":"#VALUE!"},null,null,null,{"$error":"#VALUE!"}]
[{"$f":"SUBTOTAL(3,$B$5:B55)","v":2},null,null,null,null,null,null,null,null,null,null,null,null,null,null,{"$f":"IF(Alldata[[#This Row],[انتهاء الفحص]]=\"\",\"لا يوجد\",IF((Alldata[[#This Row],[انتهاء الفحص]]-$S$2)<0,\"منتهي\",IF((Alldata[[#This Row],[انتهاء الفحص]]-$S$2)<25,\"تجديد\",\"ساري\")))","v":"لا يوجد"},null,{"$f":"IF(Alldata[[#This Row],[انتهاء الاستمارة]]=\"\",\"لا يوجد\",IF((Alldata[[#This Row],[انتهاء الاستمارة]]-$S$2)<0,\"منتهي\",IF((Alldata[[#This Row],[انتهاء الاستمارة]]-$S$2)<25,\"تجديد\",\"ساري\")))","v":"لا يوجد"},null,{"$f":"IF(Alldata[[#This Row],[انتهاء التأمين]]=\"\",\"لا يوجد\",IF((Alldata[[#This Row],[انتهاء التأمين]]-$S$2)<0,\"منتهي\",IF((Alldata[[#This Row],[انتهاء التأمين]]-$S$2)<25,\"تجديد\",\"ساري\")))","v":"لا يوجد"},null,{"$f":"IF(Alldata[[#This Row],[انتهاء كارت التشغيل]]=\"\",\"لا يوجد\",IF((Alldata[[#This Row],[انتهاء كارت التشغيل]]-$S$2)<0,\"منتهي\",IF((Alldata[[#This Row],[انتهاء كارت التشغيل]]-$S$2)<25,\"تجديد\",\"ساري\")))","v":"لا يوجد"},null,null,null,null,null,null,null,null,null,null,null,null,null,null,null,null,null,null,null,null,null,{"$error":"#VALUE!"},{"$error":"#VALUE!"},null,{"$error":"#VALUE!"},null,null,null,{"$error":"#VALUE!"}]
[{"$f":"SUBTOTAL(3,$B$5:B56)","v":2},null,null,null,null,null,null,null,null,null,null,null,null,null,null,{"$f":"IF(Alldata[[#This Row],[انتهاء الفحص]]=\"\",\"لا يوجد\",IF((Alldata[[#This Row],[انتهاء الفحص]]-$S$2)<0,\"منتهي\",IF((Alldata[[#This Row],[انتهاء الفحص]]-$S$2)<25,\"تجديد\",\"ساري\")))","v":"لا يوجد"},null,{"$f":"IF(Alldata[[#This Row],[انتهاء الاستمارة]]=\"\",\"لا يوجد\",IF((Alldata[[#This Row],[انتهاء الاستمارة]]-$S$2)<0,\"منتهي\",IF((Alldata[[#This Row],[انتهاء الاستمارة]]-$S$2)<25,\"تجديد\",\"ساري\")))","v":"لا يوجد"},null,{"$f":"IF(Alldata[[#This Row],[انتهاء التأمين]]=\"\",\"لا يوجد\",IF((Alldata[[#This Row],[انتهاء التأمين]]-$S$2)<0,\"منتهي\",IF((Alldata[[#This Row],[انتهاء التأمين]]-$S$2)<25,\"تجديد\",\"ساري\")))","v":"لا يوجد"},null,{"$f":"IF(Alldata[[#This Row],[انتهاء كارت التشغيل]]=\"\",\"لا يوجد\",IF((Alldata[[#This Row],[انتهاء كارت التشغيل]]-$S$2)<0,\"منتهي\",IF((Alldata[[#This Row],[انتهاء كارت التشغيل]]-$S$2)<25,\"تجديد\",\"ساري\")))","v":"لا يوجد"},null,null,null,null,null,null,null,null,null,null,null,null,null,null,null,null,null,null,null,null,null,{"$error":"#VALUE!"},{"$error":"#VALUE!"},null,{"$error":"#VALUE!"},null,null,null,{"$error":"#VALUE!"}]
[{"$f":"SUBTOTAL(3,$B$5:B57)","v":2},null,null,null,null,null,null,null,null,null,null,null,null,null,null,{"$f":"IF(Alldata[[#This Row],[انتهاء الفحص]]=\"\",\"لا يوجد\",IF((Alldata[[#This Row],[انتهاء الفحص]]-$S$2)<0,\"منتهي\",IF((Alldata[[#This Row],[انتهاء الفحص]]-$S$2)<25,\"تجديد\",\"ساري\")))","v":"لا يوجد"},null,{"$f":"IF(Alldata[[#This Row],[انتهاء الاستمارة]]=\"\",\"لا يوجد\",IF((Alldata[[#This Row],[انتهاء الاستمارة]]-$S$2)<0,\"منتهي\",IF((Alldata[[#This Row],[انتهاء الاستمارة]]-$S$2)<25,\"تجديد\",\"ساري\")))","v":"لا يوجد"},null,{"$f":"IF(Alldata[[#This Row],[انتهاء التأمين]]=\"\",\"لا يوجد\",IF((Alldata[[#This Row],[انتهاء التأمين]]-$S$2)<0,\"منتهي\",IF((Alldata[[#This Row],[انتهاء التأمين]]-$S$2)<25,\"تجديد\",\"ساري\")))","v":"لا يوجد"},null,{"$f":"IF(Alldata[[#This Row],[انتهاء كارت التشغيل]]=\"\",\"لا يوجد\",IF((Alldata[[#This Row],[انتهاء كارت التشغيل]]-$S$2)<0,\"منتهي\",IF((Alldata[[#This Row],[انتهاء كارت التشغيل]]-$S$2)<25,\"تجديد\",\"ساري\")))","v":"لا يوجد"},null,null,null,null,null,null,null,null,null,null,null,null,null,null,null,null,null,null,null,null,null,{"$error":"#VALUE!"},{"$error":"#VALUE!"},null,{"$error":"#VALUE!"},null,null,null,{"$error":"#VALUE!"}]
[{"$f":"SUBTOTAL(3,$B$5:B58)","v":2},null,null,null,null,null,null,null,null,null,null,null,null,null,null,{"$f":"IF(Alldata[[#This Row],[انتهاء الفحص]]=\"\",\"لا يوجد\",IF((Alldata[[#This Row],[انتهاء الفحص]]-$S$2)<0,\"منتهي\",IF((Alldata[[#This Row],[انتهاء الفحص]]-$S$2)<25,\"تجديد\",\"ساري\")))","v":"لا يوجد"},null,{"$f":"IF(Alldata[[#This Row],[انتهاء الاستمارة]]=\"\",\"لا يوجد\",IF((Alldata[[#This Row],[انتهاء الاستمارة]]-$S$2)<0,\"منتهي\",IF((Alldata[[#This Row],[انتهاء الاستمارة]]-$S$2)<25,\"تجديد\",\"ساري\")))","v":"لا يوجد"},null,{"$f":"IF(Alldata[[#This Row],[انتهاء التأمين]]=\"\",\"لا يوجد\",IF((Alldata[[#This Row],[انتهاء التأمين]]-$S$2)<0,\"منتهي\",IF((Alldata[[#This Row],[انتهاء التأمين]]-$S$2)<25,\"تجديد\",\"ساري\")))","v":"لا يوجد"},null,{"$f":"IF(Alldata[[#This Row],[انتهاء كارت التشغيل]]=\"\",\"لا يوجد\",IF((Alldata[[#This Row],[انتهاء كارت التشغيل]]-$S$2)<0,\"منتهي\",IF((Alldata[[#This Row],[انتهاء كارت التشغيل]]-$S$2)<25,\"تجديد\",\"ساري\")))","v":"لا يوجد"},null,null,null,null,null,null,null,null,null,null,null,null,null,null,null,null,null,null,null,null,null,{"$error":"#VALUE!"},{"$error":"#VALUE!"},null,{"$error":"#VALUE!"},null,null,null,{"$error":"#VALUE!"}]
[{"$f":"SUBTOTAL(3,$B$5:B59)","v":2},null,null,null,null,null,null,null,null,null,null,null,null,null,null,{"$f":"IF(Alldata[[#This Row],[انتهاء الفحص]]=\"\",\"لا يوجد\",IF((Alldata[[#This Row],[انتهاء الفحص]]-$S$2)<0,\"منتهي\",IF((Alldata[[#This Row],[انتهاء الفحص]]-$S$2)<25,\"تجديد\",\"ساري\")))","v":"لا يوجد"},null,{"$f":"IF(Alldata[[#This Row],[انتهاء الاستمارة]]=\"\",\"لا يوجد\",IF((Alldata[[#This Row],[انتهاء الاستمارة]]-$S$2)<0,\"منتهي\",IF((Alldata[[#This Row],[انتهاء الاستمارة]]-$S$2)<25,\"تجديد\",\"ساري\")))","v":"لا يوجد"},null,{"$f":"IF(Alldata[[#This Row],[انتهاء التأمين]]=\"\",\"لا يوجد\",IF((Alldata[[#This Row],[انتهاء التأمين]]-$S$2)<0,\"منتهي\",IF((Alldata[[#This Row],[انتهاء التأمين]]-$S$2)<25,\"تجديد\",\"ساري\")))","v":"لا يوجد"},null,{"$f":"IF(Alldata[[#This Row],[انتهاء كارت التشغيل]]=\"\",\"لا يوجد\",IF((Alldata[[#This Row],[انتهاء كارت التشغيل]]-$S$2)<0,\"منتهي\",IF((Alldata[[#This Row],[انتهاء كارت التشغيل]]-$S$2)<25,\"تجديد\",\"ساري\")))","v":"لا يوجد"},null,null,null,null,null,null,null,null,null,null,null,null,null,null,null,null,null,null,null,null,null,{"$error":"#VALUE!"},{"$error":"#VALUE!"},null,{"$error":"#VALUE!"},null,null,null,{"$error":"#VALUE!"}]
[{"$f":"SUBTOTAL(3,$B$5:B60)","v":2},null,null,null,null,null,null,null,null,null,null,null,null,null,null,{"$f":"IF(Alldata[[#This Row],[انتهاء الفحص]]=\"\",\"لا يوجد\",IF((Alldata[[#This Row],[انتهاء الفحص]]-$S$2)<0,\"منتهي\",IF((Alldata[[#This Row],[انتهاء الفحص]]-$S$2)<25,\"تجديد\",\"ساري\")))","v":"لا يوجد"},null,{"$f":"IF(Alldata[[#This Row],[انتهاء الاستمارة]]=\"\",\"لا يوجد\",IF((Alldata[[#This Row],[انتهاء الاستمارة]]-$S$2)<0,\"منتهي\",IF((Alldata[[#This Row],[انتهاء الاستمارة]]-$S$2)<25,\"تجديد\",\"ساري\")))","v":"لا يوجد"},null,{"$f":"IF(Alldata[[#This Row],[انتهاء التأمين]]=\"\",\"لا يوجد\",IF((Alldata[[#This Row],[انتهاء التأمين]]-$S$2)<0,\"منتهي\",IF((Alldata[[#This Row],[انتهاء التأمين]]-$S$2)<25,\"تجديد\",\"ساري\")))","v":"لا يوجد"},null,{"$f":"IF(Alldata[[#This Row],[انتهاء كارت التشغيل]]=\"\",\"لا يوجد\",IF((Alldata[[#This Row],[انتهاء كارت التشغيل]]-$S$2)<0,\"منتهي\",IF((Alldata[[#This Row],[انتهاء كارت التشغيل]]-$S$2)<25,\"تجديد\",\"ساري\")))","v":"لا يوجد"},null,null,null,null,null,null,null,null,null,null,null,null,null,null,null,null,null,null,null,null,null,{"$error":"#VALUE!"},{"$error":"#VALUE!"},null,{"$error":"#VALUE!"},null,null,null,{"$error":"#VALUE!"}]
[{"$f":"SUBTOTAL(3,$B$5:B61)","v":2},null,null,null,null,null,null,null,null,null,null,null,null,null,null,{"$f":"IF(Alldata[[#This Row],[انتهاء الفحص]]=\"\",\"لا يوجد\",IF((Alldata[[#This Row],[انتهاء الفحص]]-$S$2)<0,\"منتهي\",IF((Alldata[[#This Row],[انتهاء الفحص]]-$S$2)<25,\"تجديد\",\"ساري\")))","v":"لا يوجد"},null,{"$f":"IF(Alldata[[#This Row],[انتهاء الاستمارة]]=\"\",\"لا يوجد\",IF((Alldata[[#This Row],[انتهاء الاستمارة]]-$S$2)<0,\"منتهي\",IF((Alldata[[#This Row],[انتهاء الاستمارة]]-$S$2)<25,\"تجديد\",\"ساري\")))","v":"لا يوجد"},null,{"$f":"IF(Alldata[[#This Row],[انتهاء التأمين]]=\"\",\"لا يوجد\",IF((Alldata[[#This Row],[انتهاء التأمين]]-$S$2)<0,\"منتهي\",IF((Alldata[[#This Row],[انتهاء التأمين]]-$S$2)<25,\"تجديد\",\"ساري\")))","v":"لا يوجد"},null,{"$f":"IF(Alldata[[#This Row],[انتهاء كارت التشغيل]]=\"\",\"لا يوجد\",IF((Alldata[[#This Row],[انتهاء كارت التشغيل]]-$S$2)<0,\"منتهي\",IF((Alldata[[#This Row],[انتهاء كارت التشغيل]]-$S$2)<25,\"تجديد\",\"ساري\")))","v":"لا يوجد"},null,null,null,null,null,null,null,null,null,null,null,null,null,null,null,null,null,null,null,null,null,{"$error":"#VALUE!"},{"$error":"#VALUE!"},null,{"$error":"#VALUE!"},null,null,null,{"$error":"#VALUE!"}]
[{"$f":"SUBTOTAL(3,$B$5:B62)","v":2},null,null,null,null,null,null,null,null,null,null,null,null,null,null,{"$f":"IF(Alldata[[#This Row],[انتهاء الفحص]]=\"\",\"لا يوجد\",IF((Alldata[[#This Row],[انتهاء الفحص]]-$S$2)<0,\"منتهي\",IF((Alldata[[#This Row],[انتهاء الفحص]]-$S$2)<25,\"تجديد\",\"ساري\")))","v":"لا يوجد"},null,{"$f":"IF(Alldata[[#This Row],[انتهاء الاستمارة]]=\"\",\"لا يوجد\",IF((Alldata[[#This Row],[انتهاء الاستمارة]]-$S$2)<0,\"منتهي\",IF((Alldata[[#This Row],[انتهاء الاستمارة]]-$S$2)<25,\"تجديد\",\"ساري\")))","v":"لا يوجد"},null,{"$f":"IF(Alldata[[#This Row],[انتهاء التأمين]]=\"\",\"لا يوجد\",IF((Alldata[[#This Row],[انتهاء التأمين]]-$S$2)<0,\"منتهي\",IF((Alldata[[#This Row],[انتهاء التأمين]]-$S$2)<25,\"تجديد\",\"ساري\")))","v":"لا يوجد"},null,{"$f":"IF(Alldata[[#This Row],[انتهاء كارت التشغيل]]=\"\",\"لا يوجد\",IF((Alldata[[#This Row],[انتهاء كارت التشغيل]]-$S$2)<0,\"منتهي\",IF((Alldata[[#This Row],[انتهاء كارت التشغيل]]-$S$2)<25,\"تجديد\",\"ساري\")))","v":"لا يوجد"},null,null,null,null,null,null,null,null,null,null,null,null,null,null,null,null,null,null,null,null,null,{"$error":"#VALUE!"},{"$error":"#VALUE!"},null,{"$error":"#VALUE!"},null,null,null,{"$error":"#VALUE!"}]
[{"$f":"SUBTOTAL(3,$B$5:B63)","v":2},null,null,null,null,null,null,null,null,null,null,null,null,null,null,{"$f":"IF(Alldata[[#This Row],[انتهاء الفحص]]=\"\",\"لا يوجد\",IF((Alldata[[#This Row],[انتهاء الفحص]]-$S$2)<0,\"منتهي\",IF((Alldata[[#This Row],[انتهاء الفحص]]-$S$2)<25,\"تجديد\",\"ساري\")))","v":"لا يوجد"},null,{"$f":"IF(Alldata[[#This Row],[انتهاء الاستمارة]]=\"\",\"لا يوجد\",IF((Alldata[[#This Row],[انتهاء الاستمارة]]-$S$2)<0,\"منتهي\",IF((Alldata[[#This Row],[انتهاء الاستمارة]]-$S$2)<25,\"تجديد\",\"ساري\")))","v":"لا يوجد"},null,{"$f":"IF(Alldata[[#This Row],[انتهاء التأمين]]=\"\",\"لا يوجد\",IF((Alldata[[#This Row],[انتهاء التأمين]]-$S$2)<0,\"منتهي\",IF((Alldata[[#This Row],[انتهاء التأمين]]-$S$2)<25,\"تجديد\",\"ساري\")))","v":"لا يوجد"},null,{"$f":"IF(Alldata[[#This Row],[انتهاء كارت التشغيل]]=\"\",\"لا يوجد\",IF((Alldata[[#This Row],[انتهاء كارت التشغيل]]-$S$2)<0,\"منتهي\",IF((Alldata[[#This Row],[انتهاء كارت التشغيل]]-$S$2)<25,\"تجديد\",\"ساري\")))","v":"لا يوجد"},null,null,null,null,null,null,null,null,null,null,null,null,null,null,null,null,null,null,null,null,null,{"$error":"#VALUE!"},{"$error":"#VALUE!"},null,{"$error":"#VALUE!"},null,null,null,{"$error":"#VALUE!"}]
[{"$f":"SUBTOTAL(3,$B$5:B64)","v":2},null,null,null,null,null,null,null,null,null,null,null,null,null,null,{"$f":"IF(Alldata[[#This Row],[انتهاء الفحص]]=\"\",\"لا يوجد\",IF((Alldata[[#This Row],[انتهاء الفحص]]-$S$2)<0,\"منتهي\",IF((Alldata[[#This Row],[انتهاء الفحص]]-$S$2)<25,\"تجديد\",\"ساري\")))","v":"لا يوجد"},null,{"$f":"IF(Alldata[[#This Row],[انتهاء الاستمارة]]=\"\",\"لا يوجد\",IF((Alldata[[#This Row],[انتهاء الاستمارة]]-$S$2)<0,\"منتهي\",IF((Alldata[[#This Row],[انتهاء الاستمارة]]-$S$2)<25,\"تجديد\",\"ساري\")))","v":"لا يوجد"},null,{"$f":"IF(Alldata[[#This Row],[انتهاء التأمين]]=\"\",\"لا يوجد\",IF((Alldata[[#This Row],[انتهاء التأمين]]-$S$2)<0,\"منتهي\",IF((Alldata[[#This Row],[انتهاء التأمين]]-$S$2)<25,\"تجديد\",\"ساري\")))","v":"لا يوجد"},null,{"$f":"IF(Alldata[[#This Row],[انتهاء كارت التشغيل]]=\"\",\"لا يوجد\",IF((Alldata[[#This Row],[انتهاء كارت التشغيل]]-$S$2)<0,\"منتهي\",IF((Alldata[[#This Row],[انتهاء كارت التشغيل]]-$S$2)<25,\"تجديد\",\"ساري\")))","v":"لا يوجد"},null,null,null,null,null,null,null,null,null,null,null,null,null,null,null,null,null,null,null,null,null,{"$error":"#VALUE!"},{"$error":"#VALUE!"},null,{"$error":"#VALUE!"},null,null,null,{"$error":"#VALUE!"}]
[{"$f":"SUBTOTAL(3,$B$5:B65)","v":2},null,null,null,null,null,null,null,null,null,null,null,null,null,null,{"$f":"IF(Alldata[[#This Row],[انتهاء الفحص]]=\"\",\"لا يوجد\",IF((Alldata[[#This Row],[انتهاء الفحص]]-$S$2)<0,\"منتهي\",IF((Alldata[[#This Row],[انتهاء الفحص]]-$S$2)<25,\"تجديد\",\"ساري\")))","v":"لا يوجد"},null,{"$f":"IF(Alldata[[#This Row],[انتهاء الاستمارة]]=\"\",\"لا يوجد\",IF((Alldata[[#This Row],[انتهاء الاستمارة]]-$S$2)<0,\"منتهي\",IF((Alldata[[#This Row],[انتهاء الاستمارة]]-$S$2)<25,\"تجديد\",\"ساري\")))","v":"لا يوجد"},null,{"$f":"IF(Alldata[[#This Row],[انتهاء التأمين]]=\"\",\"لا يوجد\",IF((Alldata[[#This Row],[انتهاء التأمين]]-$S$2)<0,\"منتهي\",IF((Alldata[[#This Row],[انتهاء التأمين]]-$S$2)<25,\"تجديد\",\"ساري\")))","v":"لا يوجد"},null,{"$f":"IF(Alldata[[#This Row],[انتهاء كارت التشغيل]]=\"\",\"لا يوجد\",IF((Alldata[[#This Row],[انتهاء كارت التشغيل]]-$S$2)<0,\"منتهي\",IF((Alldata[[#This Row],[انتهاء كارت التشغيل]]-$S$2)<25,\"تجديد\",\"ساري\")))","v":"لا يوجد"},null,null,null,null,null,null,null,null,null,null,null,null,null,null,null,null,null,null,null,null,null,{"$error":"#VALUE!"},{"$error":"#VALUE!"},null,{"$error":"#VALUE!"},null,null,null,{"$error":"#VALUE!"}]
[{"$f":"SUBTOTAL(3,$B$5:B66)","v":2},null,null,null,null,null,null,null,null,null,null,null,null,null,null,{"$f":"IF(Alldata[[#This Row],[انتهاء الفحص]]=\"\",\"لا يوجد\",IF((Alldata[[#This Row],[انتهاء الفحص]]-$S$2)<0,\"منتهي\",IF((Alldata[[#This Row],[انتهاء الفحص]]-$S$2)<25,\"تجديد\",\"ساري\")))","v":"لا يوجد"},null,{"$f":"IF(Alldata[[#This Row],[انتهاء الاستمارة]]=\"\",\"لا يوجد\",IF((Alldata[[#This Row],[انتهاء الاستمارة]]-$S$2)<0,\"منتهي\",IF((Alldata[[#This Row],[انتهاء الاستمارة]]-$S$2)<25,\"تجديد\",\"ساري\")))","v":"لا يوجد"},null,{"$f":"IF(Alldata[[#This Row],[انتهاء التأمين]]=\"\",\"لا يوجد\",IF((Alldata[[#This Row],[انتهاء التأمين]]-$S$2)<0,\"منتهي\",IF((Alldata[[#This Row],[انتهاء التأمين]]-$S$2)<25,\"تجديد\",\"ساري\")))","v":"لا يوجد"},null,{"$f":"IF(Alldata[[#This Row],[انتهاء كارت التشغيل]]=\"\",\"لا يوجد\",IF((Alldata[[#This Row],[انتهاء كارت التشغيل]]-$S$2)<0,\"منتهي\",IF((Alldata[[#This Row],[انتهاء كارت التشغيل]]-$S$2)<25,\"تجديد\",\"ساري\")))","v":"لا يوجد"},null,null,null,null,null,null,null,null,null,null,null,null,null,null,null,null,null,null,null,null,null,{"$error":"#VALUE!"},{"$error":"#VALUE!"},null,{"$error":"#VALUE!"},null,null,null,{"$error":"#VALUE!"}]
[{"$f":"SUBTOTAL(3,$B$5:B67)","v":2},null,null,null,null,null,null,null,null,null,null,null,null,null,null,{"$f":"IF(Alldata[[#This Row],[انتهاء الفحص]]=\"\",\"لا يوجد\",IF((Alldata[[#This Row],[انتهاء الفحص]]-$S$2)<0,\"منتهي\",IF((Alldata[[#This Row],[انتهاء الفحص]]-$S$2)<25,\"تجديد\",\"ساري\")))","v":"لا يوجد"},null,{"$f":"IF(Alldata[[#This Row],[انتهاء الاستمارة]]=\"\",\"لا يوجد\",IF((Alldata[[#This Row],[انتهاء الاستمارة]]-$S$2)<0,\"منتهي\",IF((Alldata[[#This Row],[انتهاء الاستمارة]]-$S$2)<25,\"تجديد\",\"ساري\")))","v":"لا يوجد"},null,{"$f":"IF(Alldata[[#This Row],[انتهاء التأمين]]=\"\",\"لا يوجد\",IF((Alldata[[#This Row],[انتهاء التأمين]]-$S$2)<0,\"منتهي\",IF((Alldata[[#This Row],[انتهاء التأمين]]-$S$2)<25,\"تجديد\",\"ساري\")))","v":"لا يوجد"},null,{"$f":"IF(Alldata[[#This Row],[انتهاء كارت التشغيل]]=\"\",\"لا يوجد\",IF((Alldata[[#This Row],[انتهاء كارت التشغيل]]-$S$2)<0,\"منتهي\",IF((Alldata[[#This Row],[انتهاء كارت التشغيل]]-$S$2)<25,\"تجديد\",\"ساري\")))","v":"لا يوجد"},null,null,null,null,null,null,null,null,null,null,null,null,null,null,null,null,null,null,null,null,null,{"$error":"#VALUE!"},{"$error":"#VALUE!"},null,{"$error":"#VALUE!"},null,null,null,{"$error":"#VALUE!"}]
[{"$f":"SUBTOTAL(3,$B$5:B68)","v":2},null,null,null,null,null,null,null,null,null,null,null,null,null,null,{"$f":"IF(Alldata[[#This Row],[انتهاء الفحص]]=\"\",\"لا يوجد\",IF((Alldata[[#This Row],[انتهاء الفحص]]-$S$2)<0,\"منتهي\",IF((Alldata[[#This Row],[انتهاء الفحص]]-$S$2)<25,\"تجديد\",\"ساري\")))","v":"لا يوجد"},null,{"$f":"IF(Alldata[[#This Row],[انتهاء الاستمارة]]=\"\",\"لا يوجد\",IF((Alldata[[#This Row],[انتهاء الاستمارة]]-$S$2)<0,\"منتهي\",IF((Alldata[[#This Row],[انتهاء الاستمارة]]-$S$2)<25,\"تجديد\",\"ساري\")))","v":"لا يوجد"},null,{"$f":"IF(Alldata[[#This Row],[انتهاء التأمين]]=\"\",\"لا يوجد\",IF((Alldata[[#This Row],[انتهاء التأمين]]-$S$2)<0,\"منتهي\",IF((Alldata[[#This Row],[انتهاء التأمين]]-$S$2)<25,\"تجديد\",\"ساري\")))","v":"لا يوجد"},null,{"$f":"IF(Alldata[[#This Row],[انتهاء كارت التشغيل]]=\"\",\"لا يوجد\",IF((Alldata[[#This Row],[انتهاء كارت التشغيل]]-$S$2)<0,\"منتهي\",IF((Alldata[[#This Row],[انتهاء كارت التشغيل]]-$S$2)<25,\"تجديد\",\"ساري\")))","v":"لا يوجد"},null,null,null,null,null,null,null,null,null,null,null,null,null,null,null,null,null,null,null,null,null,{"$error":"#VALUE!"},{"$error":"#VALUE!"},null,{"$error":"#VALUE!"},null,null,null,{"$error":"#VALUE!"}]
[{"$f":"SUBTOTAL(3,$B$5:B69)","v":2},null,null,null,null,null,null,null,null,null,null,null,null,null,null,{"$f":"IF(Alldata[[#This Row],[انتهاء الفحص]]=\"\",\"لا يوجد\",IF((Alldata[[#This Row],[انتهاء الفحص]]-$S$2)<0,\"منتهي\",IF((Alldata[[#This Row],[انتهاء الفحص]]-$S$2)<25,\"تجديد\",\"ساري\")))","v":"لا يوجد"},null,{"$f":"IF(Alldata[[#This Row],[انتهاء الاستمارة]]=\"\",\"لا يوجد\",IF((Alldata[[#This Row],[انتهاء الاستمارة]]-$S$2)<0,\"منتهي\",IF((Alldata[[#This Row],[انتهاء الاستمارة]]-$S$2)<25,\"تجديد\",\"ساري\")))","v":"لا يوجد"},null,{"$f":"IF(Alldata[[#This Row],[انتهاء التأمين]]=\"\",\"لا يوجد\",IF((Alldata[[#This Row],[انتهاء التأمين]]-$S$2)<0,\"منتهي\",IF((Alldata[[#This Row],[انتهاء التأمين]]-$S$2)<25,\"تجديد\",\"ساري\")))","v":"لا يوجد"},null,{"$f":"IF(Alldata[[#This Row],[انتهاء كارت التشغيل]]=\"\",\"لا يوجد\",IF((Alldata[[#This Row],[انتهاء كارت التشغيل]]-$S$2)<0,\"منتهي\",IF((Alldata[[#This Row],[انتهاء كارت التشغيل]]-$S$2)<25,\"تجديد\",\"ساري\")))","v":"لا يوجد"},null,null,null,null,null,null,null,null,null,null,null,null,null,null,null,null,null,null,null,null,null,{"$f":"L67-AS70","v":{"$error":"#VALUE!"}},{"$f":"ConvertDate(Q70)","v":{"$error":"#VALUE!"}},null,{"$f":"ConvertDate(S70)","v":{"$error":"#VALUE!"}},null,null,null,{"$f":"ConvertDate(X70)","v":{"$error":"#VALUE!"}}]
[{"$f":"SUBTOTAL(3,$B$5:B70)","v":2},null,null,null,null,null,null,null,null,null,null,null,null,null,null,{"$f":"IF(Alldata[[#This Row],[انتهاء الفحص]]=\"\",\"لا يوجد\",IF((Alldata[[#This Row],[انتهاء الفحص]]-$S$2)<0,\"منتهي\",IF((Alldata[[#This Row],[انتهاء الفحص]]-$S$2)<25,\"تجديد\",\"ساري\")))","v":"لا يوجد"},null,{"$f":"IF(Alldata[[#This Row],[انتهاء الاستمارة]]=\"\",\"لا يوجد\",IF((Alldata[[#This Row],[انتهاء الاستمارة]]-$S$2)<0,\"منتهي\",IF((Alldata[[#This Row],[انتهاء الاستمارة]]-$S$2)<25,\"تجديد\",\"ساري\")))","v":"لا يوجد"},null,{"$f":"IF(Alldata[[#This Row],[انتهاء التأمين]]=\"\",\"لا يوجد\",IF((Alldata[[#This Row],[انتهاء التأمين]]-$S$2)<0,\"منتهي\",IF((Alldata[[#This Row],[انتهاء التأمين]]-$S$2)<25,\"تجديد\",\"ساري\")))","v":"لا يوجد"},null,{"$f":"IF(Alldata[[#This Row],[انتهاء كارت التشغيل]]=\"\",\"لا يوجد\",IF((Alldata[[#This Row],[انتهاء كارت التشغيل]]-$S$2)<0,\"منتهي\",IF((Alldata[[#This Row],[انتهاء كارت التشغيل]]-$S$2)<25,\"تجديد\",\"ساري\")))","v":"لا يوجد"},null,null,null,null,null,null,null,null,null,null,null,null,null,null,null,null,null,null,null,null,null,{"$error":"#VALUE!"},{"$error":"#VALUE!"},null,{"$error":"#VALUE!"},null,null,null,{"$error":"#VALUE!"}]
[{"$f":"SUBTOTAL(3,$B$5:B71)","v":2},null,null,null,null,null,null,null,null,null,null,null,null,null,null,{"$f":"IF(Alldata[[#This Row],[انتهاء الفحص]]=\"\",\"لا يوجد\",IF((Alldata[[#This Row],[انتهاء الفحص]]-$S$2)<0,\"منتهي\",IF((Alldata[[#This Row],[انتهاء الفحص]]-$S$2)<25,\"تجديد\",\"ساري\")))","v":"لا يوجد"},null,{"$f":"IF(Alldata[[#This Row],[انتهاء الاستمارة]]=\"\",\"لا يوجد\",IF((Alldata[[#This Row],[انتهاء الاستمارة]]-$S$2)<0,\"منتهي\",IF((Alldata[[#This Row],[انتهاء الاستمارة]]-$S$2)<25,\"تجديد\",\"ساري\")))","v":"لا يوجد"},null,{"$f":"IF(Alldata[[#This Row],[انتهاء التأمين]]=\"\",\"لا يوجد\",IF((Alldata[[#This Row],[انتهاء التأمين]]-$S$2)<0,\"منتهي\",IF((Alldata[[#This Row],[انتهاء التأمين]]-$S$2)<25,\"تجديد\",\"ساري\")))","v":"لا يوجد"},null,{"$f":"IF(Alldata[[#This Row],[انتهاء كارت التشغيل]]=\"\",\"لا يوجد\",IF((Alldata[[#This Row],[انتهاء كارت التشغيل]]-$S$2)<0,\"منتهي\",IF((Alldata[[#This Row],[انتهاء كارت التشغيل]]-$S$2)<25,\"تجديد\",\"ساري\")))","v":"لا يوجد"},null,null,null,null,null,null,null,null,null,null,null,null,null,null,null,null,null,null,null,null,null,{"$error":"#VALUE!"},{"$error":"#VALUE!"},null,{"$error":"#VALUE!"},null,null,null,{"$error":"#VALUE!"}]
[{"$f":"SUBTOTAL(3,$B$5:B72)","v":2},null,null,null,null,null,null,null,null,null,null,null,null,null,null,{"$f":"IF(Alldata[[#This Row],[انتهاء الفحص]]=\"\",\"لا يوجد\",IF((Alldata[[#This Row],[انتهاء الفحص]]-$S$2)<0,\"منتهي\",IF((Alldata[[#This Row],[انتهاء الفحص]]-$S$2)<25,\"تجديد\",\"ساري\")))","v":"لا يوجد"},null,{"$f":"IF(Alldata[[#This Row],[انتهاء الاستمارة]]=\"\",\"لا يوجد\",IF((Alldata[[#This Row],[انتهاء الاستمارة]]-$S$2)<0,\"منتهي\",IF((Alldata[[#This Row],[انتهاء الاستمارة]]-$S$2)<25,\"تجديد\",\"ساري\")))","v":"لا يوجد"},null,{"$f":"IF(Alldata[[#This Row],[انتهاء التأمين]]=\"\",\"لا يوجد\",IF((Alldata[[#This Row],[انتهاء التأمين]]-$S$2)<0,\"منتهي\",IF((Alldata[[#This Row],[انتهاء التأمين]]-$S$2)<25,\"تجديد\",\"ساري\")))","v":"لا يوجد"},null,{"$f":"IF(Alldata[[#This Row],[انتهاء كارت التشغيل]]=\"\",\"لا يوجد\",IF((Alldata[[#This Row],[انتهاء كارت التشغيل]]-$S$2)<0,\"منتهي\",IF((Alldata[[#This Row],[انتهاء كارت التشغيل]]-$S$2)<25,\"تجديد\",\"ساري\")))","v":"لا يوجد"},null,null,null,null,null,null,null,null,null,null,null,null,null,null,null,null,null,null,null,null,null,{"$error":"#VALUE!"},{"$error":"#VALUE!"},null,{"$error":"#VALUE!"},null,null,null,{"$error":"#VALUE!"}]
[{"$f":"SUBTOTAL(3,$B$5:B73)","v":2},null,null,null,null,null,null,null,null,null,null,null,null,null,null,{"$f":"IF(Alldata[[#This Row],[انتهاء الفحص]]=\"\",\"لا يوجد\",IF((Alldata[[#This Row],[انتهاء الفحص]]-$S$2)<0,\"منتهي\",IF((Alldata[[#This Row],[انتهاء الفحص]]-$S$2)<25,\"تجديد\",\"ساري\")))","v":"لا يوجد"},null,{"$f":"IF(Alldata[[#This Row],[انتهاء الاستمارة]]=\"\",\"لا يوجد\",IF((Alldata[[#This Row],[انتهاء الاستمارة]]-$S$2)<0,\"منتهي\",IF((Alldata[[#This Row],[انتهاء الاستمارة]]-$S$2)<25,\"تجديد\",\"ساري\")))","v":"لا يوجد"},null,{"$f":"IF(Alldata[[#This Row],[انتهاء التأمين]]=\"\",\"لا يوجد\",IF((Alldata[[#This Row],[انتهاء التأمين]]-$S$2)<0,\"منتهي\",IF((Alldata[[#This Row],[انتهاء التأمين]]-$S$2)<25,\"تجديد\",\"ساري\")))","v":"لا يوجد"},null,{"$f":"IF(Alldata[[#This Row],[انتهاء كارت التشغيل]]=\"\",\"لا يوجد\",IF((Alldata[[#This Row],[انتهاء كارت التشغيل]]-$S$2)<0,\"منتهي\",IF((Alldata[[#This Row],[انتهاء كارت التشغيل]]-$S$2)<25,\"تجديد\",\"ساري\")))","v":"لا يوجد"},null,null,null,null,null,null,null,null,null,null,null,null,null,null,null,null,null,null,null,null,null,{"$error":"#VALUE!"},{"$error":"#VALUE!"},null,{"$error":"#VALUE!"},null,null,null,{"$error":"#VALUE!"}]
[{"$f":"SUBTOTAL(3,$B$5:B74)","v":2},null,null,null,null,null,null,null,null,null,null,null,null,null,null,{"$f":"IF(Alldata[[#This Row],[انتهاء الفحص]]=\"\",\"لا يوجد\",IF((Alldata[[#This Row],[انتهاء الفحص]]-$S$2)<0,\"منتهي\",IF((Alldata[[#This Row],[انتهاء الفحص]]-$S$2)<25,\"تجديد\",\"ساري\")))","v":"لا يوجد"},null,{"$f":"IF(Alldata[[#This Row],[انتهاء الاستمارة]]=\"\",\"لا يوجد\",IF((Alldata[[#This Row],[انتهاء الاستمارة]]-$S$2)<0,\"منتهي\",IF((Alldata[[#This Row],[انتهاء الاستمارة]]-$S$2)<25,\"تجديد\",\"ساري\")))","v":"لا يوجد"},null,{"$f":"IF(Alldata[[#This Row],[انتهاء التأمين]]=\"\",\"لا يوجد\",IF((Alldata[[#This Row],[انتهاء التأمين]]-$S$2)<0,\"منتهي\",IF((Alldata[[#This Row],[انتهاء التأمين]]-$S$2)<25,\"تجديد\",\"ساري\")))","v":"لا يوجد"},null,{"$f":"IF(Alldata[[#This Row],[انتهاء كارت التشغيل]]=\"\",\"لا يوجد\",IF((Alldata[[#This Row],[انتهاء كارت التشغيل]]-$S$2)<0,\"منتهي\",IF((Alldata[[#This Row],[انتهاء كارت التشغيل]]-$S$2)<25,\"تجديد\",\"ساري\")))","v":"لا يوجد"},null,null,null,null,null,null,null,null,null,null,null,null,null,null,null,null,null,null,null,null,null,{"$error":"#VALUE!"},{"$error":"#VALUE!"},null,{"$error":"#VALUE!"},null,null,null,{"$error":"#VALUE!"}]
[{"$f":"SUBTOTAL(3,$B$5:B75)","v":2},null,null,null,null,null,null,null,null,null,null,null,null,null,null,{"$f":"IF(Alldata[[#This Row],[انتهاء الفحص]]=\"\",\"لا يوجد\",IF((Alldata[[#This Row],[انتهاء الفحص]]-$S$2)<0,\"منتهي\",IF((Alldata[[#This Row],[انتهاء الفحص]]-$S$2)<25,\"تجديد\",\"ساري\")))","v":"لا يوجد"},null,{"$f":"IF(Alldata[[#This Row],[انتهاء الاستمارة]]=\"\",\"لا يوجد\",IF((Alldata[[#This Row],[انتهاء الاستمارة]]-$S$2)<0,\"منتهي\",IF((Alldata[[#This Row],[انتهاء الاستمارة]]-$S$2)<25,\"تجديد\",\"ساري\")))","v":"لا يوجد"},null,{"$f":"IF(Alldata[[#This Row],[انتهاء التأمين]]=\"\",\"لا يوجد\",IF((Alldata[[#This Row],[انتهاء التأمين]]-$S$2)<0,\"منتهي\",IF((Alldata[[#This Row],[انتهاء التأمين]]-$S$2)<25,\"تجديد\",\"ساري\")))","v":"لا يوجد"},null,{"$f":"IF(Alldata[[#This Row],[انتهاء كارت التشغيل]]=\"\",\"لا يوجد\",IF((Alldata[[#This Row],[انتهاء كارت التشغيل]]-$S$2)<0,\"منتهي\",IF((Alldata[[#This Row],[انتهاء كارت التشغيل]]-$S$2)<25,\"تجديد\",\"ساري\")))","v":"لا يوجد"},null,null,null,null,null,null,null,null,null,null,null,null,null,null,null,null,null,null,null,null,null,{"$error":"#VALUE!"},{"$error":"#VALUE!"},null,{"$error":"#VALUE!"},null,null,null,{"$error":"#VALUE!"}]
[{"$f":"SUBTOTAL(3,$B$5:B76)","v":2},null,null,null,null,null,null,null,null,null,null,null,null,null,null,{"$f":"IF(Alldata[[#This Row],[انتهاء الفحص]]=\"\",\"لا يوجد\",IF((Alldata[[#This Row],[انتهاء الفحص]]-$S$2)<0,\"منتهي\",IF((Alldata[[#This Row],[انتهاء الفحص]]-$S$2)<25,\"تجديد\",\"ساري\")))","v":"لا يوجد"},null,{"$f":"IF(Alldata[[#This Row],[انتهاء الاستمارة]]=\"\",\"لا يوجد\",IF((Alldata[[#This Row],[انتهاء الاستمارة]]-$S$2)<0,\"منتهي\",IF((Alldata[[#This Row],[انتهاء الاستمارة]]-$S$2)<25,\"تجديد\",\"ساري\")))","v":"لا يوجد"},null,{"$f":"IF(Alldata[[#This Row],[انتهاء التأمين]]=\"\",\"لا يوجد\",IF((Alldata[[#This Row],[انتهاء التأمين]]-$S$2)<0,\"منتهي\",IF((Alldata[[#This Row],[انتهاء التأمين]]-$S$2)<25,\"تجديد\",\"ساري\")))","v":"لا يوجد"},null,{"$f":"IF(Alldata[[#This Row],[انتهاء كارت التشغيل]]=\"\",\"لا يوجد\",IF((Alldata[[#This Row],[انتهاء كارت التشغيل]]-$S$2)<0,\"منتهي\",IF((Alldata[[#This Row],[انتهاء كارت التشغيل]]-$S$2)<25,\"تجديد\",\"ساري\")))","v":"لا يوجد"},null,null,null,null,null,null,null,null,null,null,null,null,null,null,null,null,null,null,null,null,null,{"$error":"#VALUE!"},{"$error":"#VALUE!"},null,{"$error":"#VALUE!"},null,null,null,{"$error":"#VALUE!"}]
[{"$f":"SUBTOTAL(3,$B$5:B77)","v":2},null,null,null,null,null,null,null,null,null,null,null,null,null,null,{"$f":"IF(Alldata[[#This Row],[انتهاء الفحص]]=\"\",\"لا يوجد\",IF((Alldata[[#This Row],[انتهاء الفحص]]-$S$2)<0,\"منتهي\",IF((Alldata[[#This Row],[انتهاء الفحص]]-$S$2)<25,\"تجديد\",\"ساري\")))","v":"لا يوجد"},null,{"$f":"IF(Alldata[[#This Row],[انتهاء الاستمارة]]=\"\",\"لا يوجد\",IF((Alldata[[#This Row],[انتهاء الاستمارة]]-$S$2)<0,\"منتهي\",IF((Alldata[[#This Row],[انتهاء الاستمارة]]-$S$2)<25,\"تجديد\",\"ساري\")))","v":"لا يوجد"},null,{"$f":"IF(Alldata[[#This Row],[انتهاء التأمين]]=\"\",\"لا يوجد\",IF((Alldata[[#This Row],[انتهاء التأمين]]-$S$2)<0,\"منتهي\",IF((Alldata[[#This Row],[انتهاء التأمين]]-$S$2)<25,\"تجديد\",\"ساري\")))","v":"لا يوجد"},null,{"$f":"IF(Alldata[[#This Row],[انتهاء كارت التشغيل]]=\"\",\"لا يوجد\",IF((Alldata[[#This Row],[انتهاء كارت التشغيل]]-$S$2)<0,\"منتهي\",IF((Alldata[[#This Row],[انتهاء كارت التشغيل]]-$S$2)<25,\"تجديد\",\"ساري\")))","v":"لا يوجد"},null,null,null,null,null,null,null,null,null,null,null,null,null,null,null,null,null,null,null,null,null,{"$error":"#VALUE!"},{"$error":"#VALUE!"},null,{"$error":"#VALUE!"},null,null,null,{"$error":"#VALUE!"}]
[{"$f":"SUBTOTAL(3,$B$5:B78)","v":2},null,null,null,null,null,null,null,null,null,null,null,null,null,null,{"$f":"IF(Alldata[[#This Row],[انتهاء الفحص]]=\"\",\"لا يوجد\",IF((Alldata[[#This Row],[انتهاء الفحص]]-$S$2)<0,\"منتهي\",IF((Alldata[[#This Row],[انتهاء الفحص]]-$S$2)<25,\"تجديد\",\"ساري\")))","v":"لا يوجد"},null,{"$f":"IF(Alldata[[#This Row],[انتهاء الاستمارة]]=\"\",\"لا يوجد\",IF((Alldata[[#This Row],[انتهاء الاستمارة]]-$S$2)<0,\"منتهي\",IF((Alldata[[#This Row],[انتهاء الاستمارة]]-$S$2)<25,\"تجديد\",\"ساري\")))","v":"لا يوجد"},null,{"$f":"IF(Alldata[[#This Row],[انتهاء التأمين]]=\"\",\"لا يوجد\",IF((Alldata[[#This Row],[انتهاء التأمين]]-$S$2)<0,\"منتهي\",IF((Alldata[[#This Row],[انتهاء التأمين]]-$S$2)<25,\"تجديد\",\"ساري\")))","v":"لا يوجد"},null,{"$f":"IF(Alldata[[#This Row],[انتهاء كارت التشغيل]]=\"\",\"لا يوجد\",IF((Alldata[[#This Row],[انتهاء كارت التشغيل]]-$S$2)<0,\"منتهي\",IF((Alldata[[#This Row],[انتهاء كارت التشغيل]]-$S$2)<25,\"تجديد\",\"ساري\")))","v":"لا يوجد"},null,null,null,null,null,null,null,null,null,null,null,null,null,null,null,null,null,null,null,null,null,{"$error":"#VALUE!"},{"$error":"#VALUE!"},null,{"$error":"#VALUE!"},null,null,null,{"$error":"#VALUE!"}]
[{"$f":"SUBTOTAL(3,$B$5:B79)","v":2},null,null,null,null,null,null,null,null,null,null,null,null,null,null,{"$f":"IF(Alldata[[#This Row],[انتهاء الفحص]]=\"\",\"لا يوجد\",IF((Alldata[[#This Row],[انتهاء الفحص]]-$S$2)<0,\"منتهي\",IF((Alldata[[#This Row],[انتهاء الفحص]]-$S$2)<25,\"تجديد\",\"ساري\")))","v":"لا يوجد"},null,{"$f":"IF(Alldata[[#This Row],[انتهاء الاستمارة]]=\"\",\"لا يوجد\",IF((Alldata[[#This Row],[انتهاء الاستمارة]]-$S$2)<0,\"منتهي\",IF((Alldata[[#This Row],[انتهاء الاستمارة]]-$S$2)<25,\"تجديد\",\"ساري\")))","v":"لا يوجد"},null,{"$f":"IF(Alldata[[#This Row],[انتهاء التأمين]]=\"\",\"لا يوجد\",IF((Alldata[[#This Row],[انتهاء التأمين]]-$S$2)<0,\"منتهي\",IF((Alldata[[#This Row],[انتهاء التأمين]]-$S$2)<25,\"تجديد\",\"ساري\")))","v":"لا يوجد"},null,{"$f":"IF(Alldata[[#This Row],[انتهاء كارت التشغيل]]=\"\",\"لا يوجد\",IF((Alldata[[#This Row],[انتهاء كارت التشغيل]]-$S$2)<0,\"منتهي\",IF((Alldata[[#This Row],[انتهاء كارت التشغيل]]-$S$2)<25,\"تجديد\",\"ساري\")))","v":"لا يوجد"},null,null,null,null,null,null,null,null,null,null,null,null,null,null,null,null,null,null,null,null,null,{"$error":"#VALUE!"},{"$error":"#VALUE!"},null,{"$error":"#VALUE!"},null,null,null,{"$error":"#VALUE!"}]
[{"$f":"SUBTOTAL(3,$B$5:B80)","v":2},null,null,null,null,null,null,null,null,null,null,null,null,null,null,{"$f":"IF(Alldata[[#This Row],[انتهاء الفحص]]=\"\",\"لا يوجد\",IF((Alldata[[#This Row],[انتهاء الفحص]]-$S$2)<0,\"منتهي\",IF((Alldata[[#This Row],[انتهاء الفحص]]-$S$2)<25,\"تجديد\",\"ساري\")))","v":"لا يوجد"},null,{"$f":"IF(Alldata[[#This Row],[انتهاء الاستمارة]]=\"\",\"لا يوجد\",IF((Alldata[[#This Row],[انتهاء الاستمارة]]-$S$2)<0,\"منتهي\",IF((Alldata[[#This Row],[انتهاء الاستمارة]]-$S$2)<25,\"تجديد\",\"ساري\")))","v":"لا يوجد"},null,{"$f":"IF(Alldata[[#This Row],[انتهاء التأمين]]=\"\",\"لا يوجد\",IF((Alldata[[#This Row],[انتهاء التأمين]]-$S$2)<0,\"منتهي\",IF((Alldata[[#This Row],[انتهاء التأمين]]-$S$2)<25,\"تجديد\",\"ساري\")))","v":"لا يوجد"},null,{"$f":"IF(Alldata[[#This Row],[انتهاء كارت التشغيل]]=\"\",\"لا يوجد\",IF((Alldata[[#This Row],[انتهاء كارت التشغيل]]-$S$2)<0,\"منتهي\",IF((Alldata[[#This Row],[انتهاء كارت التشغيل]]-$S$2)<25,\"تجديد\",\"ساري\")))","v":"لا يوجد"},null,null,null,null,null,null,null,null,null,null,null,null,null,null,null,null,null,null,null,null,null,{"$error":"#VALUE!"},{"$error":"#VALUE!"},null,{"$error":"#VALUE!"},null,null,null,{"$error":"#VALUE!"}]
[{"$f":"SUBTOTAL(3,$B$5:B81)","v":2},null,null,null,null,null,null,null,null,null,null,null,null,null,null,{"$f":"IF(Alldata[[#This Row],[انتهاء الفحص]]=\"\",\"لا يوجد\",IF((Alldata[[#This Row],[انتهاء الفحص]]-$S$2)<0,\"منتهي\",IF((Alldata[[#This Row],[انتهاء الفحص]]-$S$2)<25,\"تجديد\",\"ساري\")))","v":"لا يوجد"},null,{"$f":"IF(Alldata[[#This Row],[انتهاء الاستمارة]]=\"\",\"لا يوجد\",IF((Alldata[[#This Row],[انتهاء الاستمارة]]-$S$2)<0,\"منتهي\",IF((Alldata[[#This Row],[انتهاء الاستمارة]]-$S$2)<25,\"تجديد\",\"ساري\")))","v":"لا يوجد"},null,{"$f":"IF(Alldata[[#This Row],[انتهاء التأمين]]=\"\",\"لا يوجد\",IF((Alldata[[#This Row],[انتهاء التأمين]]-$S$2)<0,\"منتهي\",IF((Alldata[[#This Row],[انتهاء التأمين]]-$S$2)<25,\"تجديد\",\"ساري\")))","v":"لا يوجد"},null,{"$f":"IF(Alldata[[#This Row],[انتهاء كارت التشغيل]]=\"\",\"لا يوجد\",IF((Alldata[[#This Row],[انتهاء كارت التشغيل]]-$S$2)<0,\"منتهي\",IF((Alldata[[#This Row],[انتهاء كارت التشغيل]]-$S$2)<25,\"تجديد\",\"ساري\")))","v":"لا يوجد"},null,null,null,null,null,null,null,null,null,null,null,null,null,null,null,null,null,null,null,null,null,{"$error":"#VALUE!"},{"$error":"#VALUE!"},null,{"$error":"#VALUE!"},null,null,null,{"$error":"#VALUE!"}]
[{"$f":"SUBTOTAL(3,$B$5:B82)","v":2},null,null,null,null,null,null,null,null,null,null,null,null,null,null,{"$f":"IF(Alldata[[#This Row],[انتهاء الفحص]]=\"\",\"لا يوجد\",IF((Alldata[[#This Row],[انتهاء الفحص]]-$S$2)<0,\"منتهي\",IF((Alldata[[#This Row],[انتهاء الفحص]]-$S$2)<25,\"تجديد\",\"ساري\")))","v":"لا يوجد"},null,{"$f":"IF(Alldata[[#This Row],[انتهاء الاستمارة]]=\"\",\"لا يوجد\",IF((Alldata[[#This Row],[انتهاء الاستمارة]]-$S$2)<0,\"منتهي\",IF((Alldata[[#This Row],[انتهاء الاستمارة]]-$S$2)<25,\"تجديد\",\"ساري\")))","v":"لا يوجد"},null,{"$f":"IF(Alldata[[#This Row],[انتهاء التأمين]]=\"\",\"لا يوجد\",IF((Alldata[[#This Row],[انتهاء التأمين]]-$S$2)<0,\"منتهي\",IF((Alldata[[#This Row],[انتهاء التأمين]]-$S$2)<25,\"تجديد\",\"ساري\")))","v":"لا يوجد"},null,{"$f":"IF(Alldata[[#This Row],[انتهاء كارت التشغيل]]=\"\",\"لا يوجد\",IF((Alldata[[#This Row],[انتهاء كارت التشغيل]]-$S$2)<0,\"منتهي\",IF((Alldata[[#This Row],[انتهاء كارت التشغيل]]-$S$2)<25,\"تجديد\",\"ساري\")))","v":"لا يوجد"},null,null,null,null,null,null,null,null,null,null,null,null,null,null,null,null,null,null,null,null,null,{"$error":"#VALUE!"},{"$error":"#VALUE!"},null,{"$error":"#VALUE!"},null,null,null,{"$error":"#VALUE!"}]
[{"$f":"SUBTOTAL(3,$B$5:B83)","v":2},null,null,null,null,null,null,null,null,null,null,null,null,null,null,{"$f":"IF(Alldata[[#This Row],[انتهاء الفحص]]=\"\",\"لا يوجد\",IF((Alldata[[#This Row],[انتهاء الفحص]]-$S$2)<0,\"منتهي\",IF((Alldata[[#This Row],[انتهاء الفحص]]-$S$2)<25,\"تجديد\",\"ساري\")))","v":"لا يوجد"},null,{"$f":"IF(Alldata[[#This Row],[انتهاء الاستمارة]]=\"\",\"لا يوجد\",IF((Alldata[[#This Row],[انتهاء الاستمارة]]-$S$2)<0,\"منتهي\",IF((Alldata[[#This Row],[انتهاء الاستمارة]]-$S$2)<25,\"تجديد\",\"ساري\")))","v":"لا يوجد"},null,{"$f":"IF(Alldata[[#This Row],[انتهاء التأمين]]=\"\",\"لا يوجد\",IF((Alldata[[#This Row],[انتهاء التأمين]]-$S$2)<0,\"منتهي\",IF((Alldata[[#This Row],[انتهاء التأمين]]-$S$2)<25,\"تجديد\",\"ساري\")))","v":"لا يوجد"},null,{"$f":"IF(Alldata[[#This Row],[انتهاء كارت التشغيل]]=\"\",\"لا يوجد\",IF((Alldata[[#This Row],[انتهاء كارت التشغيل]]-$S$2)<0,\"منتهي\",IF((Alldata[[#This Row],[انتهاء كارت التشغيل]]-$S$2)<25,\"تجديد\",\"ساري\")))","v":"لا يوجد"},null,null,null,null,null,null,null,null,null,null,null,null,null,null,null,null,null,null,null,null,null,{"$error":"#VALUE!"},{"$error":"#VALUE!"},null,{"$error":"#VALUE!"},null,null,null,{"$error":"#VALUE!"}]
[{"$f":"SUBTOTAL(3,$B$5:B84)","v":2},null,null,null,null,null,null,null,null,null,null,null,null,null,null,{"$f":"IF(Alldata[[#This Row],[انتهاء الفحص]]=\"\",\"لا يوجد\",IF((Alldata[[#This Row],[انتهاء الفحص]]-$S$2)<0,\"منتهي\",IF((Alldata[[#This Row],[انتهاء الفحص]]-$S$2)<25,\"تجديد\",\"ساري\")))","v":"لا يوجد"},null,{"$f":"IF(Alldata[[#This Row],[انتهاء الاستمارة]]=\"\",\"لا يوجد\",IF((Alldata[[#This Row],[انتهاء الاستمارة]]-$S$2)<0,\"منتهي\",IF((Alldata[[#This Row],[انتهاء الاستمارة]]-$S$2)<25,\"تجديد\",\"ساري\")))","v":"لا يوجد"},null,{"$f":"IF(Alldata[[#This Row],[انتهاء التأمين]]=\"\",\"لا يوجد\",IF((Alldata[[#This Row],[انتهاء التأمين]]-$S$2)<0,\"منتهي\",IF((Alldata[[#This Row],[انتهاء التأمين]]-$S$2)<25,\"تجديد\",\"ساري\")))","v":"لا يوجد"},null,{"$f":"IF(Alldata[[#This Row],[انتهاء كارت التشغيل]]=\"\",\"لا يوجد\",IF((Alldata[[#This Row],[انتهاء كارت التشغيل]]-$S$2)<0,\"منتهي\",IF((Alldata[[#This Row],[انتهاء كارت التشغيل]]-$S$2)<25,\"تجديد\",\"ساري\")))","v":"لا يوجد"},null,null,null,null,null,null,null,null,null,null,null,null,null,null,null,null,null,null,null,null,null,{"$error":"#VALUE!"},{"$error":"#VALUE!"},null,{"$error":"#VALUE!"},null,null,null,{"$error":"#VALUE!"}]
[{"$f":"SUBTOTAL(3,$B$5:B85)","v":2},null,null,null,null,null,null,null,null,null,null,null,null,null,null,{"$f":"IF(Alldata[[#This Row],[انتهاء الفحص]]=\"\",\"لا يوجد\",IF((Alldata[[#This Row],[انتهاء الفحص]]-$S$2)<0,\"منتهي\",IF((Alldata[[#This Row],[انتهاء الفحص]]-$S$2)<25,\"تجديد\",\"ساري\")))","v":"لا يوجد"},null,{"$f":"IF(Alldata[[#This Row],[انتهاء الاستمارة]]=\"\",\"لا يوجد\",IF((Alldata[[#This Row],[انتهاء الاستمارة]]-$S$2)<0,\"منتهي\",IF((Alldata[[#This Row],[انتهاء الاستمارة]]-$S$2)<25,\"تجديد\",\"ساري\")))","v":"لا يوجد"},null,{"$f":"IF(Alldata[[#This Row],[انتهاء التأمين]]=\"\",\"لا يوجد\",IF((Alldata[[#This Row],[انتهاء التأمين]]-$S$2)<0,\"منتهي\",IF((Alldata[[#This Row],[انتهاء التأمين]]-$S$2)<25,\"تجديد\",\"ساري\")))","v":"لا يوجد"},null,{"$f":"IF(Alldata[[#This Row],[انتهاء كارت التشغيل]]=\"\",\"لا يوجد\",IF((Alldata[[#This Row],[انتهاء كارت التشغيل]]-$S$2)<0,\"منتهي\",IF((Alldata[[#This Row],[انتهاء كارت التشغيل]]-$S$2)<25,\"تجديد\",\"ساري\")))","v":"لا يوجد"},null,null,null,null,null,null,null,null,null,null,null,null,null,null,null,null,null,null,null,null,null,{"$error":"#VALUE!"},{"$error":"#VALUE!"},null,{"$error":"#VALUE!"},null,null,null,{"$error":"#VALUE!"}]
[{"$f":"SUBTOTAL(3,$B$5:B86)","v":2},null,null,null,null,null,null,null,null,null,null,null,null,null,null,{"$f":"IF(Alldata[[#This Row],[انتهاء الفحص]]=\"\",\"لا يوجد\",IF((Alldata[[#This Row],[انتهاء الفحص]]-$S$2)<0,\"منتهي\",IF((Alldata[[#This Row],[انتهاء الفحص]]-$S$2)<25,\"تجديد\",\"ساري\")))","v":"لا يوجد"},null,{"$f":"IF(Alldata[[#This Row],[انتهاء الاستمارة]]=\"\",\"لا يوجد\",IF((Alldata[[#This Row],[انتهاء الاستمارة]]-$S$2)<0,\"منتهي\",IF((Alldata[[#This Row],[انتهاء الاستمارة]]-$S$2)<25,\"تجديد\",\"ساري\")))","v":"لا يوجد"},null,{"$f":"IF(Alldata[[#This Row],[انتهاء التأمين]]=\"\",\"لا يوجد\",IF((Alldata[[#This Row],[انتهاء التأمين]]-$S$2)<0,\"منتهي\",IF((Alldata[[#This Row],[انتهاء التأمين]]-$S$2)<25,\"تجديد\",\"ساري\")))","v":"لا يوجد"},null,{"$f":"IF(Alldata[[#This Row],[انتهاء كارت التشغيل]]=\"\",\"لا يوجد\",IF((Alldata[[#This Row],[انتهاء كارت التشغيل]]-$S$2)<0,\"منتهي\",IF((Alldata[[#This Row],[انتهاء كارت التشغيل]]-$S$2)<25,\"تجديد\",\"ساري\")))","v":"لا يوجد"},null,null,null,null,null,null,null,null,null,null,null,null,null,null,null,null,null,null,null,null,null,{"$error":"#VALUE!"},{"$error":"#VALUE!"},null,{"$error":"#VALUE!"},null,null,null,{"$error":"#VALUE!"}]
[{"$f":"SUBTOTAL(3,$B$5:B87)","v":2},null,null,null,null,null,null,null,null,null,null,null,null,null,null,{"$f":"IF(Alldata[[#This Row],[انتهاء الفحص]]=\"\",\"لا يوجد\",IF((Alldata[[#This Row],[انتهاء الفحص]]-$S$2)<0,\"منتهي\",IF((Alldata[[#This Row],[انتهاء الفحص]]-$S$2)<25,\"تجديد\",\"ساري\")))","v":"لا يوجد"},null,{"$f":"IF(Alldata[[#This Row],[انتهاء الاستمارة]]=\"\",\"لا يوجد\",IF((Alldata[[#This Row],[انتهاء الاستمارة]]-$S$2)<0,\"منتهي\",IF((Alldata[[#This Row],[انتهاء الاستمارة]]-$S$2)<25,\"تجديد\",\"ساري\")))","v":"لا يوجد"},null,{"$f":"IF(Alldata[[#This Row],[انتهاء التأمين]]=\"\",\"لا يوجد\",IF((Alldata[[#This Row],[انتهاء التأمين]]-$S$2)<0,\"منتهي\",IF((Alldata[[#This Row],[انتهاء التأمين]]-$S$2)<25,\"تجديد\",\"ساري\")))","v":"لا يوجد"},null,{"$f":"IF(Alldata[[#This Row],[انتهاء كارت التشغيل]]=\"\",\"لا يوجد\",IF((Alldata[[#This Row],[انتهاء كارت التشغيل]]-$S$2)<0,\"منتهي\",IF((Alldata[[#This Row],[انتهاء كارت التشغيل]]-$S$2)<25,\"تجديد\",\"ساري\")))","v":"لا يوجد"},null,null,null,null,null,null,null,null,null,null,null,null,null,null,null,null,null,null,null,null,null,{"$error":"#VALUE!"},{"$error":"#VALUE!"},null,{"$error":"#VALUE!"},null,null,null,{"$error":"#VALUE!"}]
[{"$f":"SUBTOTAL(3,$B$5:B88)","v":2},null,null,null,null,null,null,null,null,null,null,null,null,null,null,{"$f":"IF(Alldata[[#This Row],[انتهاء الفحص]]=\"\",\"لا يوجد\",IF((Alldata[[#This Row],[انتهاء الفحص]]-$S$2)<0,\"منتهي\",IF((Alldata[[#This Row],[انتهاء الفحص]]-$S$2)<25,\"تجديد\",\"ساري\")))","v":"لا يوجد"},null,{"$f":"IF(Alldata[[#This Row],[انتهاء الاستمارة]]=\"\",\"لا يوجد\",IF((Alldata[[#This Row],[انتهاء الاستمارة]]-$S$2)<0,\"منتهي\",IF((Alldata[[#This Row],[انتهاء الاستمارة]]-$S$2)<25,\"تجديد\",\"ساري\")))","v":"لا يوجد"},null,{"$f":"IF(Alldata[[#This Row],[انتهاء التأمين]]=\"\",\"لا يوجد\",IF((Alldata[[#This Row],[انتهاء التأمين]]-$S$2)<0,\"منتهي\",IF((Alldata[[#This Row],[انتهاء التأمين]]-$S$2)<25,\"تجديد\",\"ساري\")))","v":"لا يوجد"},null,{"$f":"IF(Alldata[[#This Row],[انتهاء كارت التشغيل]]=\"\",\"لا يوجد\",IF((Alldata[[#This Row],[انتهاء كارت التشغيل]]-$S$2)<0,\"منتهي\",IF((Alldata[[#This Row],[انتهاء كارت التشغيل]]-$S$2)<25,\"تجديد\",\"ساري\")))","v":"لا يوجد"},null,null,null,null,null,null,null,null,null,null,null,null,null,null,null,null,null,null,null,null,null,{"$error":"#VALUE!"},{"$error":"#VALUE!"},null,{"$error":"#VALUE!"},null,null,null,{"$error":"#VALUE!"}]
[{"$f":"SUBTOTAL(3,$B$5:B89)","v":2},null,null,null,null,null,null,null,null,null,null,null,null,null,null,{"$f":"IF(Alldata[[#This Row],[انتهاء الفحص]]=\"\",\"لا يوجد\",IF((Alldata[[#This Row],[انتهاء الفحص]]-$S$2)<0,\"منتهي\",IF((Alldata[[#This Row],[انتهاء الفحص]]-$S$2)<25,\"تجديد\",\"ساري\")))","v":"لا يوجد"},null,{"$f":"IF(Alldata[[#This Row],[انتهاء الاستمارة]]=\"\",\"لا يوجد\",IF((Alldata[[#This Row],[انتهاء الاستمارة]]-$S$2)<0,\"منتهي\",IF((Alldata[[#This Row],[انتهاء الاستمارة]]-$S$2)<25,\"تجديد\",\"ساري\")))","v":"لا يوجد"},null,{"$f":"IF(Alldata[[#This Row],[انتهاء التأمين]]=\"\",\"لا يوجد\",IF((Alldata[[#This Row],[انتهاء التأمين]]-$S$2)<0,\"منتهي\",IF((Alldata[[#This Row],[انتهاء التأمين]]-$S$2)<25,\"تجديد\",\"ساري\")))","v":"لا يوجد"},null,{"$f":"IF(Alldata[[#This Row],[انتهاء كارت التشغيل]]=\"\",\"لا يوجد\",IF((Alldata[[#This Row],[انتهاء كارت التشغيل]]-$S$2)<0,\"منتهي\",IF((Alldata[[#This Row],[انتهاء كارت التشغيل]]-$S$2)<25,\"تجديد\",\"ساري\")))","v":"لا يوجد"},null,null,null,null,null,null,null,null,null,null,null,null,null,null,null,null,null,null,null,null,null,{"$error":"#VALUE!"},{"$error":"#VALUE!"},null,{"$error":"#VALUE!"},null,null,null,{"$error":"#VALUE!"}]
[{"$f":"SUBTOTAL(3,$B$5:B90)","v":2},null,null,null,null,null,null,null,null,null,null,null,null,null,null,{"$f":"IF(Alldata[[#This Row],[انتهاء الفحص]]=\"\",\"لا يوجد\",IF((Alldata[[#This Row],[انتهاء الفحص]]-$S$2)<0,\"منتهي\",IF((Alldata[[#This Row],[انتهاء الفحص]]-$S$2)<25,\"تجديد\",\"ساري\")))","v":"لا يوجد"},null,{"$f":"IF(Alldata[[#This Row],[انتهاء الاستمارة]]=\"\",\"لا يوجد\",IF((Alldata[[#This Row],[انتهاء الاستمارة]]-$S$2)<0,\"منتهي\",IF((Alldata[[#This Row],[انتهاء الاستمارة]]-$S$2)<25,\"تجديد\",\"ساري\")))","v":"لا يوجد"},null,{"$f":"IF(Alldata[[#This Row],[انتهاء التأمين]]=\"\",\"لا يوجد\",IF((Alldata[[#This Row],[انتهاء التأمين]]-$S$2)<0,\"منتهي\",IF((Alldata[[#This Row],[انتهاء التأمين]]-$S$2)<25,\"تجديد\",\"ساري\")))","v":"لا يوجد"},null,{"$f":"IF(Alldata[[#This Row],[انتهاء كارت التشغيل]]=\"\",\"لا يوجد\",IF((Alldata[[#This Row],[انتهاء كارت التشغيل]]-$S$2)<0,\"منتهي\",IF((Alldata[[#This Row],[انتهاء كارت التشغيل]]-$S$2)<25,\"تجديد\",\"ساري\")))","v":"لا يوجد"},null,null,null,null,null,null,null,null,null,null,null,null,null,null,null,null,null,null,null,null,null,{"$error":"#VALUE!"},{"$error":"#VALUE!"},null,{"$error":"#VALUE!"},null,null,null,{"$error":"#VALUE!"}]
[{"$f":"SUBTOTAL(3,$B$5:B91)","v":2},null,null,null,null,null,null,null,null,null,null,null,null,null,null,{"$f":"IF(Alldata[[#This Row],[انتهاء الفحص]]=\"\",\"لا يوجد\",IF((Alldata[[#This Row],[انتهاء الفحص]]-$S$2)<0,\"منتهي\",IF((Alldata[[#This Row],[انتهاء الفحص]]-$S$2)<25,\"تجديد\",\"ساري\")))","v":"لا يوجد"},null,{"$f":"IF(Alldata[[#This Row],[انتهاء الاستمارة]]=\"\",\"لا يوجد\",IF((Alldata[[#This Row],[انتهاء الاستمارة]]-$S$2)<0,\"منتهي\",IF((Alldata[[#This Row],[انتهاء الاستمارة]]-$S$2)<25,\"تجديد\",\"ساري\")))","v":"لا يوجد"},null,{"$f":"IF(Alldata[[#This Row],[انتهاء التأمين]]=\"\",\"لا يوجد\",IF((Alldata[[#This Row],[انتهاء التأمين]]-$S$2)<0,\"منتهي\",IF((Alldata[[#This Row],[انتهاء التأمين]]-$S$2)<25,\"تجديد\",\"ساري\")))","v":"لا يوجد"},null,{"$f":"IF(Alldata[[#This Row],[انتهاء كارت التشغيل]]=\"\",\"لا يوجد\",IF((Alldata[[#This Row],[انتهاء كارت التشغيل]]-$S$2)<0,\"منتهي\",IF((Alldata[[#This Row],[انتهاء كارت التشغيل]]-$S$2)<25,\"تجديد\",\"ساري\")))","v":"لا يوجد"},null,null,null,null,null,null,null,null,null,null,null,null,null,null,null,null,null,null,null,null,null,{"$error":"#VALUE!"},{"$error":"#VALUE!"},null,{"$error":"#VALUE!"},null,null,null,{"$error":"#VALUE!"}]
[{"$f":"SUBTOTAL(3,$B$5:B92)","v":2},null,null,null,null,null,null,null,null,null,null,null,null,null,null,{"$f":"IF(Alldata[[#This Row],[انتهاء الفحص]]=\"\",\"لا يوجد\",IF((Alldata[[#This Row],[انتهاء الفحص]]-$S$2)<0,\"منتهي\",IF((Alldata[[#This Row],[انتهاء الفحص]]-$S$2)<25,\"تجديد\",\"ساري\")))","v":"لا يوجد"},null,{"$f":"IF(Alldata[[#This Row],[انتهاء الاستمارة]]=\"\",\"لا يوجد\",IF((Alldata[[#This Row],[انتهاء الاستمارة]]-$S$2)<0,\"منتهي\",IF((Alldata[[#This Row],[انتهاء الاستمارة]]-$S$2)<25,\"تجديد\",\"ساري\")))","v":"لا يوجد"},null,{"$f":"IF(Alldata[[#This Row],[انتهاء التأمين]]=\"\",\"لا يوجد\",IF((Alldata[[#This Row],[انتهاء التأمين]]-$S$2)<0,\"منتهي\",IF((Alldata[[#This Row],[انتهاء التأمين]]-$S$2)<25,\"تجديد\",\"ساري\")))","v":"لا يوجد"},null,"لا يوجد",null,null,null,null,null,null,null,null,null,null,null,null,null,null,null,null,null,null,null,null,null,{"$error":"#VALUE!"},{"$error":"#VALUE!"},null,{"$error":"#VALUE!"},null,null,null,{"$error":"#VALUE!"}]
[{"$f":"SUBTOTAL(3,$B$5:B93)","v":2},null,null,null,null,null,null,null,null,null,null,null,null,null,null,{"$f":"IF(Alldata[[#This Row],[انتهاء الفحص]]=\"\",\"لا يوجد\",IF((Alldata[[#This Row],[انتهاء الفحص]]-$S$2)<0,\"منتهي\",IF((Alldata[[#This Row],[انتهاء الفحص]]-$S$2)<25,\"تجديد\",\"ساري\")))","v":"لا يوجد"},null,{"$f":"IF(Alldata[[#This Row],[انتهاء الاستمارة]]=\"\",\"لا يوجد\",IF((Alldata[[#This Row],[انتهاء الاستمارة]]-$S$2)<0,\"منتهي\",IF((Alldata[[#This Row],[انتهاء الاستمارة]]-$S$2)<25,\"تجديد\",\"ساري\")))","v":"لا يوجد"},null,{"$f":"IF(Alldata[[#This Row],[انتهاء التأمين]]=\"\",\"لا يوجد\",IF((Alldata[[#This Row],[انتهاء التأمين]]-$S$2)<0,\"منتهي\",IF((Alldata[[#This Row],[انتهاء التأمين]]-$S$2)<25,\"تجديد\",\"ساري\")))","v":"لا يوجد"},null,"لا يوجد",null,null,null,null,null,null,null,null,null,null,null,null,null,null,null,null,null,null,null,null,null,{"$error":"#VALUE!"},{"$error":"#VALUE!"},null,{"$error":"#VALUE!"},null,null,null,{"$error":"#VALUE!"}]
[{"$f":"SUBTOTAL(3,$B$5:B94)","v":2},null,null,null,null,null,null,null,null,null,null,null,null,null,null,{"$f":"IF(Alldata[[#This Row],[انتهاء الفحص]]=\"\",\"لا يوجد\",IF((Alldata[[#This Row],[انتهاء الفحص]]-$S$2)<0,\"منتهي\",IF((Alldata[[#This Row],[انتهاء الفحص]]-$S$2)<25,\"تجديد\",\"ساري\")))","v":"لا يوجد"},null,{"$f":"IF(Alldata[[#This Row],[انتهاء الاستمارة]]=\"\",\"لا يوجد\",IF((Alldata[[#This Row],[انتهاء الاستمارة]]-$S$2)<0,\"منتهي\",IF((Alldata[[#This Row],[انتهاء الاستمارة]]-$S$2)<25,\"تجديد\",\"ساري\")))","v":"لا يوجد"},null,{"$f":"IF(Alldata[[#This Row],[انتهاء التأمين]]=\"\",\"لا يوجد\",IF((Alldata[[#This Row],[انتهاء التأمين]]-$S$2)<0,\"منتهي\",IF((Alldata[[#This Row],[انتهاء التأمين]]-$S$2)<25,\"تجديد\",\"ساري\")))","v":"لا يوجد"},null,{"$f":"IF(Alldata[[#This Row],[انتهاء كارت التشغيل]]=\"\",\"لا يوجد\",IF((Alldata[[#This Row],[انتهاء كارت التشغيل]]-$S$2)<0,\"منتهي\",IF((Alldata[[#This Row],[انتهاء كارت التشغيل]]-$S$2)<25,\"تجديد\",\"ساري\")))","v":"لا يوجد"},null,null,null,null,null,null,null,null,null,null,null,null,null,null,null,null,null,null,null,null,null,{"$error":"#VALUE!"},{"$error":"#VALUE!"},null,{"$error":"#VALUE!"},null,null,null,{"$error":"#VALUE!"}]
[{"$f":"SUBTOTAL(3,$B$5:B95)","v":2},null,null,null,null,null,null,null,null,null,null,null,null,null,null,{"$f":"IF(Alldata[[#This Row],[انتهاء الفحص]]=\"\",\"لا يوجد\",IF((Alldata[[#This Row],[انتهاء الفحص]]-$S$2)<0,\"منتهي\",IF((Alldata[[#This Row],[انتهاء الفحص]]-$S$2)<25,\"تجديد\",\"ساري\")))","v":"لا يوجد"},null,{"$f":"IF(Alldata[[#This Row],[انتهاء الاستمارة]]=\"\",\"لا يوجد\",IF((Alldata[[#This Row],[انتهاء الاستمارة]]-$S$2)<0,\"منتهي\",IF((Alldata[[#This Row],[انتهاء الاستمارة]]-$S$2)<25,\"تجديد\",\"ساري\")))","v":"لا يوجد"},null,{"$f":"IF(Alldata[[#This Row],[انتهاء التأمين]]=\"\",\"لا يوجد\",IF((Alldata[[#This Row],[انتهاء التأمين]]-$S$2)<0,\"منتهي\",IF((Alldata[[#This Row],[انتهاء التأمين]]-$S$2)<25,\"تجديد\",\"ساري\")))","v":"لا يوجد"},null,{"$f":"IF(Alldata[[#This Row],[انتهاء كارت التشغيل]]=\"\",\"لا يوجد\",IF((Alldata[[#This Row],[انتهاء كارت التشغيل]]-$S$2)<0,\"منتهي\",IF((Alldata[[#This Row],[انتهاء كارت التشغيل]]-$S$2)<25,\"تجديد\",\"ساري\")))","v":"لا يوجد"},null,null,null,null,null,null,null,null,null,null,null,null,null,null,null,null,null,null,null,null,null,{"$error":"#VALUE!"},{"$error":"#VALUE!"},null,{"$error":"#VALUE!"},null,null,null,{"$error":"#VALUE!"}]
[{"$f":"SUBTOTAL(3,$B$5:B96)","v":2},null,null,null,null,null,null,null,null,null,null,null,null,null,null,{"$f":"IF(Alldata[[#This Row],[انتهاء الفحص]]=\"\",\"لا يوجد\",IF((Alldata[[#This Row],[انتهاء الفحص]]-$S$2)<0,\"منتهي\",IF((Alldata[[#This Row],[انتهاء الفحص]]-$S$2)<25,\"تجديد\",\"ساري\")))","v":"لا يوجد"},null,{"$f":"IF(Alldata[[#This Row],[انتهاء الاستمارة]]=\"\",\"لا يوجد\",IF((Alldata[[#This Row],[انتهاء الاستمارة]]-$S$2)<0,\"منتهي\",IF((Alldata[[#This Row],[انتهاء الاستمارة]]-$S$2)<25,\"تجديد\",\"ساري\")))","v":"لا يوجد"},null,{"$f":"IF(Alldata[[#This Row],[انتهاء التأمين]]=\"\",\"لا يوجد\",IF((Alldata[[#This Row],[انتهاء التأمين]]-$S$2)<0,\"منتهي\",IF((Alldata[[#This Row],[انتهاء التأمين]]-$S$2)<25,\"تجديد\",\"ساري\")))","v":"لا يوجد"},null,"لا يوجد",null,null,null,null,null,null,null,null,null,null,null,null,null,null,null,null,null,null,null,null,null,{"$error":"#VALUE!"},{"$error":"#VALUE!"},null,{"$error":"#VALUE!"},null,null,null,{"$error":"#VALUE!"}]
[{"$f":"SUBTOTAL(3,$B$5:B97)","v":2},null,null,null,null,null,null,null,null,null,null,null,null,null,null,{"$f":"IF(Alldata[[#This Row],[انتهاء الفحص]]=\"\",\"لا يوجد\",IF((Alldata[[#This Row],[انتهاء الفحص]]-$S$2)<0,\"منتهي\",IF((Alldata[[#This Row],[انتهاء الفحص]]-$S$2)<25,\"تجديد\",\"ساري\")))","v":"لا يوجد"},null,{"$f":"IF(Alldata[[#This Row],[انتهاء الاستمارة]]=\"\",\"لا يوجد\",IF((Alldata[[#This Row],[انتهاء الاستمارة]]-$S$2)<0,\"منتهي\",IF((Alldata[[#This Row],[انتهاء الاستمارة]]-$S$2)<25,\"تجديد\",\"ساري\")))","v":"لا يوجد"},null,{"$f":"IF(Alldata[[#This Row],[انتهاء التأمين]]=\"\",\"لا يوجد\",IF((Alldata[[#This Row],[انتهاء التأمين]]-$S$2)<0,\"منتهي\",IF((Alldata[[#This Row],[انتهاء التأمين]]-$S$2)<25,\"تجديد\",\"ساري\")))","v":"لا يوجد"},null,"لا يوجد",null,null,null,null,null,null,null,null,null,null,null,null,null,null,null,null,null,null,null,null,null,{"$error":"#VALUE!"},{"$error":"#VALUE!"},null,{"$error":"#VALUE!"},null,null,null,{"$error":"#VALUE!"}]
[{"$f":"SUBTOTAL(3,$B$5:B98)","v":2},null,null,null,null,null,null,null,null,null,null,null,null,null,null,{"$f":"IF(Alldata[[#This Row],[انتهاء الفحص]]=\"\",\"لا يوجد\",IF((Alldata[[#This Row],[انتهاء الفحص]]-$S$2)<0,\"منتهي\",IF((Alldata[[#This Row],[انتهاء الفحص]]-$S$2)<25,\"تجديد\",\"ساري\")))","v":"لا يوجد"},null,{"$f":"IF(Alldata[[#This Row],[انتهاء الاستمارة]]=\"\",\"لا يوجد\",IF((Alldata[[#This Row],[انتهاء الاستمارة]]-$S$2)<0,\"منتهي\",IF((Alldata[[#This Row],[انتهاء الاستمارة]]-$S$2)<25,\"تجديد\",\"ساري\")))","v":"لا يوجد"},null,{"$f":"IF(Alldata[[#This Row],[انتهاء التأمين]]=\"\",\"لا يوجد\",IF((Alldata[[#This Row],[انتهاء التأمين]]-$S$2)<0,\"منتهي\",IF((Alldata[[#This Row],[انتهاء التأمين]]-$S$2)<25,\"تجديد\",\"ساري\")))","v":"لا يوجد"},null,{"$f":"IF(Alldata[[#This Row],[انتهاء كارت التشغيل]]=\"\",\"لا يوجد\",IF((Alldata[[#This Row],[انتهاء كارت التشغيل]]-$S$2)<0,\"منتهي\",IF((Alldata[[#This Row],[انتهاء كارت التشغيل]]-$S$2)<25,\"تجديد\",\"ساري\")))","v":"لا يوجد"},null,null,null,null,null,null,null,null,null,null,null,null,null,null,null,null,null,null,null,null,null,{"$error":"#VALUE!"},{"$error":"#VALUE!"},null,{"$error":"#VALUE!"},null,null,null,{"$error":"#VALUE!"}]
[{"$f":"SUBTOTAL(3,$B$5:B99)","v":2},null,null,null,null,null,null,null,null,null,null,null,null,null,null,{"$f":"IF(Alldata[[#This Row],[انتهاء الفحص]]=\"\",\"لا يوجد\",IF((Alldata[[#This Row],[انتهاء الفحص]]-$S$2)<0,\"منتهي\",IF((Alldata[[#This Row],[انتهاء الفحص]]-$S$2)<25,\"تجديد\",\"ساري\")))","v":"لا يوجد"},null,{"$f":"IF(Alldata[[#This Row],[انتهاء الاستمارة]]=\"\",\"لا يوجد\",IF((Alldata[[#This Row],[انتهاء الاستمارة]]-$S$2)<0,\"منتهي\",IF((Alldata[[#This Row],[انتهاء الاستمارة]]-$S$2)<25,\"تجديد\",\"ساري\")))","v":"لا يوجد"},null,{"$f":"IF(Alldata[[#This Row],[انتهاء التأمين]]=\"\",\"لا يوجد\",IF((Alldata[[#This Row],[انتهاء التأمين]]-$S$2)<0,\"منتهي\",IF((Alldata[[#This Row],[انتهاء التأمين]]-$S$2)<25,\"تجديد\",\"ساري\")))","v":"لا يوجد"},null,{"$f":"IF(Alldata[[#This Row],[انتهاء كارت التشغيل]]=\"\",\"لا يوجد\",IF((Alldata[[#This Row],[انتهاء كارت التشغيل]]-$S$2)<0,\"منتهي\",IF((Alldata[[#This Row],[انتهاء كارت التشغيل]]-$S$2)<25,\"تجديد\",\"ساري\")))","v":"لا يوجد"},null,null,null,null,null,null,null,null,null,null,null,null,null,null,null,null,null,null,null,null,null,{"$error":"#VALUE!"},{"$error":"#VALUE!"},null,{"$error":"#VALUE!"},null,null,null,{"$error":"#VALUE!"}]
[{"$f":"SUBTOTAL(3,$B$5:B100)","v":2},null,null,null,null,null,null,null,null,null,null,null,null,null,null,{"$f":"IF(Alldata[[#This Row],[انتهاء الفحص]]=\"\",\"لا يوجد\",IF((Alldata[[#This Row],[انتهاء الفحص]]-$S$2)<0,\"منتهي\",IF((Alldata[[#This Row],[انتهاء الفحص]]-$S$2)<25,\"تجديد\",\"ساري\")))","v":"لا يوجد"},null,{"$f":"IF(Alldata[[#This Row],[انتهاء الاستمارة]]=\"\",\"لا يوجد\",IF((Alldata[[#This Row],[انتهاء الاستمارة]]-$S$2)<0,\"منتهي\",IF((Alldata[[#This Row],[انتهاء الاستمارة]]-$S$2)<25,\"تجديد\",\"ساري\")))","v":"لا يوجد"},null,{"$f":"IF(Alldata[[#This Row],[انتهاء التأمين]]=\"\",\"لا يوجد\",IF((Alldata[[#This Row],[انتهاء التأمين]]-$S$2)<0,\"منتهي\",IF((Alldata[[#This Row],[انتهاء التأمين]]-$S$2)<25,\"تجديد\",\"ساري\")))","v":"لا يوجد"},null,{"$f":"IF(Alldata[[#This Row],[انتهاء كارت التشغيل]]=\"\",\"لا يوجد\",IF((Alldata[[#This Row],[انتهاء كارت التشغيل]]-$S$2)<0,\"منتهي\",IF((Alldata[[#This Row],[انتهاء كارت التشغيل]]-$S$2)<25,\"تجديد\",\"ساري\")))","v":"لا يوجد"},null,null,null,null,null,null,null,null,null,null,null,null,null,null,null,null,null,null,null,null,null,{"$error":"#VALUE!"},{"$error":"#VALUE!"},null,{"$error":"#VALUE!"},null,null,null,{"$error":"#VALUE!"}]
[{"$f":"SUBTOTAL(3,$B$5:B101)","v":2},null,null,null,null,null,null,null,null,null,null,null,null,null,null,{"$f":"IF(Alldata[[#This Row],[انتهاء الفحص]]=\"\",\"لا يوجد\",IF((Alldata[[#This Row],[انتهاء الفحص]]-$S$2)<0,\"منتهي\",IF((Alldata[[#This Row],[انتهاء الفحص]]-$S$2)<25,\"تجديد\",\"ساري\")))","v":"لا يوجد"},null,{"$f":"IF(Alldata[[#This Row],[انتهاء الاستمارة]]=\"\",\"لا يوجد\",IF((Alldata[[#This Row],[انتهاء الاستمارة]]-$S$2)<0,\"منتهي\",IF((Alldata[[#This Row],[انتهاء الاستمارة]]-$S$2)<25,\"تجديد\",\"ساري\")))","v":"لا يوجد"},null,{"$f":"IF(Alldata[[#This Row],[انتهاء التأمين]]=\"\",\"لا يوجد\",IF((Alldata[[#This Row],[انتهاء التأمين]]-$S$2)<0,\"منتهي\",IF((Alldata[[#This Row],[انتهاء التأمين]]-$S$2)<25,\"تجديد\",\"ساري\")))","v":"لا يوجد"},null,{"$f":"IF(Alldata[[#This Row],[انتهاء كارت التشغيل]]=\"\",\"لا يوجد\",IF((Alldata[[#This Row],[انتهاء كارت التشغيل]]-$S$2)<0,\"منتهي\",IF((Alldata[[#This Row],[انتهاء كارت التشغيل]]-$S$2)<25,\"تجديد\",\"ساري\")))","v":"لا يوجد"},null,null,null,null,null,null,null,null,null,null,null,null,null,null,null,null,null,null,null,null,null,{"$error":"#VALUE!"},{"$error":"#VALUE!"},null,{"$error":"#VALUE!"},null,null,null,{"$error":"#VALUE!"}]
[{"$f":"SUBTOTAL(3,$B$5:B102)","v":2},null,null,null,null,null,null,null,null,null,null,null,null,null,null,{"$f":"IF(Alldata[[#This Row],[انتهاء الفحص]]=\"\",\"لا يوجد\",IF((Alldata[[#This Row],[انتهاء الفحص]]-$S$2)<0,\"منتهي\",IF((Alldata[[#This Row],[انتهاء الفحص]]-$S$2)<25,\"تجديد\",\"ساري\")))","v":"لا يوجد"},null,{"$f":"IF(Alldata[[#This Row],[انتهاء الاستمارة]]=\"\",\"لا يوجد\",IF((Alldata[[#This Row],[انتهاء الاستمارة]]-$S$2)<0,\"منتهي\",IF((Alldata[[#This Row],[انتهاء الاستمارة]]-$S$2)<25,\"تجديد\",\"ساري\")))","v":"لا يوجد"},null,{"$f":"IF(Alldata[[#This Row],[انتهاء التأمين]]=\"\",\"لا يوجد\",IF((Alldata[[#This Row],[انتهاء التأمين]]-$S$2)<0,\"منتهي\",IF((Alldata[[#This Row],[انتهاء التأمين]]-$S$2)<25,\"تجديد\",\"ساري\")))","v":"لا يوجد"},null,{"$f":"IF(Alldata[[#This Row],[انتهاء كارت التشغيل]]=\"\",\"لا يوجد\",IF((Alldata[[#This Row],[انتهاء كارت التشغيل]]-$S$2)<0,\"منتهي\",IF((Alldata[[#This Row],[انتهاء كارت التشغيل]]-$S$2)<25,\"تجديد\",\"ساري\")))","v":"لا يوجد"},null,null,null,null,null,null,null,null,null,null,null,null,null,null,null,null,null,null,null,null,null,{"$error":"#VALUE!"},{"$error":"#VALUE!"},null,{"$error":"#VALUE!"},null,null,null,{"$error":"#VALUE!"}]
[{"$f":"SUBTOTAL(3,$B$5:B102)","v":2},null,null,null,null,null,null,null,null,null,null,null,null,null,null,{"$f":"IF(Alldata[[#This Row],[انتهاء الفحص]]=\"\",\"لا يوجد\",IF((Alldata[[#This Row],[انتهاء الفحص]]-$S$2)<0,\"منتهي\",IF((Alldata[[#This Row],[انتهاء الفحص]]-$S$2)<25,\"تجديد\",\"ساري\")))","v":"لا يوجد"},null,{"$f":"IF(Alldata[[#This Row],[انتهاء الاستمارة]]=\"\",\"لا يوجد\",IF((Alldata[[#This Row],[انتهاء الاستمارة]]-$S$2)<0,\"منتهي\",IF((Alldata[[#This Row],[انتهاء الاستمارة]]-$S$2)<25,\"تجديد\",\"ساري\")))","v":"لا يوجد"},null,{"$f":"IF(Alldata[[#This Row],[انتهاء التأمين]]=\"\",\"لا يوجد\",IF((Alldata[[#This Row],[انتهاء التأمين]]-$S$2)<0,\"منتهي\",IF((Alldata[[#This Row],[انتهاء التأمين]]-$S$2)<25,\"تجديد\",\"ساري\")))","v":"لا يوجد"},null,{"$f":"IF(Alldata[[#This Row],[انتهاء كارت التشغيل]]=\"\",\"لا يوجد\",IF((Alldata[[#This Row],[انتهاء كارت التشغيل]]-$S$2)<0,\"منتهي\",IF((Alldata[[#This Row],[انتهاء كارت التشغيل]]-$S$2)<25,\"تجديد\",\"ساري\")))","v":"لا يوجد"},null,null,null,null,null,null,null,null,null,null,null,null,null,null,null,null,null,null,null,null,null,{"$error":"#VALUE!"},{"$error":"#VALUE!"},null,{"$error":"#VALUE!"},null,null,null,{"$error":"#VALUE!"}]
[{"$f":"SUBTOTAL(3,$B$5:B102)","v":2},null,null,null,null,null,null,null,null,null,null,null,null,null,null,{"$f":"IF(Alldata[[#This Row],[انتهاء الفحص]]=\"\",\"لا يوجد\",IF((Alldata[[#This Row],[انتهاء الفحص]]-$S$2)<0,\"منتهي\",IF((Alldata[[#This Row],[انتهاء الفحص]]-$S$2)<25,\"تجديد\",\"ساري\")))","v":"لا يوجد"},null,{"$f":"IF(Alldata[[#This Row],[انتهاء الاستمارة]]=\"\",\"لا يوجد\",IF((Alldata[[#This Row],[انتهاء الاستمارة]]-$S$2)<0,\"منتهي\",IF((Alldata[[#This Row],[انتهاء الاستمارة]]-$S$2)<25,\"تجديد\",\"ساري\")))","v":"لا يوجد"},null,{"$f":"IF(Alldata[[#This Row],[انتهاء التأمين]]=\"\",\"لا يوجد\",IF((Alldata[[#This Row],[انتهاء التأمين]]-$S$2)<0,\"منتهي\",IF((Alldata[[#This Row],[انتهاء التأمين]]-$S$2)<25,\"تجديد\",\"ساري\")))","v":"لا يوجد"},null,{"$f":"IF(Alldata[[#This Row],[انتهاء كارت التشغيل]]=\"\",\"لا يوجد\",IF((Alldata[[#This Row],[انتهاء كارت التشغيل]]-$S$2)<0,\"منتهي\",IF((Alldata[[#This Row],[انتهاء كارت التشغيل]]-$S$2)<25,\"تجديد\",\"ساري\")))","v":"لا يوجد"},null,null,null,null,null,null,null,null,null,null,null,null,null,null,null,null,null,null,null,null,null,{"$error":"#VALUE!"},{"$error":"#VALUE!"},null,{"$error":"#VALUE!"},null,null,null,{"$error":"#VALUE!"}]
[{"$f":"SUBTOTAL(3,$B$5:B103)","v":2},null,null,null,null,null,null,null,null,null,null,null,null,null,null,{"$f":"IF(Alldata[[#This Row],[انتهاء الفحص]]=\"\",\"لا يوجد\",IF((Alldata[[#This Row],[انتهاء الفحص]]-$S$2)<0,\"منتهي\",IF((Alldata[[#This Row],[انتهاء الفحص]]-$S$2)<25,\"تجديد\",\"ساري\")))","v":"لا يوجد"},null,{"$f":"IF(Alldata[[#This Row],[انتهاء الاستمارة]]=\"\",\"لا يوجد\",IF((Alldata[[#This Row],[انتهاء الاستمارة]]-$S$2)<0,\"منتهي\",IF((Alldata[[#This Row],[انتهاء الاستمارة]]-$S$2)<25,\"تجديد\",\"ساري\")))","v":"لا يوجد"},null,{"$f":"IF(Alldata[[#This Row],[انتهاء التأمين]]=\"\",\"لا يوجد\",IF((Alldata[[#This Row],[انتهاء التأمين]]-$S$2)<0,\"منتهي\",IF((Alldata[[#This Row],[انتهاء التأمين]]-$S$2)<25,\"تجديد\",\"ساري\")))","v":"لا يوجد"},null,{"$f":"IF(Alldata[[#This Row],[انتهاء كارت التشغيل]]=\"\",\"لا يوجد\",IF((Alldata[[#This Row],[انتهاء كارت التشغيل]]-$S$2)<0,\"منتهي\",IF((Alldata[[#This Row],[انتهاء كارت التشغيل]]-$S$2)<25,\"تجديد\",\"ساري\")))","v":"لا يوجد"},null,null,null,null,null,null,null,null,null,null,null,null,null,null,null,null,null,null,null,null,null,{"$error":"#VALUE!"},{"$error":"#VALUE!"},null,{"$error":"#VALUE!"},null,null,null,{"$error":"#VALUE!"}]
[{"$f":"SUBTOTAL(3,$B$5:B104)","v":2},null,null,null,null,null,null,null,null,null,null,null,null,null,null,{"$f":"IF(Alldata[[#This Row],[انتهاء الفحص]]=\"\",\"لا يوجد\",IF((Alldata[[#This Row],[انتهاء الفحص]]-$S$2)<0,\"منتهي\",IF((Alldata[[#This Row],[انتهاء الفحص]]-$S$2)<25,\"تجديد\",\"ساري\")))","v":"لا يوجد"},null,{"$f":"IF(Alldata[[#This Row],[انتهاء الاستمارة]]=\"\",\"لا يوجد\",IF((Alldata[[#This Row],[انتهاء الاستمارة]]-$S$2)<0,\"منتهي\",IF((Alldata[[#This Row],[انتهاء الاستمارة]]-$S$2)<25,\"تجديد\",\"ساري\")))","v":"لا يوجد"},null,{"$f":"IF(Alldata[[#This Row],[انتهاء التأمين]]=\"\",\"لا يوجد\",IF((Alldata[[#This Row],[انتهاء التأمين]]-$S$2)<0,\"منتهي\",IF((Alldata[[#This Row],[انتهاء التأمين]]-$S$2)<25,\"تجديد\",\"ساري\")))","v":"لا يوجد"},null,{"$f":"IF(Alldata[[#This Row],[انتهاء كارت التشغيل]]=\"\",\"لا يوجد\",IF((Alldata[[#This Row],[انتهاء كارت التشغيل]]-$S$2)<0,\"منتهي\",IF((Alldata[[#This Row],[انتهاء كارت التشغيل]]-$S$2)<25,\"تجديد\",\"ساري\")))","v":"لا يوجد"},null,null,null,null,null,null,null,null,null,null,null,null,null,null,null,null,null,null,null,null,null,{"$error":"#VALUE!"},{"$error":"#VALUE!"},null,{"$error":"#VALUE!"},null,null,null,{"$error":"#VALUE!"}]
[{"$f":"SUBTOTAL(3,$B$5:B105)","v":2},null,null,null,null,null,null,null,null,null,null,null,null,null,null,{"$f":"IF(Alldata[[#This Row],[انتهاء الفحص]]=\"\",\"لا يوجد\",IF((Alldata[[#This Row],[انتهاء الفحص]]-$S$2)<0,\"منتهي\",IF((Alldata[[#This Row],[انتهاء الفحص]]-$S$2)<25,\"تجديد\",\"ساري\")))","v":"لا يوجد"},null,{"$f":"IF(Alldata[[#This Row],[انتهاء الاستمارة]]=\"\",\"لا يوجد\",IF((Alldata[[#This Row],[انتهاء الاستمارة]]-$S$2)<0,\"منتهي\",IF((Alldata[[#This Row],[انتهاء الاستمارة]]-$S$2)<25,\"تجديد\",\"ساري\")))","v":"لا يوجد"},null,{"$f":"IF(Alldata[[#This Row],[انتهاء التأمين]]=\"\",\"لا يوجد\",IF((Alldata[[#This Row],[انتهاء التأمين]]-$S$2)<0,\"منتهي\",IF((Alldata[[#This Row],[انتهاء التأمين]]-$S$2)<25,\"تجديد\",\"ساري\")))","v":"لا يوجد"},null,{"$f":"IF(Alldata[[#This Row],[انتهاء كارت التشغيل]]=\"\",\"لا يوجد\",IF((Alldata[[#This Row],[انتهاء كارت التشغيل]]-$S$2)<0,\"منتهي\",IF((Alldata[[#This Row],[انتهاء كارت التشغيل]]-$S$2)<25,\"تجديد\",\"ساري\")))","v":"لا يوجد"},null,null,null,null,null,null,null,null,null,null,null,null,null,null,null,null,null,null,null,null,null,{"$error":"#VALUE!"},{"$error":"#VALUE!"},null,{"$error":"#VALUE!"},null,null,null,{"$error":"#VALUE!"}]
[{"$f":"SUBTOTAL(3,$B$5:B106)","v":2},null,null,null,null,null,null,null,null,null,null,null,null,null,null,{"$f":"IF(Alldata[[#This Row],[انتهاء الفحص]]=\"\",\"لا يوجد\",IF((Alldata[[#This Row],[انتهاء الفحص]]-$S$2)<0,\"منتهي\",IF((Alldata[[#This Row],[انتهاء الفحص]]-$S$2)<25,\"تجديد\",\"ساري\")))","v":"لا يوجد"},null,{"$f":"IF(Alldata[[#This Row],[انتهاء الاستمارة]]=\"\",\"لا يوجد\",IF((Alldata[[#This Row],[انتهاء الاستمارة]]-$S$2)<0,\"منتهي\",IF((Alldata[[#This Row],[انتهاء الاستمارة]]-$S$2)<25,\"تجديد\",\"ساري\")))","v":"لا يوجد"},null,{"$f":"IF(Alldata[[#This Row],[انتهاء التأمين]]=\"\",\"لا يوجد\",IF((Alldata[[#This Row],[انتهاء التأمين]]-$S$2)<0,\"منتهي\",IF((Alldata[[#This Row],[انتهاء التأمين]]-$S$2)<25,\"تجديد\",\"ساري\")))","v":"لا يوجد"},null,{"$f":"IF(Alldata[[#This Row],[انتهاء كارت التشغيل]]=\"\",\"لا يوجد\",IF((Alldata[[#This Row],[انتهاء كارت التشغيل]]-$S$2)<0,\"منتهي\",IF((Alldata[[#This Row],[انتهاء كارت التشغيل]]-$S$2)<25,\"تجديد\",\"ساري\")))","v":"لا يوجد"},null,null,null,null,null,null,null,null,null,null,null,null,null,null,null,null,null,null,null,null,null,{"$error":"#VALUE!"},{"$error":"#VALUE!"},null,{"$error":"#VALUE!"},null,null,null,{"$error":"#VALUE!"}]
[{"$f":"SUBTOTAL(3,$B$5:B107)","v":2},null,null,null,null,null,null,null,null,null,null,null,null,null,null,{"$f":"IF(Alldata[[#This Row],[انتهاء الفحص]]=\"\",\"لا يوجد\",IF((Alldata[[#This Row],[انتهاء الفحص]]-$S$2)<0,\"منتهي\",IF((Alldata[[#This Row],[انتهاء الفحص]]-$S$2)<25,\"تجديد\",\"ساري\")))","v":"لا يوجد"},null,{"$f":"IF(Alldata[[#This Row],[انتهاء الاستمارة]]=\"\",\"لا يوجد\",IF((Alldata[[#This Row],[انتهاء الاستمارة]]-$S$2)<0,\"منتهي\",IF((Alldata[[#This Row],[انتهاء الاستمارة]]-$S$2)<25,\"تجديد\",\"ساري\")))","v":"لا يوجد"},null,{"$f":"IF(Alldata[[#This Row],[انتهاء التأمين]]=\"\",\"لا يوجد\",IF((Alldata[[#This Row],[انتهاء التأمين]]-$S$2)<0,\"منتهي\",IF((Alldata[[#This Row],[انتهاء التأمين]]-$S$2)<25,\"تجديد\",\"ساري\")))","v":"لا يوجد"},null,{"$f":"IF(Alldata[[#This Row],[انتهاء كارت التشغيل]]=\"\",\"لا يوجد\",IF((Alldata[[#This Row],[انتهاء كارت التشغيل]]-$S$2)<0,\"منتهي\",IF((Alldata[[#This Row],[انتهاء كارت التشغيل]]-$S$2)<25,\"تجديد\",\"ساري\")))","v":"لا يوجد"},null,null,null,null,null,null,null,null,null,null,null,null,null,null,null,null,null,null,null,null,null,{"$error":"#VALUE!"},{"$error":"#VALUE!"},null,{"$error":"#VALUE!"},null,null,null,{"$error":"#VALUE!"}]
[{"$f":"SUBTOTAL(3,$B$5:B108)","v":2},null,null,null,null,null,null,null,null,null,null,null,null,null,null,{"$f":"IF(Alldata[[#This Row],[انتهاء الفحص]]=\"\",\"لا يوجد\",IF((Alldata[[#This Row],[انتهاء الفحص]]-$S$2)<0,\"منتهي\",IF((Alldata[[#This Row],[انتهاء الفحص]]-$S$2)<25,\"تجديد\",\"ساري\")))","v":"لا يوجد"},null,{"$f":"IF(Alldata[[#This Row],[انتهاء الاستمارة]]=\"\",\"لا يوجد\",IF((Alldata[[#This Row],[انتهاء الاستمارة]]-$S$2)<0,\"منتهي\",IF((Alldata[[#This Row],[انتهاء الاستمارة]]-$S$2)<25,\"تجديد\",\"ساري\")))","v":"لا يوجد"},null,{"$f":"IF(Alldata[[#This Row],[انتهاء التأمين]]=\"\",\"لا يوجد\",IF((Alldata[[#This Row],[انتهاء التأمين]]-$S$2)<0,\"منتهي\",IF((Alldata[[#This Row],[انتهاء التأمين]]-$S$2)<25,\"تجديد\",\"ساري\")))","v":"لا يوجد"},null,{"$f":"IF(Alldata[[#This Row],[انتهاء كارت التشغيل]]=\"\",\"لا يوجد\",IF((Alldata[[#This Row],[انتهاء كارت التشغيل]]-$S$2)<0,\"منتهي\",IF((Alldata[[#This Row],[انتهاء كارت التشغيل]]-$S$2)<25,\"تجديد\",\"ساري\")))","v":"لا يوجد"},null,null,null,null,null,null,null,null,null,null,null,null,null,null,null,null,null,null,null,null,null,{"$error":"#VALUE!"},{"$error":"#VALUE!"},null,{"$error":"#VALUE!"},null,null,null,{"$error":"#VALUE!"}]
[{"$f":"SUBTOTAL(3,$B$5:B109)","v":2},null,null,null,null,null,null,null,null,null,null,null,null,null,null,{"$f":"IF(Alldata[[#This Row],[انتهاء الفحص]]=\"\",\"لا يوجد\",IF((Alldata[[#This Row],[انتهاء الفحص]]-$S$2)<0,\"منتهي\",IF((Alldata[[#This Row],[انتهاء الفحص]]-$S$2)<25,\"تجديد\",\"ساري\")))","v":"لا يوجد"},null,{"$f":"IF(Alldata[[#This Row],[انتهاء الاستمارة]]=\"\",\"لا يوجد\",IF((Alldata[[#This Row],[انتهاء الاستمارة]]-$S$2)<0,\"منتهي\",IF((Alldata[[#This Row],[انتهاء الاستمارة]]-$S$2)<25,\"تجديد\",\"ساري\")))","v":"لا يوجد"},null,{"$f":"IF(Alldata[[#This Row],[انتهاء التأمين]]=\"\",\"لا يوجد\",IF((Alldata[[#This Row],[انتهاء التأمين]]-$S$2)<0,\"منتهي\",IF((Alldata[[#This Row],[انتهاء التأمين]]-$S$2)<25,\"تجديد\",\"ساري\")))","v":"لا يوجد"},null,{"$f":"IF(Alldata[[#This Row],[انتهاء كارت التشغيل]]=\"\",\"لا يوجد\",IF((Alldata[[#This Row],[انتهاء كارت التشغيل]]-$S$2)<0,\"منتهي\",IF((Alldata[[#This Row],[انتهاء كارت التشغيل]]-$S$2)<25,\"تجديد\",\"ساري\")))","v":"لا يوجد"},null,null,null,null,null,null,null,null,null,null,null,null,null,null,null,null,null,null,null,null,null,{"$error":"#VALUE!"},{"$error":"#VALUE!"},null,{"$error":"#VALUE!"},null,null,null,{"$error":"#VALUE!"}]
[{"$f":"SUBTOTAL(3,$B$5:B110)","v":2},null,null,null,null,null,null,null,null,null,null,null,null,null,null,{"$f":"IF(Alldata[[#This Row],[انتهاء الفحص]]=\"\",\"لا يوجد\",IF((Alldata[[#This Row],[انتهاء الفحص]]-$S$2)<0,\"منتهي\",IF((Alldata[[#This Row],[انتهاء الفحص]]-$S$2)<25,\"تجديد\",\"ساري\")))","v":"لا يوجد"},null,{"$f":"IF(Alldata[[#This Row],[انتهاء الاستمارة]]=\"\",\"لا يوجد\",IF((Alldata[[#This Row],[انتهاء الاستمارة]]-$S$2)<0,\"منتهي\",IF((Alldata[[#This Row],[انتهاء الاستمارة]]-$S$2)<25,\"تجديد\",\"ساري\")))","v":"لا يوجد"},null,{"$f":"IF(Alldata[[#This Row],[انتهاء التأمين]]=\"\",\"لا يوجد\",IF((Alldata[[#This Row],[انتهاء التأمين]]-$S$2)<0,\"منتهي\",IF((Alldata[[#This Row],[انتهاء التأمين]]-$S$2)<25,\"تجديد\",\"ساري\")))","v":"لا يوجد"},null,{"$f":"IF(Alldata[[#This Row],[انتهاء كارت التشغيل]]=\"\",\"لا يوجد\",IF((Alldata[[#This Row],[انتهاء كارت التشغيل]]-$S$2)<0,\"منتهي\",IF((Alldata[[#This Row],[انتهاء كارت التشغيل]]-$S$2)<25,\"تجديد\",\"ساري\")))","v":"لا يوجد"},null,null,null,null,null,null,null,null,null,null,null,null,null,null,null,null,null,null,null,null,null,{"$error":"#VALUE!"},{"$error":"#VALUE!"},null,{"$error":"#VALUE!"},null,null,null,{"$error":"#VALUE!"}]
[{"$f":"SUBTOTAL(3,$B$5:B111)","v":2},null,null,null,null,null,null,null,null,null,null,null,null,null,null,{"$f":"IF(Alldata[[#This Row],[انتهاء الفحص]]=\"\",\"لا يوجد\",IF((Alldata[[#This Row],[انتهاء الفحص]]-$S$2)<0,\"منتهي\",IF((Alldata[[#This Row],[انتهاء الفحص]]-$S$2)<25,\"تجديد\",\"ساري\")))","v":"لا يوجد"},null,{"$f":"IF(Alldata[[#This Row],[انتهاء الاستمارة]]=\"\",\"لا يوجد\",IF((Alldata[[#This Row],[انتهاء الاستمارة]]-$S$2)<0,\"منتهي\",IF((Alldata[[#This Row],[انتهاء الاستمارة]]-$S$2)<25,\"تجديد\",\"ساري\")))","v":"لا يوجد"},null,{"$f":"IF(Alldata[[#This Row],[انتهاء التأمين]]=\"\",\"لا يوجد\",IF((Alldata[[#This Row],[انتهاء التأمين]]-$S$2)<0,\"منتهي\",IF((Alldata[[#This Row],[انتهاء التأمين]]-$S$2)<25,\"تجديد\",\"ساري\")))","v":"لا يوجد"},null,{"$f":"IF(Alldata[[#This Row],[انتهاء كارت التشغيل]]=\"\",\"لا يوجد\",IF((Alldata[[#This Row],[انتهاء كارت التشغيل]]-$S$2)<0,\"منتهي\",IF((Alldata[[#This Row],[انتهاء كارت التشغيل]]-$S$2)<25,\"تجديد\",\"ساري\")))","v":"لا يوجد"},null,null,null,null,null,null,null,null,null,null,null,null,null,null,null,null,null,null,null,null,null,{"$error":"#VALUE!"},{"$error":"#VALUE!"},null,{"$error":"#VALUE!"},null,null,null,{"$error":"#VALUE!"}]
[{"$f":"SUBTOTAL(3,$B$5:B112)","v":2},null,null,null,null,null,null,null,null,null,null,null,null,null,null,{"$f":"IF(Alldata[[#This Row],[انتهاء الفحص]]=\"\",\"لا يوجد\",IF((Alldata[[#This Row],[انتهاء الفحص]]-$S$2)<0,\"منتهي\",IF((Alldata[[#This Row],[انتهاء الفحص]]-$S$2)<25,\"تجديد\",\"ساري\")))","v":"لا يوجد"},null,{"$f":"IF(Alldata[[#This Row],[انتهاء الاستمارة]]=\"\",\"لا يوجد\",IF((Alldata[[#This Row],[انتهاء الاستمارة]]-$S$2)<0,\"منتهي\",IF((Alldata[[#This Row],[انتهاء الاستمارة]]-$S$2)<25,\"تجديد\",\"ساري\")))","v":"لا يوجد"},null,{"$f":"IF(Alldata[[#This Row],[انتهاء التأمين]]=\"\",\"لا يوجد\",IF((Alldata[[#This Row],[انتهاء التأمين]]-$S$2)<0,\"منتهي\",IF((Alldata[[#This Row],[انتهاء التأمين]]-$S$2)<25,\"تجديد\",\"ساري\")))","v":"لا يوجد"},null,{"$f":"IF(Alldata[[#This Row],[انتهاء كارت التشغيل]]=\"\",\"لا يوجد\",IF((Alldata[[#This Row],[انتهاء كارت التشغيل]]-$S$2)<0,\"منتهي\",IF((Alldata[[#This Row],[انتهاء كارت التشغيل]]-$S$2)<25,\"تجديد\",\"ساري\")))","v":"لا يوجد"},null,null,null,null,null,null,null,null,null,null,null,null,null,null,null,null,null,null,null,null,null,{"$error":"#VALUE!"},{"$error":"#VALUE!"},null,{"$error":"#VALUE!"},null,null,null,{"$error":"#VALUE!"}]
[{"$f":"SUBTOTAL(3,$B$5:B113)","v":2},null,null,null,null,null,null,null,null,null,null,null,null,null,null,{"$f":"IF(Alldata[[#This Row],[انتهاء الفحص]]=\"\",\"لا يوجد\",IF((Alldata[[#This Row],[انتهاء الفحص]]-$S$2)<0,\"منتهي\",IF((Alldata[[#This Row],[انتهاء الفحص]]-$S$2)<25,\"تجديد\",\"ساري\")))","v":"لا يوجد"},null,{"$f":"IF(Alldata[[#This Row],[انتهاء الاستمارة]]=\"\",\"لا يوجد\",IF((Alldata[[#This Row],[انتهاء الاستمارة]]-$S$2)<0,\"منتهي\",IF((Alldata[[#This Row],[انتهاء الاستمارة]]-$S$2)<25,\"تجديد\",\"ساري\")))","v":"لا يوجد"},null,{"$f":"IF(Alldata[[#This Row],[انتهاء التأمين]]=\"\",\"لا يوجد\",IF((Alldata[[#This Row],[انتهاء التأمين]]-$S$2)<0,\"منتهي\",IF((Alldata[[#This Row],[انتهاء التأمين]]-$S$2)<25,\"تجديد\",\"ساري\")))","v":"لا يوجد"},null,{"$f":"IF(Alldata[[#This Row],[انتهاء كارت التشغيل]]=\"\",\"لا يوجد\",IF((Alldata[[#This Row],[انتهاء كارت التشغيل]]-$S$2)<0,\"منتهي\",IF((Alldata[[#This Row],[انتهاء كارت التشغيل]]-$S$2)<25,\"تجديد\",\"ساري\")))","v":"لا يوجد"},null,null,null,null,null,null,null,null,null,null,null,null,null,null,null,null,null,null,null,null,null,{"$error":"#VALUE!"},{"$error":"#VALUE!"},null,{"$error":"#VALUE!"},null,null,null,{"$error":"#VALUE!"}]
[{"$f":"SUBTOTAL(3,$B$5:B114)","v":2},null,null,null,null,null,null,null,null,null,null,null,null,null,null,{"$f":"IF(Alldata[[#This Row],[انتهاء الفحص]]=\"\",\"لا يوجد\",IF((Alldata[[#This Row],[انتهاء الفحص]]-$S$2)<0,\"منتهي\",IF((Alldata[[#This Row],[انتهاء الفحص]]-$S$2)<25,\"تجديد\",\"ساري\")))","v":"لا يوجد"},null,{"$f":"IF(Alldata[[#This Row],[انتهاء الاستمارة]]=\"\",\"لا يوجد\",IF((Alldata[[#This Row],[انتهاء الاستمارة]]-$S$2)<0,\"منتهي\",IF((Alldata[[#This Row],[انتهاء الاستمارة]]-$S$2)<25,\"تجديد\",\"ساري\")))","v":"لا يوجد"},null,{"$f":"IF(Alldata[[#This Row],[انتهاء التأمين]]=\"\",\"لا يوجد\",IF((Alldata[[#This Row],[انتهاء التأمين]]-$S$2)<0,\"منتهي\",IF((Alldata[[#This Row],[انتهاء التأمين]]-$S$2)<25,\"تجديد\",\"ساري\")))","v":"لا يوجد"},null,{"$f":"IF(Alldata[[#This Row],[انتهاء كارت التشغيل]]=\"\",\"لا يوجد\",IF((Alldata[[#This Row],[انتهاء كارت التشغيل]]-$S$2)<0,\"منتهي\",IF((Alldata[[#This Row],[انتهاء كارت التشغيل]]-$S$2)<25,\"تجديد\",\"ساري\")))","v":"لا يوجد"},null,null,null,null,null,null,null,null,null,null,null,null,null,null,null,null,null,null,null,null,null,{"$error":"#VALUE!"},{"$error":"#VALUE!"},null,{"$error":"#VALUE!"},null,null,null,{"$error":"#VALUE!"}]
[{"$f":"SUBTOTAL(3,$B$5:B115)","v":2},null,null,null,null,null,null,null,null,null,null,null,null,null,null,{"$f":"IF(Alldata[[#This Row],[انتهاء الفحص]]=\"\",\"لا يوجد\",IF((Alldata[[#This Row],[انتهاء الفحص]]-$S$2)<0,\"منتهي\",IF((Alldata[[#This Row],[انتهاء الفحص]]-$S$2)<25,\"تجديد\",\"ساري\")))","v":"لا يوجد"},null,{"$f":"IF(Alldata[[#This Row],[انتهاء الاستمارة]]=\"\",\"لا يوجد\",IF((Alldata[[#This Row],[انتهاء الاستمارة]]-$S$2)<0,\"منتهي\",IF((Alldata[[#This Row],[انتهاء الاستمارة]]-$S$2)<25,\"تجديد\",\"ساري\")))","v":"لا يوجد"},null,{"$f":"IF(Alldata[[#This Row],[انتهاء التأمين]]=\"\",\"لا يوجد\",IF((Alldata[[#This Row],[انتهاء التأمين]]-$S$2)<0,\"منتهي\",IF((Alldata[[#This Row],[انتهاء التأمين]]-$S$2)<25,\"تجديد\",\"ساري\")))","v":"لا يوجد"},null,{"$f":"IF(Alldata[[#This Row],[انتهاء كارت التشغيل]]=\"\",\"لا يوجد\",IF((Alldata[[#This Row],[انتهاء كارت التشغيل]]-$S$2)<0,\"منتهي\",IF((Alldata[[#This Row],[انتهاء كارت التشغيل]]-$S$2)<25,\"تجديد\",\"ساري\")))","v":"لا يوجد"},null,null,null,null,null,null,null,null,null,null,null,null,null,null,null,null,null,null,null,null,null,{"$error":"#VALUE!"},{"$error":"#VALUE!"},null,{"$error":"#VALUE!"},null,null,null,{"$error":"#VALUE!"}]
[{"$f":"SUBTOTAL(3,$B$5:B116)","v":2},null,null,null,null,null,null,null,null,null,null,null,null,null,null,{"$f":"IF(Alldata[[#This Row],[انتهاء الفحص]]=\"\",\"لا يوجد\",IF((Alldata[[#This Row],[انتهاء الفحص]]-$S$2)<0,\"منتهي\",IF((Alldata[[#This Row],[انتهاء الفحص]]-$S$2)<25,\"تجديد\",\"ساري\")))","v":"لا يوجد"},null,{"$f":"IF(Alldata[[#This Row],[انتهاء الاستمارة]]=\"\",\"لا يوجد\",IF((Alldata[[#This Row],[انتهاء الاستمارة]]-$S$2)<0,\"منتهي\",IF((Alldata[[#This Row],[انتهاء الاستمارة]]-$S$2)<25,\"تجديد\",\"ساري\")))","v":"لا يوجد"},null,{"$f":"IF(Alldata[[#This Row],[انتهاء التأمين]]=\"\",\"لا يوجد\",IF((Alldata[[#This Row],[انتهاء التأمين]]-$S$2)<0,\"منتهي\",IF((Alldata[[#This Row],[انتهاء التأمين]]-$S$2)<25,\"تجديد\",\"ساري\")))","v":"لا يوجد"},null,{"$f":"IF(Alldata[[#This Row],[انتهاء كارت التشغيل]]=\"\",\"لا يوجد\",IF((Alldata[[#This Row],[انتهاء كارت التشغيل]]-$S$2)<0,\"منتهي\",IF((Alldata[[#This Row],[انتهاء كارت التشغيل]]-$S$2)<25,\"تجديد\",\"ساري\")))","v":"لا يوجد"},null,null,null,null,null,null,null,null,null,null,null,null,null,null,null,null,null,null,null,null,null,{"$error":"#VALUE!"},{"$error":"#VALUE!"},null,{"$error":"#VALUE!"},null,null,null,{"$error":"#VALUE!"}]
[{"$f":"SUBTOTAL(3,$B$5:B117)","v":2},null,null,null,null,null,null,null,null,null,null,null,null,null,null,{"$f":"IF(Alldata[[#This Row],[انتهاء الفحص]]=\"\",\"لا يوجد\",IF((Alldata[[#This Row],[انتهاء الفحص]]-$S$2)<0,\"منتهي\",IF((Alldata[[#This Row],[انتهاء الفحص]]-$S$2)<25,\"تجديد\",\"ساري\")))","v":"لا يوجد"},null,{"$f":"IF(Alldata[[#This Row],[انتهاء الاستمارة]]=\"\",\"لا يوجد\",IF((Alldata[[#This Row],[انتهاء الاستمارة]]-$S$2)<0,\"منتهي\",IF((Alldata[[#This Row],[انتهاء الاستمارة]]-$S$2)<25,\"تجديد\",\"ساري\")))","v":"لا يوجد"},null,{"$f":"IF(Alldata[[#This Row],[انتهاء التأمين]]=\"\",\"لا يوجد\",IF((Alldata[[#This Row],[انتهاء التأمين]]-$S$2)<0,\"منتهي\",IF((Alldata[[#This Row],[انتهاء التأمين]]-$S$2)<25,\"تجديد\",\"ساري\")))","v":"لا يوجد"},null,{"$f":"IF(Alldata[[#This Row],[انتهاء كارت التشغيل]]=\"\",\"لا يوجد\",IF((Alldata[[#This Row],[انتهاء كارت التشغيل]]-$S$2)<0,\"منتهي\",IF((Alldata[[#This Row],[انتهاء كارت التشغيل]]-$S$2)<25,\"تجديد\",\"ساري\")))","v":"لا يوجد"},null,null,null,null,null,null,null,null,null,null,null,null,null,null,null,null,null,null,null,null,null,{"$error":"#VALUE!"},{"$error":"#VALUE!"},null,{"$error":"#VALUE!"},null,null,null,{"$error":"#VALUE!"}]
[{"$f":"SUBTOTAL(3,$B$5:B118)","v":2},null,null,null,null,null,null,null,null,null,null,null,null,null,null,{"$f":"IF(Alldata[[#This Row],[انتهاء الفحص]]=\"\",\"لا يوجد\",IF((Alldata[[#This Row],[انتهاء الفحص]]-$S$2)<0,\"منتهي\",IF((Alldata[[#This Row],[انتهاء الفحص]]-$S$2)<25,\"تجديد\",\"ساري\")))","v":"لا يوجد"},null,{"$f":"IF(Alldata[[#This Row],[انتهاء الاستمارة]]=\"\",\"لا يوجد\",IF((Alldata[[#This Row],[انتهاء الاستمارة]]-$S$2)<0,\"منتهي\",IF((Alldata[[#This Row],[انتهاء الاستمارة]]-$S$2)<25,\"تجديد\",\"ساري\")))","v":"لا يوجد"},null,{"$f":"IF(Alldata[[#This Row],[انتهاء التأمين]]=\"\",\"لا يوجد\",IF((Alldata[[#This Row],[انتهاء التأمين]]-$S$2)<0,\"منتهي\",IF((Alldata[[#This Row],[انتهاء التأمين]]-$S$2)<25,\"تجديد\",\"ساري\")))","v":"لا يوجد"},null,{"$f":"IF(Alldata[[#This Row],[انتهاء كارت التشغيل]]=\"\",\"لا يوجد\",IF((Alldata[[#This Row],[انتهاء كارت التشغيل]]-$S$2)<0,\"منتهي\",IF((Alldata[[#This Row],[انتهاء كارت التشغيل]]-$S$2)<25,\"تجديد\",\"ساري\")))","v":"لا يوجد"},null,null,null,null,null,null,null,null,null,null,null,null,null,null,null,null,null,null,null,null,null,{"$error":"#VALUE!"},{"$error":"#VALUE!"},null,{"$error":"#VALUE!"},null,null,null,{"$error":"#VALUE!"}]
[{"$f":"SUBTOTAL(3,$B$5:B119)","v":2},null,null,null,null,null,null,null,null,null,null,null,null,null,null,{"$f":"IF(Alldata[[#This Row],[انتهاء الفحص]]=\"\",\"لا يوجد\",IF((Alldata[[#This Row],[انتهاء الفحص]]-$S$2)<0,\"منتهي\",IF((Alldata[[#This Row],[انتهاء الفحص]]-$S$2)<25,\"تجديد\",\"ساري\")))","v":"لا يوجد"},null,{"$f":"IF(Alldata[[#This Row],[انتهاء الاستمارة]]=\"\",\"لا يوجد\",IF((Alldata[[#This Row],[انتهاء الاستمارة]]-$S$2)<0,\"منتهي\",IF((Alldata[[#This Row],[انتهاء الاستمارة]]-$S$2)<25,\"تجديد\",\"ساري\")))","v":"لا يوجد"},null,{"$f":"IF(Alldata[[#This Row],[انتهاء التأمين]]=\"\",\"لا يوجد\",IF((Alldata[[#This Row],[انتهاء التأمين]]-$S$2)<0,\"منتهي\",IF((Alldata[[#This Row],[انتهاء التأمين]]-$S$2)<25,\"تجديد\",\"ساري\")))","v":"لا يوجد"},null,{"$f":"IF(Alldata[[#This Row],[انتهاء كارت التشغيل]]=\"\",\"لا يوجد\",IF((Alldata[[#This Row],[انتهاء كارت التشغيل]]-$S$2)<0,\"منتهي\",IF((Alldata[[#This Row],[انتهاء كارت التشغيل]]-$S$2)<25,\"تجديد\",\"ساري\")))","v":"لا يوجد"},null,null,null,null,null,null,null,null,null,null,null,null,null,null,null,null,null,null,null,null,null,{"$error":"#VALUE!"},{"$error":"#VALUE!"},null,{"$error":"#VALUE!"},null,null,null,{"$error":"#VALUE!"}]
[{"$f":"SUBTOTAL(3,$B$5:B120)","v":2},null,null,null,null,null,null,null,null,null,null,null,null,null,null,{"$f":"IF(Alldata[[#This Row],[انتهاء الفحص]]=\"\",\"لا يوجد\",IF((Alldata[[#This Row],[انتهاء الفحص]]-$S$2)<0,\"منتهي\",IF((Alldata[[#This Row],[انتهاء الفحص]]-$S$2)<25,\"تجديد\",\"ساري\")))","v":"لا يوجد"},null,{"$f":"IF(Alldata[[#This Row],[انتهاء الاستمارة]]=\"\",\"لا يوجد\",IF((Alldata[[#This Row],[انتهاء الاستمارة]]-$S$2)<0,\"منتهي\",IF((Alldata[[#This Row],[انتهاء الاستمارة]]-$S$2)<25,\"تجديد\",\"ساري\")))","v":"لا يوجد"},null,{"$f":"IF(Alldata[[#This Row],[انتهاء التأمين]]=\"\",\"لا يوجد\",IF((Alldata[[#This Row],[انتهاء التأمين]]-$S$2)<0,\"منتهي\",IF((Alldata[[#This Row],[انتهاء التأمين]]-$S$2)<25,\"تجديد\",\"ساري\")))","v":"لا يوجد"},null,{"$f":"IF(Alldata[[#This Row],[انتهاء كارت التشغيل]]=\"\",\"لا يوجد\",IF((Alldata[[#This Row],[انتهاء كارت التشغيل]]-$S$2)<0,\"منتهي\",IF((Alldata[[#This Row],[انتهاء كارت التشغيل]]-$S$2)<25,\"تجديد\",\"ساري\")))","v":"لا يوجد"},null,null,null,null,null,null,null,null,null,null,null,null,null,null,null,null,null,null,null,null,null,{"$error":"#VALUE!"},{"$error":"#VALUE!"},null,{"$error":"#VALUE!"},null,null,null,{"$error":"#VALUE!"}]
[{"$f":"SUBTOTAL(3,$B$5:B121)","v":2},null,null,null,null,null,null,null,null,null,null,null,null,null,null,{"$f":"IF(Alldata[[#This Row],[انتهاء الفحص]]=\"\",\"لا يوجد\",IF((Alldata[[#This Row],[انتهاء الفحص]]-$S$2)<0,\"منتهي\",IF((Alldata[[#This Row],[انتهاء الفحص]]-$S$2)<25,\"تجديد\",\"ساري\")))","v":"لا يوجد"},null,{"$f":"IF(Alldata[[#This Row],[انتهاء الاستمارة]]=\"\",\"لا يوجد\",IF((Alldata[[#This Row],[انتهاء الاستمارة]]-$S$2)<0,\"منتهي\",IF((Alldata[[#This Row],[انتهاء الاستمارة]]-$S$2)<25,\"تجديد\",\"ساري\")))","v":"لا يوجد"},null,{"$f":"IF(Alldata[[#This Row],[انتهاء التأمين]]=\"\",\"لا يوجد\",IF((Alldata[[#This Row],[انتهاء التأمين]]-$S$2)<0,\"منتهي\",IF((Alldata[[#This Row],[انتهاء التأمين]]-$S$2)<25,\"تجديد\",\"ساري\")))","v":"لا يوجد"},null,{"$f":"IF(Alldata[[#This Row],[انتهاء كارت التشغيل]]=\"\",\"لا يوجد\",IF((Alldata[[#This Row],[انتهاء كارت التشغيل]]-$S$2)<0,\"منتهي\",IF((Alldata[[#This Row],[انتهاء كارت التشغيل]]-$S$2)<25,\"تجديد\",\"ساري\")))","v":"لا يوجد"},null,null,null,null,null,null,null,null,null,null,null,null,null,null,null,null,null,null,null,null,null,{"$error":"#VALUE!"},{"$error":"#VALUE!"},null,{"$error":"#VALUE!"},null,null,null,{"$error":"#VALUE!"}]
[{"$f":"SUBTOTAL(3,$B$5:B122)","v":2},null,null,null,null,null,null,null,null,null,null,null,null,null,null,{"$f":"IF(Alldata[[#This Row],[انتهاء الفحص]]=\"\",\"لا يوجد\",IF((Alldata[[#This Row],[انتهاء الفحص]]-$S$2)<0,\"منتهي\",IF((Alldata[[#This Row],[انتهاء الفحص]]-$S$2)<25,\"تجديد\",\"ساري\")))","v":"لا يوجد"},null,{"$f":"IF(Alldata[[#This Row],[انتهاء الاستمارة]]=\"\",\"لا يوجد\",IF((Alldata[[#This Row],[انتهاء الاستمارة]]-$S$2)<0,\"منتهي\",IF((Alldata[[#This Row],[انتهاء الاستمارة]]-$S$2)<25,\"تجديد\",\"ساري\")))","v":"لا يوجد"},null,{"$f":"IF(Alldata[[#This Row],[انتهاء التأمين]]=\"\",\"لا يوجد\",IF((Alldata[[#This Row],[انتهاء التأمين]]-$S$2)<0,\"منتهي\",IF((Alldata[[#This Row],[انتهاء التأمين]]-$S$2)<25,\"تجديد\",\"ساري\")))","v":"لا يوجد"},null,"لا يوجد",null,null,null,null,null,null,null,null,null,null,null,null,null,null,null,null,null,null,null,null,null,{"$error":"#VALUE!"},{"$error":"#VALUE!"},null,{"$error":"#VALUE!"},null,null,null,{"$error":"#VALUE!"}]
[{"$f":"SUBTOTAL(3,$B$5:B123)","v":2},null,null,null,null,null,null,null,null,null,null,null,null,null,null,{"$f":"IF(Alldata[[#This Row],[انتهاء الفحص]]=\"\",\"لا يوجد\",IF((Alldata[[#This Row],[انتهاء الفحص]]-$S$2)<0,\"منتهي\",IF((Alldata[[#This Row],[انتهاء الفحص]]-$S$2)<25,\"تجديد\",\"ساري\")))","v":"لا يوجد"},null,{"$f":"IF(Alldata[[#This Row],[انتهاء الاستمارة]]=\"\",\"لا يوجد\",IF((Alldata[[#This Row],[انتهاء الاستمارة]]-$S$2)<0,\"منتهي\",IF((Alldata[[#This Row],[انتهاء الاستمارة]]-$S$2)<25,\"تجديد\",\"ساري\")))","v":"لا يوجد"},null,{"$f":"IF(Alldata[[#This Row],[انتهاء التأمين]]=\"\",\"لا يوجد\",IF((Alldata[[#This Row],[انتهاء التأمين]]-$S$2)<0,\"منتهي\",IF((Alldata[[#This Row],[انتهاء التأمين]]-$S$2)<25,\"تجديد\",\"ساري\")))","v":"لا يوجد"},null,{"$f":"IF(Alldata[[#This Row],[انتهاء كارت التشغيل]]=\"\",\"لا يوجد\",IF((Alldata[[#This Row],[انتهاء كارت التشغيل]]-$S$2)<0,\"منتهي\",IF((Alldata[[#This Row],[انتهاء كارت التشغيل]]-$S$2)<25,\"تجديد\",\"ساري\")))","v":"لا يوجد"},null,null,null,null,null,null,null,null,null,null,null,null,null,null,null,null,null,null,null,null,null,{"$error":"#VALUE!"},{"$error":"#VALUE!"},null,{"$error":"#VALUE!"},null,null,null,{"$error":"#VALUE!"}]
[{"$f":"SUBTOTAL(3,$B$5:B124)","v":2},null,null,null,null,null,null,null,null,null,null,null,null,null,null,{"$f":"IF(Alldata[[#This Row],[انتهاء الفحص]]=\"\",\"لا يوجد\",IF((Alldata[[#This Row],[انتهاء الفحص]]-$S$2)<0,\"منتهي\",IF((Alldata[[#This Row],[انتهاء الفحص]]-$S$2)<25,\"تجديد\",\"ساري\")))","v":"لا يوجد"},null,{"$f":"IF(Alldata[[#This Row],[انتهاء الاستمارة]]=\"\",\"لا يوجد\",IF((Alldata[[#This Row],[انتهاء الاستمارة]]-$S$2)<0,\"منتهي\",IF((Alldata[[#This Row],[انتهاء الاستمارة]]-$S$2)<25,\"تجديد\",\"ساري\")))","v":"لا يوجد"},null,{"$f":"IF(Alldata[[#This Row],[انتهاء التأمين]]=\"\",\"لا يوجد\",IF((Alldata[[#This Row],[انتهاء التأمين]]-$S$2)<0,\"منتهي\",IF((Alldata[[#This Row],[انتهاء التأمين]]-$S$2)<25,\"تجديد\",\"ساري\")))","v":"لا يوجد"},null,{"$f":"IF(Alldata[[#This Row],[انتهاء كارت التشغيل]]=\"\",\"لا يوجد\",IF((Alldata[[#This Row],[انتهاء كارت التشغيل]]-$S$2)<0,\"منتهي\",IF((Alldata[[#This Row],[انتهاء كارت التشغيل]]-$S$2)<25,\"تجديد\",\"ساري\")))","v":"لا يوجد"},null,null,null,null,null,null,null,null,null,null,null,null,null,null,null,null,null,null,null,null,null,{"$error":"#VALUE!"},{"$error":"#VALUE!"},null,{"$error":"#VALUE!"},null,null,null,{"$error":"#VALUE!"}]
[{"$f":"SUBTOTAL(3,$B$5:B125)","v":2},null,null,null,null,null,null,null,null,null,null,null,null,null,null,{"$f":"IF(Alldata[[#This Row],[انتهاء الفحص]]=\"\",\"لا يوجد\",IF((Alldata[[#This Row],[انتهاء الفحص]]-$S$2)<0,\"منتهي\",IF((Alldata[[#This Row],[انتهاء الفحص]]-$S$2)<25,\"تجديد\",\"ساري\")))","v":"لا يوجد"},null,{"$f":"IF(Alldata[[#This Row],[انتهاء الاستمارة]]=\"\",\"لا يوجد\",IF((Alldata[[#This Row],[انتهاء الاستمارة]]-$S$2)<0,\"منتهي\",IF((Alldata[[#This Row],[انتهاء الاستمارة]]-$S$2)<25,\"تجديد\",\"ساري\")))","v":"لا يوجد"},null,{"$f":"IF(Alldata[[#This Row],[انتهاء التأمين]]=\"\",\"لا يوجد\",IF((Alldata[[#This Row],[انتهاء التأمين]]-$S$2)<0,\"منتهي\",IF((Alldata[[#This Row],[انتهاء التأمين]]-$S$2)<25,\"تجديد\",\"ساري\")))","v":"لا يوجد"},null,{"$f":"IF(Alldata[[#This Row],[انتهاء كارت التشغيل]]=\"\",\"لا يوجد\",IF((Alldata[[#This Row],[انتهاء كارت التشغيل]]-$S$2)<0,\"منتهي\",IF((Alldata[[#This Row],[انتهاء كارت التشغيل]]-$S$2)<25,\"تجديد\",\"ساري\")))","v":"لا يوجد"},null,null,null,null,null,null,null,null,null,null,null,null,null,null,null,null,null,null,null,null,null,{"$error":"#VALUE!"},{"$error":"#VALUE!"},null,{"$error":"#VALUE!"},null,null,null,{"$error":"#VALUE!"}]
[{"$f":"SUBTOTAL(3,$B$5:B126)","v":2},null,null,null,null,null,null,null,null,null,null,null,null,null,null,{"$f":"IF(Alldata[[#This Row],[انتهاء الفحص]]=\"\",\"لا يوجد\",IF((Alldata[[#This Row],[انتهاء الفحص]]-$S$2)<0,\"منتهي\",IF((Alldata[[#This Row],[انتهاء الفحص]]-$S$2)<25,\"تجديد\",\"ساري\")))","v":"لا يوجد"},null,{"$f":"IF(Alldata[[#This Row],[انتهاء الاستمارة]]=\"\",\"لا يوجد\",IF((Alldata[[#This Row],[انتهاء الاستمارة]]-$S$2)<0,\"منتهي\",IF((Alldata[[#This Row],[انتهاء الاستمارة]]-$S$2)<25,\"تجديد\",\"ساري\")))","v":"لا يوجد"},null,{"$f":"IF(Alldata[[#This Row],[انتهاء التأمين]]=\"\",\"لا يوجد\",IF((Alldata[[#This Row],[انتهاء التأمين]]-$S$2)<0,\"منتهي\",IF((Alldata[[#This Row],[انتهاء التأمين]]-$S$2)<25,\"تجديد\",\"ساري\")))","v":"لا يوجد"},null,{"$f":"IF(Alldata[[#This Row],[انتهاء كارت التشغيل]]=\"\",\"لا يوجد\",IF((Alldata[[#This Row],[انتهاء كارت التشغيل]]-$S$2)<0,\"منتهي\",IF((Alldata[[#This Row],[انتهاء كارت التشغيل]]-$S$2)<25,\"تجديد\",\"ساري\")))","v":"لا يوجد"},null,null,null,null,null,null,null,null,null,null,null,null,null,null,null,null,null,null,null,null,null,{"$error":"#VALUE!"},{"$error":"#VALUE!"},null,{"$error":"#VALUE!"},null,null,null,{"$error":"#VALUE!"}]
[{"$f":"SUBTOTAL(3,$B$5:B127)","v":2},null,null,null,null,null,null,null,null,null,null,null,null,null,null,{"$f":"IF(Alldata[[#This Row],[انتهاء الفحص]]=\"\",\"لا يوجد\",IF((Alldata[[#This Row],[انتهاء الفحص]]-$S$2)<0,\"منتهي\",IF((Alldata[[#This Row],[انتهاء الفحص]]-$S$2)<25,\"تجديد\",\"ساري\")))","v":"لا يوجد"},null,{"$f":"IF(Alldata[[#This Row],[انتهاء الاستمارة]]=\"\",\"لا يوجد\",IF((Alldata[[#This Row],[انتهاء الاستمارة]]-$S$2)<0,\"منتهي\",IF((Alldata[[#This Row],[انتهاء الاستمارة]]-$S$2)<25,\"تجديد\",\"ساري\")))","v":"لا يوجد"},null,{"$f":"IF(Alldata[[#This Row],[انتهاء التأمين]]=\"\",\"لا يوجد\",IF((Alldata[[#This Row],[انتهاء التأمين]]-$S$2)<0,\"منتهي\",IF((Alldata[[#This Row],[انتهاء التأمين]]-$S$2)<25,\"تجديد\",\"ساري\")))","v":"لا يوجد"},null,{"$f":"IF(Alldata[[#This Row],[انتهاء كارت التشغيل]]=\"\",\"لا يوجد\",IF((Alldata[[#This Row],[انتهاء كارت التشغيل]]-$S$2)<0,\"منتهي\",IF((Alldata[[#This Row],[انتهاء كارت التشغيل]]-$S$2)<25,\"تجديد\",\"ساري\")))","v":"لا يوجد"},null,null,null,null,null,null,null,null,null,null,null,null,null,null,null,null,null,null,null,null,null,{"$error":"#VALUE!"},{"$error":"#VALUE!"},null,{"$error":"#VALUE!"},null,null,null,{"$error":"#VALUE!"}]
[{"$f":"SUBTOTAL(3,$B$5:B128)","v":2},null,null,null,null,null,null,null,null,null,null,null,null,null,null,{"$f":"IF(Alldata[[#This Row],[انتهاء الفحص]]=\"\",\"لا يوجد\",IF((Alldata[[#This Row],[انتهاء الفحص]]-$S$2)<0,\"منتهي\",IF((Alldata[[#This Row],[انتهاء الفحص]]-$S$2)<25,\"تجديد\",\"ساري\")))","v":"لا يوجد"},null,{"$f":"IF(Alldata[[#This Row],[انتهاء الاستمارة]]=\"\",\"لا يوجد\",IF((Alldata[[#This Row],[انتهاء الاستمارة]]-$S$2)<0,\"منتهي\",IF((Alldata[[#This Row],[انتهاء الاستمارة]]-$S$2)<25,\"تجديد\",\"ساري\")))","v":"لا يوجد"},null,{"$f":"IF(Alldata[[#This Row],[انتهاء التأمين]]=\"\",\"لا يوجد\",IF((Alldata[[#This Row],[انتهاء التأمين]]-$S$2)<0,\"منتهي\",IF((Alldata[[#This Row],[انتهاء التأمين]]-$S$2)<25,\"تجديد\",\"ساري\")))","v":"لا يوجد"},null,{"$f":"IF(Alldata[[#This Row],[انتهاء كارت التشغيل]]=\"\",\"لا يوجد\",IF((Alldata[[#This Row],[انتهاء كارت التشغيل]]-$S$2)<0,\"منتهي\",IF((Alldata[[#This Row],[انتهاء كارت التشغيل]]-$S$2)<25,\"تجديد\",\"ساري\")))","v":"لا يوجد"},null,null,null,null,null,null,null,null,null,null,null,null,null,null,null,null,null,null,null,null,null,{"$error":"#VALUE!"},{"$error":"#VALUE!"},null,{"$error":"#VALUE!"},null,null,null,{"$error":"#VALUE!"}]
[{"$f":"SUBTOTAL(3,$B$5:B129)","v":2},null,null,null,null,null,null,null,null,null,null,null,null,null,null,{"$f":"IF(Alldata[[#This Row],[انتهاء الفحص]]=\"\",\"لا يوجد\",IF((Alldata[[#This Row],[انتهاء الفحص]]-$S$2)<0,\"منتهي\",IF((Alldata[[#This Row],[انتهاء الفحص]]-$S$2)<25,\"تجديد\",\"ساري\")))","v":"لا يوجد"},null,{"$f":"IF(Alldata[[#This Row],[انتهاء الاستمارة]]=\"\",\"لا يوجد\",IF((Alldata[[#This Row],[انتهاء الاستمارة]]-$S$2)<0,\"منتهي\",IF((Alldata[[#This Row],[انتهاء الاستمارة]]-$S$2)<25,\"تجديد\",\"ساري\")))","v":"لا يوجد"},null,{"$f":"IF(Alldata[[#This Row],[انتهاء التأمين]]=\"\",\"لا يوجد\",IF((Alldata[[#This Row],[انتهاء التأمين]]-$S$2)<0,\"منتهي\",IF((Alldata[[#This Row],[انتهاء التأمين]]-$S$2)<25,\"تجديد\",\"ساري\")))","v":"لا يوجد"},null,{"$f":"IF(Alldata[[#This Row],[انتهاء كارت التشغيل]]=\"\",\"لا يوجد\",IF((Alldata[[#This Row],[انتهاء كارت التشغيل]]-$S$2)<0,\"منتهي\",IF((Alldata[[#This Row],[انتهاء كارت التشغيل]]-$S$2)<25,\"تجديد\",\"ساري\")))","v":"لا يوجد"},null,null,null,null,null,null,null,null,null,null,null,null,null,null,null,null,null,null,null,null,null,{"$error":"#VALUE!"},{"$error":"#VALUE!"},null,{"$error":"#VALUE!"},null,null,null,{"$error":"#VALUE!"}]
[{"$f":"SUBTOTAL(3,$B$5:B130)","v":2},null,null,null,null,null,null,null,null,null,null,null,null,null,null,{"$f":"IF(Alldata[[#This Row],[انتهاء الفحص]]=\"\",\"لا يوجد\",IF((Alldata[[#This Row],[انتهاء الفحص]]-$S$2)<0,\"منتهي\",IF((Alldata[[#This Row],[انتهاء الفحص]]-$S$2)<25,\"تجديد\",\"ساري\")))","v":"لا يوجد"},null,{"$f":"IF(Alldata[[#This Row],[انتهاء الاستمارة]]=\"\",\"لا يوجد\",IF((Alldata[[#This Row],[انتهاء الاستمارة]]-$S$2)<0,\"منتهي\",IF((Alldata[[#This Row],[انتهاء الاستمارة]]-$S$2)<25,\"تجديد\",\"ساري\")))","v":"لا يوجد"},null,{"$f":"IF(Alldata[[#This Row],[انتهاء التأمين]]=\"\",\"لا يوجد\",IF((Alldata[[#This Row],[انتهاء التأمين]]-$S$2)<0,\"منتهي\",IF((Alldata[[#This Row],[انتهاء التأمين]]-$S$2)<25,\"تجديد\",\"ساري\")))","v":"لا يوجد"},null,{"$f":"IF(Alldata[[#This Row],[انتهاء كارت التشغيل]]=\"\",\"لا يوجد\",IF((Alldata[[#This Row],[انتهاء كارت التشغيل]]-$S$2)<0,\"منتهي\",IF((Alldata[[#This Row],[انتهاء كارت التشغيل]]-$S$2)<25,\"تجديد\",\"ساري\")))","v":"لا يوجد"},null,null,null,null,null,null,null,null,null,null,null,null,null,null,null,null,null,null,null,null,null,{"$error":"#VALUE!"},{"$error":"#VALUE!"},null,{"$error":"#VALUE!"},null,null,null,{"$error":"#VALUE!"}]
[{"$f":"SUBTOTAL(3,$B$5:B131)","v":2},null,null,null,null,null,null,null,null,null,null,null,null,null,null,{"$f":"IF(Alldata[[#This Row],[انتهاء الفحص]]=\"\",\"لا يوجد\",IF((Alldata[[#This Row],[انتهاء الفحص]]-$S$2)<0,\"منتهي\",IF((Alldata[[#This Row],[انتهاء الفحص]]-$S$2)<25,\"تجديد\",\"ساري\")))","v":"لا يوجد"},null,{"$f":"IF(Alldata[[#This Row],[انتهاء الاستمارة]]=\"\",\"لا يوجد\",IF((Alldata[[#This Row],[انتهاء الاستمارة]]-$S$2)<0,\"منتهي\",IF((Alldata[[#This Row],[انتهاء الاستمارة]]-$S$2)<25,\"تجديد\",\"ساري\")))","v":"لا يوجد"},null,{"$f":"IF(Alldata[[#This Row],[انتهاء التأمين]]=\"\",\"لا يوجد\",IF((Alldata[[#This Row],[انتهاء التأمين]]-$S$2)<0,\"منتهي\",IF((Alldata[[#This Row],[انتهاء التأمين]]-$S$2)<25,\"تجديد\",\"ساري\")))","v":"لا يوجد"},null,{"$f":"IF(Alldata[[#This Row],[انتهاء كارت التشغيل]]=\"\",\"لا يوجد\",IF((Alldata[[#This Row],[انتهاء كارت التشغيل]]-$S$2)<0,\"منتهي\",IF((Alldata[[#This Row],[انتهاء كارت التشغيل]]-$S$2)<25,\"تجديد\",\"ساري\")))","v":"لا يوجد"},null,null,null,null,null,null,null,null,null,null,null,null,null,null,null,null,null,null,null,null,null,{"$f":"L131-AS134","v":{"$error":"#VALUE!"}},{"$f":"ConvertDate(Q134)","v":{"$error":"#VALUE!"}},null,{"$f":"ConvertDate(S134)","v":{"$error":"#VALUE!"}},null,null,null,{"$f":"ConvertDate(X134)","v":{"$error":"#VALUE!"}}]
[{"$f":"SUBTOTAL(3,$B$5:B132)","v":2},null,null,null,null,null,null,null,null,null,null,null,null,null,null,{"$f":"IF(Alldata[[#This Row],[انتهاء الفحص]]=\"\",\"لا يوجد\",IF((Alldata[[#This Row],[انتهاء الفحص]]-$S$2)<0,\"منتهي\",IF((Alldata[[#This Row],[انتهاء الفحص]]-$S$2)<25,\"تجديد\",\"ساري\")))","v":"لا يوجد"},null,{"$f":"IF(Alldata[[#This Row],[انتهاء الاستمارة]]=\"\",\"لا يوجد\",IF((Alldata[[#This Row],[انتهاء الاستمارة]]-$S$2)<0,\"منتهي\",IF((Alldata[[#This Row],[انتهاء الاستمارة]]-$S$2)<25,\"تجديد\",\"ساري\")))","v":"لا يوجد"},null,{"$f":"IF(Alldata[[#This Row],[انتهاء التأمين]]=\"\",\"لا يوجد\",IF((Alldata[[#This Row],[انتهاء التأمين]]-$S$2)<0,\"منتهي\",IF((Alldata[[#This Row],[انتهاء التأمين]]-$S$2)<25,\"تجديد\",\"ساري\")))","v":"لا يوجد"},null,{"$f":"IF(Alldata[[#This Row],[انتهاء كارت التشغيل]]=\"\",\"لا يوجد\",IF((Alldata[[#This Row],[انتهاء كارت التشغيل]]-$S$2)<0,\"منتهي\",IF((Alldata[[#This Row],[انتهاء كارت التشغيل]]-$S$2)<25,\"تجديد\",\"ساري\")))","v":"لا يوجد"},null,null,null,null,null,null,null,null,null,null,null,null,null,null,null,null,null,null,null,null,null,{"$error":"#VALUE!"},{"$error":"#VALUE!"},null,{"$error":"#VALUE!"},null,null,null,{"$error":"#VALUE!"}]
[{"$f":"SUBTOTAL(3,$B$5:B133)","v":2},null,null,null,null,null,null,null,null,null,null,null,null,null,null,{"$f":"IF(Alldata[[#This Row],[انتهاء الفحص]]=\"\",\"لا يوجد\",IF((Alldata[[#This Row],[انتهاء الفحص]]-$S$2)<0,\"منتهي\",IF((Alldata[[#This Row],[انتهاء الفحص]]-$S$2)<25,\"تجديد\",\"ساري\")))","v":"لا يوجد"},null,{"$f":"IF(Alldata[[#This Row],[انتهاء الاستمارة]]=\"\",\"لا يوجد\",IF((Alldata[[#This Row],[انتهاء الاستمارة]]-$S$2)<0,\"منتهي\",IF((Alldata[[#This Row],[انتهاء الاستمارة]]-$S$2)<25,\"تجديد\",\"ساري\")))","v":"لا يوجد"},null,{"$f":"IF(Alldata[[#This Row],[انتهاء التأمين]]=\"\",\"لا يوجد\",IF((Alldata[[#This Row],[انتهاء التأمين]]-$S$2)<0,\"منتهي\",IF((Alldata[[#This Row],[انتهاء التأمين]]-$S$2)<25,\"تجديد\",\"ساري\")))","v":"لا يوجد"},null,{"$f":"IF(Alldata[[#This Row],[انتهاء كارت التشغيل]]=\"\",\"لا يوجد\",IF((Alldata[[#This Row],[انتهاء كارت التشغيل]]-$S$2)<0,\"منتهي\",IF((Alldata[[#This Row],[انتهاء كارت التشغيل]]-$S$2)<25,\"تجديد\",\"ساري\")))","v":"لا يوجد"},null,null,null,null,null,null,null,null,null,null,null,null,null,null,null,null,null,null,null,null,null,{"$error":"#VALUE!"},{"$error":"#VALUE!"},null,{"$error":"#VALUE!"},null,null,null,{"$error":"#VALUE!"}]
[{"$f":"SUBTOTAL(3,$B$5:B134)","v":2},null,null,null,null,null,null,null,null,null,null,null,null,null,null,{"$f":"IF(Alldata[[#This Row],[انتهاء الفحص]]=\"\",\"لا يوجد\",IF((Alldata[[#This Row],[انتهاء الفحص]]-$S$2)<0,\"منتهي\",IF((Alldata[[#This Row],[انتهاء الفحص]]-$S$2)<25,\"تجديد\",\"ساري\")))","v":"لا يوجد"},null,{"$f":"IF(Alldata[[#This Row],[انتهاء الاستمارة]]=\"\",\"لا يوجد\",IF((Alldata[[#This Row],[انتهاء الاستمارة]]-$S$2)<0,\"منتهي\",IF((Alldata[[#This Row],[انتهاء الاستمارة]]-$S$2)<25,\"تجديد\",\"ساري\")))","v":"لا يوجد"},null,{"$f":"IF(Alldata[[#This Row],[انتهاء التأمين]]=\"\",\"لا يوجد\",IF((Alldata[[#This Row],[انتهاء التأمين]]-$S$2)<0,\"منتهي\",IF((Alldata[[#This Row],[انتهاء التأمين]]-$S$2)<25,\"تجديد\",\"ساري\")))","v":"لا يوجد"},null,{"$f":"IF(Alldata[[#This Row],[انتهاء كارت التشغيل]]=\"\",\"لا يوجد\",IF((Alldata[[#This Row],[انتهاء كارت التشغيل]]-$S$2)<0,\"منتهي\",IF((Alldata[[#This Row],[انتهاء كارت التشغيل]]-$S$2)<25,\"تجديد\",\"ساري\")))","v":"لا يوجد"},null,null,null,null,null,null,null,null,null,null,null,null,null,null,null,null,null,null,null,null,null,{"$error":"#VALUE!"},{"$error":"#VALUE!"},null,{"$error":"#VALUE!"},null,null,null,{"$error":"#VALUE!"}]
[{"$f":"SUBTOTAL(3,$B$5:B135)","v":2},null,null,null,null,null,null,null,null,null,null,null,null,null,null,{"$f":"IF(Alldata[[#This Row],[انتهاء الفحص]]=\"\",\"لا يوجد\",IF((Alldata[[#This Row],[انتهاء الفحص]]-$S$2)<0,\"منتهي\",IF((Alldata[[#This Row],[انتهاء الفحص]]-$S$2)<25,\"تجديد\",\"ساري\")))","v":"لا يوجد"},null,{"$f":"IF(Alldata[[#This Row],[انتهاء الاستمارة]]=\"\",\"لا يوجد\",IF((Alldata[[#This Row],[انتهاء الاستمارة]]-$S$2)<0,\"منتهي\",IF((Alldata[[#This Row],[انتهاء الاستمارة]]-$S$2)<25,\"تجديد\",\"ساري\")))","v":"لا يوجد"},null,{"$f":"IF(Alldata[[#This Row],[انتهاء التأمين]]=\"\",\"لا يوجد\",IF((Alldata[[#This Row],[انتهاء التأمين]]-$S$2)<0,\"منتهي\",IF((Alldata[[#This Row],[انتهاء التأمين]]-$S$2)<25,\"تجديد\",\"ساري\")))","v":"لا يوجد"},null,{"$f":"IF(Alldata[[#This Row],[انتهاء كارت التشغيل]]=\"\",\"لا يوجد\",IF((Alldata[[#This Row],[انتهاء كارت التشغيل]]-$S$2)<0,\"منتهي\",IF((Alldata[[#This Row],[انتهاء كارت التشغيل]]-$S$2)<25,\"تجديد\",\"ساري\")))","v":"لا يوجد"},null,null,null,null,null,null,null,null,null,null,null,null,null,null,null,null,null,null,null,null,null,{"$error":"#VALUE!"},{"$error":"#VALUE!"},null,{"$error":"#VALUE!"},null,null,null,{"$error":"#VALUE!"}]
[{"$f":"SUBTOTAL(3,$B$5:B136)","v":2},null,null,null,null,null,null,null,null,null,null,null,null,null,null,{"$f":"IF(Alldata[[#This Row],[انتهاء الفحص]]=\"\",\"لا يوجد\",IF((Alldata[[#This Row],[انتهاء الفحص]]-$S$2)<0,\"منتهي\",IF((Alldata[[#This Row],[انتهاء الفحص]]-$S$2)<25,\"تجديد\",\"ساري\")))","v":"لا يوجد"},null,{"$f":"IF(Alldata[[#This Row],[انتهاء الاستمارة]]=\"\",\"لا يوجد\",IF((Alldata[[#This Row],[انتهاء الاستمارة]]-$S$2)<0,\"منتهي\",IF((Alldata[[#This Row],[انتهاء الاستمارة]]-$S$2)<25,\"تجديد\",\"ساري\")))","v":"لا يوجد"},null,{"$f":"IF(Alldata[[#This Row],[انتهاء التأمين]]=\"\",\"لا يوجد\",IF((Alldata[[#This Row],[انتهاء التأمين]]-$S$2)<0,\"منتهي\",IF((Alldata[[#This Row],[انتهاء التأمين]]-$S$2)<25,\"تجديد\",\"ساري\")))","v":"لا يوجد"},null,{"$f":"IF(Alldata[[#This Row],[انتهاء كارت التشغيل]]=\"\",\"لا يوجد\",IF((Alldata[[#This Row],[انتهاء كارت التشغيل]]-$S$2)<0,\"منتهي\",IF((Alldata[[#This Row],[انتهاء كارت التشغيل]]-$S$2)<25,\"تجديد\",\"ساري\")))","v":"لا يوجد"},null,null,null,null,null,null,null,null,null,null,null,null,null,null,null,null,null,null,null,null,null,{"$error":"#VALUE!"},{"$error":"#VALUE!"},null,{"$error":"#VALUE!"},null,null,null,{"$error":"#VALUE!"}]
[{"$f":"SUBTOTAL(3,$B$5:B137)","v":2},null,null,null,null,null,null,null,null,null,null,null,null,null,null,{"$f":"IF(Alldata[[#This Row],[انتهاء الفحص]]=\"\",\"لا يوجد\",IF((Alldata[[#This Row],[انتهاء الفحص]]-$S$2)<0,\"منتهي\",IF((Alldata[[#This Row],[انتهاء الفحص]]-$S$2)<25,\"تجديد\",\"ساري\")))","v":"لا يوجد"},null,{"$f":"IF(Alldata[[#This Row],[انتهاء الاستمارة]]=\"\",\"لا يوجد\",IF((Alldata[[#This Row],[انتهاء الاستمارة]]-$S$2)<0,\"منتهي\",IF((Alldata[[#This Row],[انتهاء الاستمارة]]-$S$2)<25,\"تجديد\",\"ساري\")))","v":"لا يوجد"},null,{"$f":"IF(Alldata[[#This Row],[انتهاء التأمين]]=\"\",\"لا يوجد\",IF((Alldata[[#This Row],[انتهاء التأمين]]-$S$2)<0,\"منتهي\",IF((Alldata[[#This Row],[انتهاء التأمين]]-$S$2)<25,\"تجديد\",\"ساري\")))","v":"لا يوجد"},null,{"$f":"IF(Alldata[[#This Row],[انتهاء كارت التشغيل]]=\"\",\"لا يوجد\",IF((Alldata[[#This Row],[انتهاء كارت التشغيل]]-$S$2)<0,\"منتهي\",IF((Alldata[[#This Row],[انتهاء كارت التشغيل]]-$S$2)<25,\"تجديد\",\"ساري\")))","v":"لا يوجد"},null,null,null,null,null,null,null,null,null,null,null,null,null,null,null,null,null,null,null,null,null,{"$error":"#VALUE!"},{"$error":"#VALUE!"},null,{"$error":"#VALUE!"},null,null,null,{"$error":"#VALUE!"}]
[{"$f":"SUBTOTAL(3,$B$5:B138)","v":2},null,null,null,null,null,null,null,null,null,null,null,null,null,null,{"$f":"IF(Alldata[[#This Row],[انتهاء الفحص]]=\"\",\"لا يوجد\",IF((Alldata[[#This Row],[انتهاء الفحص]]-$S$2)<0,\"منتهي\",IF((Alldata[[#This Row],[انتهاء الفحص]]-$S$2)<25,\"تجديد\",\"ساري\")))","v":"لا يوجد"},null,{"$f":"IF(Alldata[[#This Row],[انتهاء الاستمارة]]=\"\",\"لا يوجد\",IF((Alldata[[#This Row],[انتهاء الاستمارة]]-$S$2)<0,\"منتهي\",IF((Alldata[[#This Row],[انتهاء الاستمارة]]-$S$2)<25,\"تجديد\",\"ساري\")))","v":"لا يوجد"},null,{"$f":"IF(Alldata[[#This Row],[انتهاء التأمين]]=\"\",\"لا يوجد\",IF((Alldata[[#This Row],[انتهاء التأمين]]-$S$2)<0,\"منتهي\",IF((Alldata[[#This Row],[انتهاء التأمين]]-$S$2)<25,\"تجديد\",\"ساري\")))","v":"لا يوجد"},null,{"$f":"IF(Alldata[[#This Row],[انتهاء كارت التشغيل]]=\"\",\"لا يوجد\",IF((Alldata[[#This Row],[انتهاء كارت التشغيل]]-$S$2)<0,\"منتهي\",IF((Alldata[[#This Row],[انتهاء كارت التشغيل]]-$S$2)<25,\"تجديد\",\"ساري\")))","v":"لا يوجد"},null,null,null,null,null,null,null,null,null,null,null,null,null,null,null,null,null,null,null,null,null,{"$error":"#VALUE!"},{"$error":"#VALUE!"},null,{"$error":"#VALUE!"},null,null,null,{"$error":"#VALUE!"}]
[{"$f":"SUBTOTAL(3,$B$5:B139)","v":2},null,null,null,null,null,null,null,null,null,null,null,null,null,null,{"$f":"IF(Alldata[[#This Row],[انتهاء الفحص]]=\"\",\"لا يوجد\",IF((Alldata[[#This Row],[انتهاء الفحص]]-$S$2)<0,\"منتهي\",IF((Alldata[[#This Row],[انتهاء الفحص]]-$S$2)<25,\"تجديد\",\"ساري\")))","v":"لا يوجد"},null,{"$f":"IF(Alldata[[#This Row],[انتهاء الاستمارة]]=\"\",\"لا يوجد\",IF((Alldata[[#This Row],[انتهاء الاستمارة]]-$S$2)<0,\"منتهي\",IF((Alldata[[#This Row],[انتهاء الاستمارة]]-$S$2)<25,\"تجديد\",\"ساري\")))","v":"لا يوجد"},null,{"$f":"IF(Alldata[[#This Row],[انتهاء التأمين]]=\"\",\"لا يوجد\",IF((Alldata[[#This Row],[انتهاء التأمين]]-$S$2)<0,\"منتهي\",IF((Alldata[[#This Row],[انتهاء التأمين]]-$S$2)<25,\"تجديد\",\"ساري\")))","v":"لا يوجد"},null,{"$f":"IF(Alldata[[#This Row],[انتهاء كارت التشغيل]]=\"\",\"لا يوجد\",IF((Alldata[[#This Row],[انتهاء كارت التشغيل]]-$S$2)<0,\"منتهي\",IF((Alldata[[#This Row],[انتهاء كارت التشغيل]]-$S$2)<25,\"تجديد\",\"ساري\")))","v":"لا يوجد"},null,null,null,null,null,null,null,null,null,null,null,null,null,null,null,null,null,null,null,null,null,{"$error":"#VALUE!"},{"$error":"#VALUE!"},null,{"$error":"#VALUE!"},null,null,null,{"$error":"#VALUE!"}]
[{"$f":"SUBTOTAL(3,$B$5:B140)","v":2},null,null,null,null,null,null,null,null,null,null,null,null,null,null,{"$f":"IF(Alldata[[#This Row],[انتهاء الفحص]]=\"\",\"لا يوجد\",IF((Alldata[[#This Row],[انتهاء الفحص]]-$S$2)<0,\"منتهي\",IF((Alldata[[#This Row],[انتهاء الفحص]]-$S$2)<25,\"تجديد\",\"ساري\")))","v":"لا يوجد"},null,{"$f":"IF(Alldata[[#This Row],[انتهاء الاستمارة]]=\"\",\"لا يوجد\",IF((Alldata[[#This Row],[انتهاء الاستمارة]]-$S$2)<0,\"منتهي\",IF((Alldata[[#This Row],[انتهاء الاستمارة]]-$S$2)<25,\"تجديد\",\"ساري\")))","v":"لا يوجد"},null,{"$f":"IF(Alldata[[#This Row],[انتهاء التأمين]]=\"\",\"لا يوجد\",IF((Alldata[[#This Row],[انتهاء التأمين]]-$S$2)<0,\"منتهي\",IF((Alldata[[#This Row],[انتهاء التأمين]]-$S$2)<25,\"تجديد\",\"ساري\")))","v":"لا يوجد"},null,{"$f":"IF(Alldata[[#This Row],[انتهاء كارت التشغيل]]=\"\",\"لا يوجد\",IF((Alldata[[#This Row],[انتهاء كارت التشغيل]]-$S$2)<0,\"منتهي\",IF((Alldata[[#This Row],[انتهاء كارت التشغيل]]-$S$2)<25,\"تجديد\",\"ساري\")))","v":"لا يوجد"},null,null,null,null,null,null,null,null,null,null,null,null,null,null,null,null,null,null,null,null,null,{"$error":"#VALUE!"},{"$error":"#VALUE!"},null,{"$error":"#VALUE!"},null,null,null,{"$error":"#VALUE!"}]
[{"$f":"SUBTOTAL(3,$B$5:B141)","v":2},null,null,null,null,null,null,null,null,null,null,null,null,null,null,{"$f":"IF(Alldata[[#This Row],[انتهاء الفحص]]=\"\",\"لا يوجد\",IF((Alldata[[#This Row],[انتهاء الفحص]]-$S$2)<0,\"منتهي\",IF((Alldata[[#This Row],[انتهاء الفحص]]-$S$2)<25,\"تجديد\",\"ساري\")))","v":"لا يوجد"},null,{"$f":"IF(Alldata[[#This Row],[انتهاء الاستمارة]]=\"\",\"لا يوجد\",IF((Alldata[[#This Row],[انتهاء الاستمارة]]-$S$2)<0,\"منتهي\",IF((Alldata[[#This Row],[انتهاء الاستمارة]]-$S$2)<25,\"تجديد\",\"ساري\")))","v":"لا يوجد"},null,{"$f":"IF(Alldata[[#This Row],[انتهاء التأمين]]=\"\",\"لا يوجد\",IF((Alldata[[#This Row],[انتهاء التأمين]]-$S$2)<0,\"منتهي\",IF((Alldata[[#This Row],[انتهاء التأمين]]-$S$2)<25,\"تجديد\",\"ساري\")))","v":"لا يوجد"},null,{"$f":"IF(Alldata[[#This Row],[انتهاء كارت التشغيل]]=\"\",\"لا يوجد\",IF((Alldata[[#This Row],[انتهاء كارت التشغيل]]-$S$2)<0,\"منتهي\",IF((Alldata[[#This Row],[انتهاء كارت التشغيل]]-$S$2)<25,\"تجديد\",\"ساري\")))","v":"لا يوجد"},null,null,null,null,null,null,null,null,null,null,null,null,null,null,null,null,null,null,null,null,null,{"$error":"#VALUE!"},{"$error":"#VALUE!"},null,{"$error":"#VALUE!"},null,null,null,{"$error":"#VALUE!"}]
[{"$f":"SUBTOTAL(3,$B$5:B142)","v":2},null,null,null,null,null,null,null,null,null,null,null,null,null,null,{"$f":"IF(Alldata[[#This Row],[انتهاء الفحص]]=\"\",\"لا يوجد\",IF((Alldata[[#This Row],[انتهاء الفحص]]-$S$2)<0,\"منتهي\",IF((Alldata[[#This Row],[انتهاء الفحص]]-$S$2)<25,\"تجديد\",\"ساري\")))","v":"لا يوجد"},null,{"$f":"IF(Alldata[[#This Row],[انتهاء الاستمارة]]=\"\",\"لا يوجد\",IF((Alldata[[#This Row],[انتهاء الاستمارة]]-$S$2)<0,\"منتهي\",IF((Alldata[[#This Row],[انتهاء الاستمارة]]-$S$2)<25,\"تجديد\",\"ساري\")))","v":"لا يوجد"},null,{"$f":"IF(Alldata[[#This Row],[انتهاء التأمين]]=\"\",\"لا يوجد\",IF((Alldata[[#This Row],[انتهاء التأمين]]-$S$2)<0,\"منتهي\",IF((Alldata[[#This Row],[انتهاء التأمين]]-$S$2)<25,\"تجديد\",\"ساري\")))","v":"لا يوجد"},null,{"$f":"IF(Alldata[[#This Row],[انتهاء كارت التشغيل]]=\"\",\"لا يوجد\",IF((Alldata[[#This Row],[انتهاء كارت التشغيل]]-$S$2)<0,\"منتهي\",IF((Alldata[[#This Row],[انتهاء كارت التشغيل]]-$S$2)<25,\"تجديد\",\"ساري\")))","v":"لا يوجد"},null,null,null,null,null,null,null,null,null,null,null,null,null,null,null,null,null,null,null,null,null,{"$error":"#VALUE!"},{"$error":"#VALUE!"},null,{"$error":"#VALUE!"},null,null,null,{"$error":"#VALUE!"}]
[{"$f":"SUBTOTAL(3,$B$5:B143)","v":2},null,null,null,null,null,null,null,null,null,null,null,null,null,null,{"$f":"IF(Alldata[[#This Row],[انتهاء الفحص]]=\"\",\"لا يوجد\",IF((Alldata[[#This Row],[انتهاء الفحص]]-$S$2)<0,\"منتهي\",IF((Alldata[[#This Row],[انتهاء الفحص]]-$S$2)<25,\"تجديد\",\"ساري\")))","v":"لا يوجد"},null,{"$f":"IF(Alldata[[#This Row],[انتهاء الاستمارة]]=\"\",\"لا يوجد\",IF((Alldata[[#This Row],[انتهاء الاستمارة]]-$S$2)<0,\"منتهي\",IF((Alldata[[#This Row],[انتهاء الاستمارة]]-$S$2)<25,\"تجديد\",\"ساري\")))","v":"لا يوجد"},null,{"$f":"IF(Alldata[[#This Row],[انتهاء التأمين]]=\"\",\"لا يوجد\",IF((Alldata[[#This Row],[انتهاء التأمين]]-$S$2)<0,\"منتهي\",IF((Alldata[[#This Row],[انتهاء التأمين]]-$S$2)<25,\"تجديد\",\"ساري\")))","v":"لا يوجد"},null,{"$f":"IF(Alldata[[#This Row],[انتهاء كارت التشغيل]]=\"\",\"لا يوجد\",IF((Alldata[[#This Row],[انتهاء كارت التشغيل]]-$S$2)<0,\"منتهي\",IF((Alldata[[#This Row],[انتهاء كارت التشغيل]]-$S$2)<25,\"تجديد\",\"ساري\")))","v":"لا يوجد"},null,null,null,null,null,null,null,null,null,null,null,null,null,null,null,null,null,null,null,null,null,{"$error":"#VALUE!"},{"$error":"#VALUE!"},null,{"$error":"#VALUE!"},null,null,null,{"$error":"#VALUE!"}]
[{"$f":"SUBTOTAL(3,$B$5:B144)","v":2},null,null,null,null,null,null,null,null,null,null,null,null,null,null,{"$f":"IF(Alldata[[#This Row],[انتهاء الفحص]]=\"\",\"لا يوجد\",IF((Alldata[[#This Row],[انتهاء الفحص]]-$S$2)<0,\"منتهي\",IF((Alldata[[#This Row],[انتهاء الفحص]]-$S$2)<25,\"تجديد\",\"ساري\")))","v":"لا يوجد"},null,{"$f":"IF(Alldata[[#This Row],[انتهاء الاستمارة]]=\"\",\"لا يوجد\",IF((Alldata[[#This Row],[انتهاء الاستمارة]]-$S$2)<0,\"منتهي\",IF((Alldata[[#This Row],[انتهاء الاستمارة]]-$S$2)<25,\"تجديد\",\"ساري\")))","v":"لا يوجد"},null,{"$f":"IF(Alldata[[#This Row],[انتهاء التأمين]]=\"\",\"لا يوجد\",IF((Alldata[[#This Row],[انتهاء التأمين]]-$S$2)<0,\"منتهي\",IF((Alldata[[#This Row],[انتهاء التأمين]]-$S$2)<25,\"تجديد\",\"ساري\")))","v":"لا يوجد"},null,{"$f":"IF(Alldata[[#This Row],[انتهاء كارت التشغيل]]=\"\",\"لا يوجد\",IF((Alldata[[#This Row],[انتهاء كارت التشغيل]]-$S$2)<0,\"منتهي\",IF((Alldata[[#This Row],[انتهاء كارت التشغيل]]-$S$2)<25,\"تجديد\",\"ساري\")))","v":"لا يوجد"},null,null,null,null,null,null,null,null,null,null,null,null,null,null,null,null,null,null,null,null,null,{"$error":"#VALUE!"},{"$error":"#VALUE!"},null,{"$error":"#VALUE!"},null,null,null,{"$error":"#VALUE!"}]
[{"$f":"SUBTOTAL(3,$B$5:B145)","v":2},null,null,null,null,null,null,null,null,null,null,null,null,null,null,{"$f":"IF(Alldata[[#This Row],[انتهاء الفحص]]=\"\",\"لا يوجد\",IF((Alldata[[#This Row],[انتهاء الفحص]]-$S$2)<0,\"منتهي\",IF((Alldata[[#This Row],[انتهاء الفحص]]-$S$2)<25,\"تجديد\",\"ساري\")))","v":"لا يوجد"},null,{"$f":"IF(Alldata[[#This Row],[انتهاء الاستمارة]]=\"\",\"لا يوجد\",IF((Alldata[[#This Row],[انتهاء الاستمارة]]-$S$2)<0,\"منتهي\",IF((Alldata[[#This Row],[انتهاء الاستمارة]]-$S$2)<25,\"تجديد\",\"ساري\")))","v":"لا يوجد"},null,{"$f":"IF(Alldata[[#This Row],[انتهاء التأمين]]=\"\",\"لا يوجد\",IF((Alldata[[#This Row],[انتهاء التأمين]]-$S$2)<0,\"منتهي\",IF((Alldata[[#This Row],[انتهاء التأمين]]-$S$2)<25,\"تجديد\",\"ساري\")))","v":"لا يوجد"},null,{"$f":"IF(Alldata[[#This Row],[انتهاء كارت التشغيل]]=\"\",\"لا يوجد\",IF((Alldata[[#This Row],[انتهاء كارت التشغيل]]-$S$2)<0,\"منتهي\",IF((Alldata[[#This Row],[انتهاء كارت التشغيل]]-$S$2)<25,\"تجديد\",\"ساري\")))","v":"لا يوجد"},null,null,null,null,null,null,null,null,null,null,null,null,null,null,null,null,null,null,null,null,null,{"$error":"#VALUE!"},{"$error":"#VALUE!"},null,{"$error":"#VALUE!"},null,null,null,{"$error":"#VALUE!"}]
[{"$f":"SUBTOTAL(3,$B$5:B146)","v":2},null,null,null,null,null,null,null,null,null,null,null,null,null,null,{"$f":"IF(Alldata[[#This Row],[انتهاء الفحص]]=\"\",\"لا يوجد\",IF((Alldata[[#This Row],[انتهاء الفحص]]-$S$2)<0,\"منتهي\",IF((Alldata[[#This Row],[انتهاء الفحص]]-$S$2)<25,\"تجديد\",\"ساري\")))","v":"لا يوجد"},null,{"$f":"IF(Alldata[[#This Row],[انتهاء الاستمارة]]=\"\",\"لا يوجد\",IF((Alldata[[#This Row],[انتهاء الاستمارة]]-$S$2)<0,\"منتهي\",IF((Alldata[[#This Row],[انتهاء الاستمارة]]-$S$2)<25,\"تجديد\",\"ساري\")))","v":"لا يوجد"},null,{"$f":"IF(Alldata[[#This Row],[انتهاء التأمين]]=\"\",\"لا يوجد\",IF((Alldata[[#This Row],[انتهاء التأمين]]-$S$2)<0,\"منتهي\",IF((Alldata[[#This Row],[انتهاء التأمين]]-$S$2)<25,\"تجديد\",\"ساري\")))","v":"لا يوجد"},null,{"$f":"IF(Alldata[[#This Row],[انتهاء كارت التشغيل]]=\"\",\"لا يوجد\",IF((Alldata[[#This Row],[انتهاء كارت التشغيل]]-$S$2)<0,\"منتهي\",IF((Alldata[[#This Row],[انتهاء كارت التشغيل]]-$S$2)<25,\"تجديد\",\"ساري\")))","v":"لا يوجد"},null,null,null,null,null,null,null,null,null,null,null,null,null,null,null,null,null,null,null,null,null,{"$error":"#VALUE!"},{"$error":"#VALUE!"},null,{"$error":"#VALUE!"},null,null,null,{"$error":"#VALUE!"}]
[{"$f":"SUBTOTAL(3,$B$5:B147)","v":2},null,null,null,null,null,null,null,null,null,null,null,null,null,null,{"$f":"IF(Alldata[[#This Row],[انتهاء الفحص]]=\"\",\"لا يوجد\",IF((Alldata[[#This Row],[انتهاء الفحص]]-$S$2)<0,\"منتهي\",IF((Alldata[[#This Row],[انتهاء الفحص]]-$S$2)<25,\"تجديد\",\"ساري\")))","v":"لا يوجد"},null,{"$f":"IF(Alldata[[#This Row],[انتهاء الاستمارة]]=\"\",\"لا يوجد\",IF((Alldata[[#This Row],[انتهاء الاستمارة]]-$S$2)<0,\"منتهي\",IF((Alldata[[#This Row],[انتهاء الاستمارة]]-$S$2)<25,\"تجديد\",\"ساري\")))","v":"لا يوجد"},null,{"$f":"IF(Alldata[[#This Row],[انتهاء التأمين]]=\"\",\"لا يوجد\",IF((Alldata[[#This Row],[انتهاء التأمين]]-$S$2)<0,\"منتهي\",IF((Alldata[[#This Row],[انتهاء التأمين]]-$S$2)<25,\"تجديد\",\"ساري\")))","v":"لا يوجد"},null,{"$f":"IF(Alldata[[#This Row],[انتهاء كارت التشغيل]]=\"\",\"لا يوجد\",IF((Alldata[[#This Row],[انتهاء كارت التشغيل]]-$S$2)<0,\"منتهي\",IF((Alldata[[#This Row],[انتهاء كارت التشغيل]]-$S$2)<25,\"تجديد\",\"ساري\")))","v":"لا يوجد"},null,null,null,null,null,null,null,null,null,null,null,null,null,null,null,null,null,null,null,null,null,{"$error":"#VALUE!"},{"$error":"#VALUE!"},null,{"$error":"#VALUE!"},null,null,null,{"$error":"#VALUE!"}]
[{"$f":"SUBTOTAL(3,$B$5:B148)","v":2},null,null,null,null,null,null,null,null,null,null,null,null,null,null,{"$f":"IF(Alldata[[#This Row],[انتهاء الفحص]]=\"\",\"لا يوجد\",IF((Alldata[[#This Row],[انتهاء الفحص]]-$S$2)<0,\"منتهي\",IF((Alldata[[#This Row],[انتهاء الفحص]]-$S$2)<25,\"تجديد\",\"ساري\")))","v":"لا يوجد"},null,{"$f":"IF(Alldata[[#This Row],[انتهاء الاستمارة]]=\"\",\"لا يوجد\",IF((Alldata[[#This Row],[انتهاء الاستمارة]]-$S$2)<0,\"منتهي\",IF((Alldata[[#This Row],[انتهاء الاستمارة]]-$S$2)<25,\"تجديد\",\"ساري\")))","v":"لا يوجد"},null,{"$f":"IF(Alldata[[#This Row],[انتهاء التأمين]]=\"\",\"لا يوجد\",IF((Alldata[[#This Row],[انتهاء التأمين]]-$S$2)<0,\"منتهي\",IF((Alldata[[#This Row],[انتهاء التأمين]]-$S$2)<25,\"تجديد\",\"ساري\")))","v":"لا يوجد"},null,{"$f":"IF(Alldata[[#This Row],[انتهاء كارت التشغيل]]=\"\",\"لا يوجد\",IF((Alldata[[#This Row],[انتهاء كارت التشغيل]]-$S$2)<0,\"منتهي\",IF((Alldata[[#This Row],[انتهاء كارت التشغيل]]-$S$2)<25,\"تجديد\",\"ساري\")))","v":"لا يوجد"},null,null,null,null,null,null,null,null,null,null,null,null,null,null,null,null,null,null,null,null,null,{"$error":"#VALUE!"},{"$error":"#VALUE!"},null,{"$error":"#VALUE!"},null,null,null,{"$error":"#VALUE!"}]
[{"$f":"SUBTOTAL(3,$B$5:B149)","v":2},{"$f":"SUBTOTAL(103,Alldata[كود المعدة])","v":2},{"$f":"SUBTOTAL(103,Alldata[اسم الموظف])","v":2},{"$f":"SUBTOTAL(103,Alldata[الرقم التسلسلي])","v":2},{"$f":"SUBTOTAL(103,Alldata[رقم الإقامة])","v":2},{"$f":"SUBTOTAL(103,Alldata[رقم الجوال])","v":2},{"$f":"SUBTOTAL(103,Alldata[الموقع])","v":2},{"$f":"SUBTOTAL(103,Alldata[وصف الاصل])","v":2},{"$f":"SUBTOTAL(103,Alldata[الموديل])","v":2},{"$f":"SUBTOTAL(103,Alldata[اللون])","v":2},{"$f":"SUBTOTAL(103,Alldata[رقم اللوحة])","v":2},{"$f":"SUBTOTAL(103,Alldata[رقم الهيكل])","v":2},{"$f":"SUBTOTAL(103,Alldata[المالك])","v":2},{"$f":"SUBTOTAL(103,Alldata[الترخيص])","v":2},{"$f":"SUBTOTAL(103,Alldata[انتهاء الفحص])","v":2},{"$f":"SUBTOTAL(103,Alldata[حالة الفحص])","v":147},{"$f":"SUBTOTAL(103,Alldata[انتهاء الاستمارة])","v":2},{"$f":"SUBTOTAL(103,Alldata[حالة الاستمارة])","v":147},{"$f":"SUBTOTAL(103,Alldata[انتهاء التأمين])","v":2},{"$f":"SUBTOTAL(103,Alldata[حالة التأمين])","v":147},{"$f":"SUBTOTAL(103,Alldata[انتهاء كارت التشغيل])","v":0},{"$f":"SUBTOTAL(103,Alldata[حالة كارت التشغيل])","v":147},{"$f":"SUBTOTAL(103,Alldata[رخصة القيادة])","v":2},{"$f":"SUBTOTAL(103,Alldata[انتهاء التفويض])","v":2},{"$f":"SUBTOTAL(103,Alldata[المهنة])","v":2},{"$f":"SUBTOTAL(103,Alldata[حالة الموظف])","v":2},{"$f":"SUBTOTAL(103,Alldata[جهاز التتبع])","v":2},{"$f":"SUBTOTAL(103,Alldata[ملاحظات])","v":2},null,null,null,null,null,null,null,null,null,null,null,null,null,null,null,-1,"01/01/1900",null,"01/01/1900",null,null,null,"01/01/1900"]
[{"$f":"SUBTOTAL(3,$B$5:B150)","v":2}]
[{"$f":"SUBTOTAL(3,$B$5:B151)","v":2}]

{"sheet":"Employees","index":2,"n_rows":914,"n_cols":16,"rows_kept":914,"cut":false,"hidden":false,"merged":[[1,15,2,19]]}
["م","كود الموظف ","رقم اقامة الموظف","اسم الموظف","الجنسية ","حالة الموظف ","موقع العمل ","نسخة الإقامة","رقم الجوال","الشركة ","المهنة بالاقامة ","المهنة الفعلية ","رخصة القيادة","تاريخ انتهاء الاقامة/الهويه  "]
[1,1,2111111111,"ذاكر حسين","الهند","على الكفالة","كسارة بيشة ",7,"050000000","نقليات","مشغل كسارة احجار","مشغل كسارة","لا يوجد","2022-10-11",null,"المطلوب  احضار البيانات اللي بالون الأصفر في شيت  HANDOVERFORM عند كتابة الكود C51"]
[2,2,2525252525,"شفيع احمد","الهند","على الكفالة","الإدارة المالية",13,"053000000","نقليات","مندوب مشتريات","مندوب مشتريات","خاصة","2022-10-20"]
[3]
[{"$f":"IF(D5=\"\",\"\",SUBTOTAL(3,$D5:D$8))","v":""}]
[]
[]
[]
[]
[]
[]
[]
[]
[]
[]
[]
[]
[]
[]
[]
[]
[]
[]
[]
[]
[]
[]
[]
[]
[]
[]
[]
[]
[]
[]
[]
[]
[]
[]
[]
[]
[]
[]
[]
[]
[]
[]
[]
[]
[]
[]
[]
[]
[]
[]
[]
[]
[]
[]
[]
[]
[]
[]
[]
[]
[]
[]
[]
[]
[]
[]
[]
[]
[]
[]
[]
[]
[]
[]
[]
[]
[]
[]
[]
[]
[]
[]
[]
[]
[]
[]
[]
[]
[]
[]
[]
[]
[]
[]
[]
[]
[]
[]
[]
[]
[]
[]
[]
[]
[]
[]
[]
[]
[]
[]
[]
[]
[]
[]
[]
[]
[]
[]
[]
[]
[]
[]
[]
[]
[]
[]
[]
[]
[]
[]
[]
[]
[]
[]
[]
[]
[]
[]
[]
[]
[]
[]
[]
[]
[]
[]
[]
[]
[]
[]
[]
[]
[]
[]
[]
[]
[]
[]
[]
[]
[]
[]
[]
[]
[]
[]
[]
[]
[]
[]
[]
[]
[]
[]
[]
[]
[]
[]
[]
[]
[]
[]
[]
[]
[]
[]
[]
[]
[]
[]
[]
[]
[]
[]
[]
[]
[]
[]
[]
[]
[]
[]
[]
[]
[]
[]
[]
[]
[]
[]
[]
[]
[]
[]
[]
[]
[]
[]
[]
[]
[]
[]
[]
[]
[]
[]
[]
[]
[]
[]
[]
[]
[]
[]
[]
[]
[]
[]
[]
[]
[]
[]
[]
[]
[]
[]
[]
[]
[]
[]
[]
[]
[]
[]
[]
[]
[]
[]
[]
[]
[]
[]
[]
[]
[]
[]
[]
[]
[]
[]
[]
[]
[]
[]
[]
[]
[]
[]
[]
[]
[]
[]
[]
[]
[]
[]
[]
[]
[]
[]
[]
[]
[]
[]
[]
[]
[]
[]
[]
[]
[]
[]
[]
[]
[]
[]
[]
[]
[]
[]
[]
[]
[]
[]
[]
[]
[]
[]
[]
[]
[]
[]
[]
[]
[]
[]
[]
[]
[]
[]
[]
[]
[]
[]
[]
[]
[]
[]
[]
[]
[]
[]
[]
[]
[]
[]
[]
[]
[]
[]
[]
[]
[]
[]
[]
[]
[]
[]
[]
[]
[]
[]
[]
[]
[]
[]
[]
[]
[]
[]
[]
[]
[]
[]
[]
[]
[]
[]
[]
[]
[]
[]
[]
[]
[]
[]
[]
[]
[]
[]
[]
[]
[]
[]
[]
[]
[]
[]
[]
[]
[]
[]
[]
[]
[]
[]
[]
[]
[]
[]
[]
[]
[]
[]
[]
[]
[]
[]
[]
[]
[]
[]
[]
[]
[]
[]
[]
[]
[]
[]
[]
[]
[]
[]
[]
[]
[]
[]
[]
[]
[]
[]
[]
[]
[]
[]
[]
[]
[]
[]
[]
[]
[]
[]
[]
[]
[]
[]
[]
[]
[]
[]
[]
[]
[]
[]
[]
[]
[]
[]
[]
[]
[]
[]
[]
[]
[]
[]
[]
[]
[]
[]
[]
[]
[]
[]
[]
[]
[]
[]
[]
[]
[]
[]
[]
[]
[]
[]
[]
[]
[]
[]
[]
[]
[]
[]
[]
[]
[]
[]
[]
[]
[]
[]
[]
[]
[]
[]
[]
[]
[]
[]
[]
[]
[]
[]
[]
[]
[]
[]
[]
[]
[]
[]
[]
[]
[]
[]
[]
[]
[]
[]
[]
[]
[]
[]
[]
[]
[]
[]
[]
[]
[]
[]
[]
[]
[]
[]
[]
[]
[]
[]
[]
[]
[]
[]
[]
[]
[]
[]
[]
[]
[]
[]
[]
[]
[]
[]
[]
[]
[]
[]
[]
[]
[]
[]
[]
[]
[]
[]
[]
[]
[]
[]
[]
[]
[]
[]
[]
[]
[]
[]
[]
[]
[]
[]
[]
[]
[]
[]
[]
[]
[]
[]
[]
[]
[]
[]
[]
[]
[]
[]
[]
[]
[]
[]
[]
[]
[]
[]
[]
[]
[]
[]
[]
[]
[]
[]
[]
[]
[]
[]
[]
[]
[]
[]
[]
[]
[]
[]
[]
[]
[]
[]
[]
[]
[]
[]
[]
[]
[]
[]
[]
[]
[]
[]
[]
[]
[]
[]
[]
[]
[]
[]
[]
[]
[]
[]
[]
[]
[]
[]
[]
[]
[]
[]
[]
[]
[]
[]
[]
[]
[]
[]
[]
[]
[]
[]
[]
[]
[]
[]
[]
[]
[]
[]
[]
[]
[]
[]
[]
[]
[]
[]
[]
[]
[]
[]
[]
[]
[]
[]
[]
[]
[]
[]
[]
[]
[]
[]
[]
[]
[]
[]
[]
[]
[]
[]
[]
[]
[]
[]
[]
[]
[]
[]
[]
[]
[]
[]
[]
[]
[]
[]
[]
[]
[]
[]
[]
[]
[]
[]
[]
[]
[]
[]
[]
[]
[]
[]
[]
[]
[]
[]
[]
[]
[]
[]
[]
[]
[]
[]
[]
[]
[]
[]
[]
[]
[]
[]
[]
[]
[]
[]
[]
[]
[]
[]
[]
[]
[]
[]
[]
[]
[]
[]
[]
[]
[]
[]
[]
[]
[]
[]
[]
[]
[]
[]
[]
[]
[]
[]
[]
[]
[]
[]
[]
[]
[]
[]
[]
[]
[]
[]
[]
[]
[]
[]
[]
[]
[]
[]
[]
[]
[]
[]
[]
[]
[]
[]
[]
[]
[]
[]
[]
[]
[]
[]
[]
[]
[]
[]
[]
[]
[]
[]
[]
[]
[]
[]
[]
[]
[]
[]
[]
[]
[]
[]
[]
[]
[]
[]
[]
[]
[]
[]
[]
[]
[]
[]
[]
[]
[]
[]
[]
[]
[]
[]
[]
[]
[]
[]
[]
[]
[]
[]
[]
[]
[null,"Total",null,null,null,null,null,null,null,null,null,null,null,{"$f":"SUBTOTAL(103,Employees[تاريخ انتهاء الاقامة/الهويه  ])","v":2}]

{"sheet":"handover.Form","index":3,"n_rows":55,"n_cols":20,"rows_kept":55,"cut":false,"hidden":false,"merged":[[50,2,50,3],[53,10,54,11],[53,12,54,13],[54,0,54,1],[54,2,54,4],[54,6,54,7],[55,0,55,11],[7,13,7,14],[8,13,8,14],[52,12,52,13],[44,1,45,10],[52,0,52,1],[52,2,52,4],[52,6,52,7],[53,0,53,1],[53,2,53,4],[53,6,53,7],[52,10,52,11],[7,8,7,11],[8,0,8,1],[8,2,8,3],[8,5,8,6],[8,8,8,11],[42,7,42,8],[42,9,42,10],[0,1,0,5],[1,1,1,5],[2,1,2,5],[7,0,7,1],[7,2,7,3],[7,5,7,6]]}
[]
[]
[]
[]
[null,null,null,null,null,null,null,null,null,null,null,null,"التاريخ"]
[null,"الكود","TR1",null,null,null,null,null,null,null,null,null,"الموقع",null,null,null,"مشاريع بيشة"]
[null,null,null,null,null,null,null,null,null,null,null,null,null,null,null,null,"خلاطة خرسانة بيشة",null,null,"طباعة النموذج بالكامل ولكن معاينة قبل الطباعة "]
["رقم اللوحة",null,null,null,"اللون ",null,null,"رقم الهيكل ",null,null,null,null,"المالك",null,null,null,"خلاطة خرسانة الصبيخة",null,null,"حفظ الملف بصيغة pdf ويكون اسم الملف محتوى الخلية c6"]
["وصف الاصل",null,null,null,"الموديل",null,null,"الرقم التسلسلي ",null,null,null,null,"الترخيص",null,null,null,"خلاطة اسفلت بيشة"]
[null,null,null,null,null,null,null,null,null,null,null,null,null,null,null,null,"خلاطة اسفلت الصبيخة"]
[]
[]
[]
[]
[null,null,null,null,null,null,null,null,null,null,null,null,null,null,null,null,"وقائي 8006"]
[null,null,null,null,null,null,null,null,null,null,null,null,null,null,null,null,"الإدارة"]
[null,null,null,null,null,null,null,null,null,null,null,null,null,null,null,null,"ورشة الصبيخة"]
[null,null,null,null,null,null,null,null,null,null,null,null,null,null,null,null,"ورشة بيشة"]
[]
[]
[]
[]
[]
[]
[]
[]
[]
[]
[]
[]
[]
[]
[]
[]
[]
[]
[]
[]
[]
[]
[]
[]
[null,null,null,null,null,null,null,"اعتماد الورشة",null,".............................."]
[]
[]
[]
[]
[]
[]
[]
[null,"رقم الإقامة",873]
[]
["اسم الموظف ",null,{"$f":"IF(C51=\"\",\"\",_xlfn.XLOOKUP(C51,Employees!C:C,Employees!E:E,\"لا يوجد بيانات \",0,1))","v":"لا يوجد بيانات "},null,null,"كود الموظف",{"$f":"IF(C51=\"\",\"\",_xlfn.XLOOKUP(C51,Employees!C:C,Employees!D:D,\"لا يوجد بيانات \",0,1))","v":"لا يوجد بيانات "},null,"نسخة الإقامة",{"$f":"IF(C51=\"\",\"\",_xlfn.XLOOKUP(C51,Employees!C:C,Employees!I:I,\"لا يوجد بيانات \",0,1))","v":"لا يوجد بيانات "},"رقم الجوال ",null,{"$f":"IF(C51=\"\",\"\",_xlfn.XLOOKUP(C51,Employees!C:C,Employees!J:J,\"لا يوجد بيانات \",0,1))","v":"لا يوجد بيانات "}]
["مهنة الإقامة",null,{"$f":"IF(C51=\"\",\"\",_xlfn.XLOOKUP(C51,Employees!C:C,Employees!L:L,\"لا يوجد بيانات \",0,1))","v":"لا يوجد بيانات "},null,null,"حالة الموظف",{"$f":"IF(C51=\"\",\"\",_xlfn.XLOOKUP(C51,Employees!C:C,Employees!G:G,\"لا يوجد بيانات \",0,1))","v":"لا يوجد بيانات "},null,"رخصة القيادة",{"$f":"IF(C51=\"\",\"\",_xlfn.XLOOKUP(C51,Employees!C:C,Employees!N:N,\"لا يوجد بيانات \",0,1))","v":"لا يوجد بيانات "},"اعتماد المدير "]
["المهنة الفعلية",null,{"$f":"IF(C51=\"\",\"\",_xlfn.XLOOKUP(C51,Employees!C:C,Employees!M:M,\"لا يوجد بيانات \",0,1))","v":"لا يوجد بيانات "},null,null,"الجنسية",{"$f":"IF(C51=\"\",\"\",_xlfn.XLOOKUP(C51,Employees!C:C,Employees!F:F,\"لا يوجد بيانات \",0,1))","v":"لا يوجد بيانات "},null,"موقع العمل",{"$f":"IF(C51=\"\",\"\",_xlfn.XLOOKUP(C51,Employees!C:C,Employees!H:H,\"لا يوجد بيانات \",0,1))","v":"لا يوجد بيانات "}]